Body,Body Name,Date,Transaction Number,Invoice number,Amount,Supplier,Supplier Id,Expense Area,Expense Type,Expense Code
http://statistics.data.gov.uk/id/local-authority/47UD,Redditch Borough Council,14/03/2014,201325,BE139,"4,341.26",B Evans & Son,103,Rbc Balance Sheet,Contract Payments,8131
http://statistics.data.gov.uk/id/local-authority/47UD,Redditch Borough Council,14/03/2014,201325,BE139,"6,492.15",B Evans & Son,103,Rbc Balance Sheet,Dlo,8130
http://statistics.data.gov.uk/id/local-authority/47UD,Redditch Borough Council,14/03/2014,201612,BE140,"10,729.70",B Evans & Son,103,Rbc Balance Sheet,Contract Payments,8131
http://statistics.data.gov.uk/id/local-authority/47UD,Redditch Borough Council,27/03/2014,202496,BE142,"8,003.56",B Evans & Son,103,Rbc Balance Sheet,Contract Payments,8131
http://statistics.data.gov.uk/id/local-authority/47UD,Redditch Borough Council,07/03/2014,202173,704,"1,338.06",N Power Business And Social Housing Limited,1030,Housing Repairs Account,Contractors,5158
http://statistics.data.gov.uk/id/local-authority/47UD,Redditch Borough Council,07/03/2014,202174,703,"1,494.99",N Power Business And Social Housing Limited,1030,Housing Repairs Account,Contractors,5158
http://statistics.data.gov.uk/id/local-authority/47UD,Redditch Borough Council,07/03/2014,202175,702,"2,319.91",N Power Business And Social Housing Limited,1030,Housing Repairs Account,Contractors,5158
http://statistics.data.gov.uk/id/local-authority/47UD,Redditch Borough Council,07/03/2014,202176,701,"1,094.30",N Power Business And Social Housing Limited,1030,Housing Repairs Account,Contractors,5158
http://statistics.data.gov.uk/id/local-authority/47UD,Redditch Borough Council,07/03/2014,202177,700,"1,677.07",N Power Business And Social Housing Limited,1030,Housing Repairs Account,Contractors,5158
http://statistics.data.gov.uk/id/local-authority/47UD,Redditch Borough Council,21/03/2014,203186,P598 CERT7,"47,469.66",N Power Business And Social Housing Limited,1030,Rbc Balance Sheet,Contract Payments,8131
http://statistics.data.gov.uk/id/local-authority/47UD,Redditch Borough Council,27/03/2014,203620,PI044530,"3,879.77",N Power Business And Social Housing Limited,1030,Housing Repairs Account,Contractors,5158
http://statistics.data.gov.uk/id/local-authority/47UD,Redditch Borough Council,27/03/2014,202780,9001442866,"7,795.26",Birmingham City Council,1035,Chief Executive,Franking Machine,4400
http://statistics.data.gov.uk/id/local-authority/47UD,Redditch Borough Council,21/03/2014,201539,9948,642,Gasp Smoke Free Services Ltd,1036,Surestart Project,Project Work,4733
http://statistics.data.gov.uk/id/local-authority/47UD,Redditch Borough Council,07/03/2014,201377,OP/1405734,519.18,Prolog Print Media,1056,Exec. Director Fin. & Resource,External Printing,4302
http://statistics.data.gov.uk/id/local-authority/47UD,Redditch Borough Council,07/03/2014,201569,197447,76.34,Dulux Decorator Centres,1082,Housing Repairs Account,Materials,4170
http://statistics.data.gov.uk/id/local-authority/47UD,Redditch Borough Council,07/03/2014,201571,187238,14.12,Dulux Decorator Centres,1082,Housing Repairs Account,Materials,4170
http://statistics.data.gov.uk/id/local-authority/47UD,Redditch Borough Council,07/03/2014,201573,177477,5.38,Dulux Decorator Centres,1082,Exec. Director Fin. & Resource,Materials,4170
http://statistics.data.gov.uk/id/local-authority/47UD,Redditch Borough Council,07/03/2014,201574,172201,6.89,Dulux Decorator Centres,1082,Housing Repairs Account,Materials,4170
http://statistics.data.gov.uk/id/local-authority/47UD,Redditch Borough Council,21/03/2014,201822,/201792,38.28,Dulux Decorator Centres,1082,Housing Repairs Account,Materials,4170
http://statistics.data.gov.uk/id/local-authority/47UD,Redditch Borough Council,27/03/2014,201819,/217075,13.83,Dulux Decorator Centres,1082,Housing Repairs Account,Materials,4170
http://statistics.data.gov.uk/id/local-authority/47UD,Redditch Borough Council,27/03/2014,201820,/212116,47.85,Dulux Decorator Centres,1082,Housing Repairs Account,Materials,4170
http://statistics.data.gov.uk/id/local-authority/47UD,Redditch Borough Council,27/03/2014,202464,237256,618.35,Dulux Decorator Centres,1082,Crossgate Stocks,Received Not Invoiced,2096
http://statistics.data.gov.uk/id/local-authority/47UD,Redditch Borough Council,27/03/2014,202465,251505,34.68,Dulux Decorator Centres,1082,Housing Repairs Account,Operational Equip- Purchase,4150
http://statistics.data.gov.uk/id/local-authority/47UD,Redditch Borough Council,27/03/2014,203561,1642,245,Lion Hotel,1108,Exec. Director Prrh,Temporary Accomodation,4557
http://statistics.data.gov.uk/id/local-authority/47UD,Redditch Borough Council,27/03/2014,203562,1591,245,Lion Hotel,1108,Exec. Director Prrh,Temporary Accomodation,4557
http://statistics.data.gov.uk/id/local-authority/47UD,Redditch Borough Council,27/03/2014,203563,1590,245,Lion Hotel,1108,Exec. Director Prrh,Temporary Accomodation,4557
http://statistics.data.gov.uk/id/local-authority/47UD,Redditch Borough Council,27/03/2014,203564,1589,245,Lion Hotel,1108,Exec. Director Prrh,Temporary Accomodation,4557
http://statistics.data.gov.uk/id/local-authority/47UD,Redditch Borough Council,27/03/2014,203565,1588,140,Lion Hotel,1108,Exec. Director Prrh,Temporary Accomodation,4557
http://statistics.data.gov.uk/id/local-authority/47UD,Redditch Borough Council,27/03/2014,203566,1587,245,Lion Hotel,1108,Exec. Director Prrh,Temporary Accomodation,4557
http://statistics.data.gov.uk/id/local-authority/47UD,Redditch Borough Council,07/03/2014,202076,8162737,"15,126.49",Bromsgrove District Council,1114,Exec. Director Fin. & Resource,Misc. Expenses,4730
http://statistics.data.gov.uk/id/local-authority/47UD,Redditch Borough Council,14/03/2014,202767,Mar-14,"50,330.00",Bromsgrove District Council,1114,Exec. Director Prrh,Wett Shared Service Cost,5013
http://statistics.data.gov.uk/id/local-authority/47UD,Redditch Borough Council,21/03/2014,201869,8163234,"2,138.43",Bromsgrove District Council,1114,Exec. Director Fin. & Resource,Other Local Authorities,5009
http://statistics.data.gov.uk/id/local-authority/47UD,Redditch Borough Council,27/03/2014,201150,8162561,"5,978.00",Bromsgrove District Council,1114,Chief Executive,Legal Fees,4350
http://statistics.data.gov.uk/id/local-authority/47UD,Redditch Borough Council,27/03/2014,203051,8163711,"19,443.68",Bromsgrove District Council,1114,Executive Director Lec,Funding From Other La (+Activ),6100
http://statistics.data.gov.uk/id/local-authority/47UD,Redditch Borough Council,27/03/2014,203498,8163694,"4,071.32",Bromsgrove District Council,1114,Executive Director Lec,Publicity & Promotion,4700
http://statistics.data.gov.uk/id/local-authority/47UD,Redditch Borough Council,27/03/2014,203523,BDC FEES,505,Bromsgrove District Council,1114,Exec. Director Fin. & Resource,Penalties/Fines,6308
http://statistics.data.gov.uk/id/local-authority/47UD,Redditch Borough Council,14/03/2014,202081,ARCMIN/99042081,"3,000.00",Advanced Business Solutions,114,Exec. Director Fin. & Resource,Software Licences,4501
http://statistics.data.gov.uk/id/local-authority/47UD,Redditch Borough Council,21/03/2014,202079,ARCMIN/99042185,"48,505.55",Advanced Business Solutions,114,Chief Executive,Software Maintenance,4503
http://statistics.data.gov.uk/id/local-authority/47UD,Redditch Borough Council,24/03/2014,203411,REMOVALS,"1,495.50",Shires Removals,11443P,Exec. Director Fin. & Resource,Misc Exp Non Vat,4723
http://statistics.data.gov.uk/id/local-authority/47UD,Redditch Borough Council,07/03/2014,198628,5906,100,Cava Security Services Ltd,115,Executive Director Lec,Project Work,4733
http://statistics.data.gov.uk/id/local-authority/47UD,Redditch Borough Council,14/03/2014,202050,6259,970.93,Cava Security Services Ltd,115,Executive Director Lec,Recreational Equip - Purchase,4100
http://statistics.data.gov.uk/id/local-authority/47UD,Redditch Borough Council,07/03/2014,201512,PSI965657,281,Mila Hardware,1159,Crossgate Stocks,Received Not Invoiced,2096
http://statistics.data.gov.uk/id/local-authority/47UD,Redditch Borough Council,07/03/2014,201730,PSI966242,834.5,Mila Hardware,1159,Crossgate Stocks,Received Not Invoiced,2096
http://statistics.data.gov.uk/id/local-authority/47UD,Redditch Borough Council,27/03/2014,203219,PSI967071,100.19,Mila Hardware,1159,Crossgate Stocks,Received Not Invoiced,2096
http://statistics.data.gov.uk/id/local-authority/47UD,Redditch Borough Council,07/03/2014,201568,19/4405894,446.62,N & C Building Products Ltd,1160,Crossgate Stocks,Received Not Invoiced,2096
http://statistics.data.gov.uk/id/local-authority/47UD,Redditch Borough Council,27/03/2014,202582,19/4413074,446.62,N & C Building Products Ltd,1160,Crossgate Stocks,Received Not Invoiced,2096
http://statistics.data.gov.uk/id/local-authority/47UD,Redditch Borough Council,27/03/2014,202612,19/4416144,224,N & C Building Products Ltd,1160,Crossgate Stocks,Received Not Invoiced,2096
http://statistics.data.gov.uk/id/local-authority/47UD,Redditch Borough Council,27/03/2014,202613,19/4415053,796.95,N & C Building Products Ltd,1160,Crossgate Stocks,Received Not Invoiced,2096
http://statistics.data.gov.uk/id/local-authority/47UD,Redditch Borough Council,27/03/2014,202970,19/4421227,446.62,N & C Building Products Ltd,1160,Crossgate Stocks,Received Not Invoiced,2096
http://statistics.data.gov.uk/id/local-authority/47UD,Redditch Borough Council,27/03/2014,202972,19/4423526,455.4,N & C Building Products Ltd,1160,Crossgate Stocks,Received Not Invoiced,2096
http://statistics.data.gov.uk/id/local-authority/47UD,Redditch Borough Council,07/03/2014,201153,180598,"2,090.04",Tallis Amos Group,1187,Executive Director Lec,Materials (Veh),3700
http://statistics.data.gov.uk/id/local-authority/47UD,Redditch Borough Council,21/03/2014,202139,9038729,"1,285.00",Haymarket Publishing Services Ltd,1199,Exec. Director Prrh,Employee Advertising,3037
http://statistics.data.gov.uk/id/local-authority/47UD,Redditch Borough Council,07/03/2014,200944,3232026,20.58,Energas Ltd,12,Executive Director Lec,Operational Equip- Purchase,4150
http://statistics.data.gov.uk/id/local-authority/47UD,Redditch Borough Council,14/03/2014,200943,3232029,176.19,Energas Ltd,12,Executive Director Lec,Materials,4170
http://statistics.data.gov.uk/id/local-authority/47UD,Redditch Borough Council,27/03/2014,202771,3253741,184.58,Energas Ltd,12,Executive Director Lec,Materials,4170
http://statistics.data.gov.uk/id/local-authority/47UD,Redditch Borough Council,27/03/2014,202775,3250841,144.33,Energas Ltd,12,Executive Director Lec,Materials,4170
http://statistics.data.gov.uk/id/local-authority/47UD,Redditch Borough Council,07/03/2014,199041,C/BC121406,720,Civica Uk Limited,1233,Exec. Director Fin. & Resource,Agency Staff,3020
http://statistics.data.gov.uk/id/local-authority/47UD,Redditch Borough Council,07/03/2014,200905,C/BC122030,600.24,Civica Uk Limited,1233,Exec. Director Fin. & Resource,Agency Staff,3020
http://statistics.data.gov.uk/id/local-authority/47UD,Redditch Borough Council,07/03/2014,201367,C/BC122229,720,Civica Uk Limited,1233,Exec. Director Fin. & Resource,Agency Staff,3020
http://statistics.data.gov.uk/id/local-authority/47UD,Redditch Borough Council,07/03/2014,201517,C/BC120712,720,Civica Uk Limited,1233,Exec. Director Fin. & Resource,Agency Staff,3020
http://statistics.data.gov.uk/id/local-authority/47UD,Redditch Borough Council,07/03/2014,201710,M/RB020943,638.2,Civica Uk Limited,1233,Exec. Director Fin. & Resource,Software Maintenance,4503
http://statistics.data.gov.uk/id/local-authority/47UD,Redditch Borough Council,07/03/2014,201850,C/BC122451,720,Civica Uk Limited,1233,Exec. Director Fin. & Resource,Agency Staff,3020
http://statistics.data.gov.uk/id/local-authority/47UD,Redditch Borough Council,07/03/2014,202068,C/BC122670,720,Civica Uk Limited,1233,Exec. Director Fin. & Resource,Agency Staff,3020
http://statistics.data.gov.uk/id/local-authority/47UD,Redditch Borough Council,14/03/2014,199778,X/IC23471,147.6,Civica Uk Limited,1233,Rbc Balance Sheet,Consultants,8202
http://statistics.data.gov.uk/id/local-authority/47UD,Redditch Borough Council,14/03/2014,201609,X/IC23603,73.8,Civica Uk Limited,1233,Rbc Balance Sheet,Consultants,8202
http://statistics.data.gov.uk/id/local-authority/47UD,Redditch Borough Council,21/03/2014,201531,M/HO020635,"40,891.02",Civica Uk Limited,1233,Housing Revenue Account,Hardware Maintenance,4504
http://statistics.data.gov.uk/id/local-authority/47UD,Redditch Borough Council,21/03/2014,202597,C/RB122909,"9,000.00",Civica Uk Limited,1233,Exec. Director Fin. & Resource,Software Licences,4501
http://statistics.data.gov.uk/id/local-authority/47UD,Redditch Borough Council,21/03/2014,202598,C/RB122936,"3,500.00",Civica Uk Limited,1233,Exec. Director Fin. & Resource,Software Maintenance,4503
http://statistics.data.gov.uk/id/local-authority/47UD,Redditch Borough Council,21/03/2014,202598,C/RB122936,"6,150.00",Civica Uk Limited,1233,Exec. Director Fin. & Resource,Software Maintenance,4503
http://statistics.data.gov.uk/id/local-authority/47UD,Redditch Borough Council,21/03/2014,202599,C/RB122937,"3,284.37",Civica Uk Limited,1233,Exec. Director Fin. & Resource,Software Enhancements,4502
http://statistics.data.gov.uk/id/local-authority/47UD,Redditch Borough Council,21/03/2014,202600,C/BC122950,720,Civica Uk Limited,1233,Exec. Director Fin. & Resource,Software Licences,4501
http://statistics.data.gov.uk/id/local-authority/47UD,Redditch Borough Council,27/03/2014,203042,C/BC123103,720,Civica Uk Limited,1233,Exec. Director Fin. & Resource,Agency Staff,3020
http://statistics.data.gov.uk/id/local-authority/47UD,Redditch Borough Council,27/03/2014,203412,C/BC123335,720,Civica Uk Limited,1233,Exec. Director Fin. & Resource,Agency Staff,3020
http://statistics.data.gov.uk/id/local-authority/47UD,Redditch Borough Council,27/03/2014,203629,3270,"4,331.84",Intec Public Sector,1333,Exec. Director Fin. & Resource,Software Licences,4501
http://statistics.data.gov.uk/id/local-authority/47UD,Redditch Borough Council,07/03/2014,200900,A4366,111.99,C & P Hearing Equipment Centre,137,Rbc Balance Sheet,Contract Payments,8131
http://statistics.data.gov.uk/id/local-authority/47UD,Redditch Borough Council,07/03/2014,200901,A4368,99,C & P Hearing Equipment Centre,137,Rbc Balance Sheet,Contract Payments,8131
http://statistics.data.gov.uk/id/local-authority/47UD,Redditch Borough Council,07/03/2014,200902,A4367,99,C & P Hearing Equipment Centre,137,Rbc Balance Sheet,Contract Payments,8131
http://statistics.data.gov.uk/id/local-authority/47UD,Redditch Borough Council,07/03/2014,201611,A4370,147.04,C & P Hearing Equipment Centre,137,Rbc Balance Sheet,Contract Payments,8131
http://statistics.data.gov.uk/id/local-authority/47UD,Redditch Borough Council,14/03/2014,201610,A4372,345.38,C & P Hearing Equipment Centre,137,Rbc Balance Sheet,Contract Payments,8131
http://statistics.data.gov.uk/id/local-authority/47UD,Redditch Borough Council,27/03/2014,203612,MERRY WIDOW,870.39,Astwood Bank Operatic Society,1449,Executive Director Lec,Other Fees & Charges(Vatable),6302
http://statistics.data.gov.uk/id/local-authority/47UD,Redditch Borough Council,27/03/2014,203641,DEDS MAR 14,892.91,Birmingham Hospital Saturday Fund,1508,Payroll Control,Payments Over -Current Year,2921
http://statistics.data.gov.uk/id/local-authority/47UD,Redditch Borough Council,27/03/2014,203642,DEDS MAR 14,"1,960.95",Unison West Midlands Regional Centre,1510,Payroll Control,Payments Over -Current Year,2921
http://statistics.data.gov.uk/id/local-authority/47UD,Redditch Borough Council,21/03/2014,203199,IN17PR14000190,"2,638.67",Tnt Post Uk Ltd,1546,Executive Director Lec,Postage Other,4402
http://statistics.data.gov.uk/id/local-authority/47UD,Redditch Borough Council,14/03/2014,202633,135305,41.7,Bristow  & Sutor,157,Vat Control Account,Vat Input Tax Adjustments,2994
http://statistics.data.gov.uk/id/local-authority/47UD,Redditch Borough Council,14/03/2014,202634,135377,226.06,Bristow  & Sutor,157,Vat Control Account,Vat Input Tax Adjustments,2994
http://statistics.data.gov.uk/id/local-authority/47UD,Redditch Borough Council,14/03/2014,202635,135555,6,Bristow  & Sutor,157,Vat Control Account,Vat Input Tax Adjustments,2994
http://statistics.data.gov.uk/id/local-authority/47UD,Redditch Borough Council,14/03/2014,202636,135734,14.5,Bristow  & Sutor,157,Vat Control Account,Vat Input Tax Adjustments,2994
http://statistics.data.gov.uk/id/local-authority/47UD,Redditch Borough Council,14/03/2014,202637,135801,146.83,Bristow  & Sutor,157,Vat Control Account,Vat Input Tax Adjustments,2994
http://statistics.data.gov.uk/id/local-authority/47UD,Redditch Borough Council,14/03/2014,202638,135595,130.07,Bristow  & Sutor,157,Vat Control Account,Vat Input Tax Adjustments,2994
http://statistics.data.gov.uk/id/local-authority/47UD,Redditch Borough Council,14/03/2014,202639,134882,86.38,Bristow  & Sutor,157,Exec. Director Fin. & Resource,Agency Fee,4362
http://statistics.data.gov.uk/id/local-authority/47UD,Redditch Borough Council,14/03/2014,202640,135279,70.4,Bristow  & Sutor,157,Exec. Director Fin. & Resource,Agency Fee,4362
http://statistics.data.gov.uk/id/local-authority/47UD,Redditch Borough Council,14/03/2014,202641,135280,61.51,Bristow  & Sutor,157,Exec. Director Fin. & Resource,Agency Fee,4362
http://statistics.data.gov.uk/id/local-authority/47UD,Redditch Borough Council,14/03/2014,202642,135283,73.38,Bristow  & Sutor,157,Exec. Director Fin. & Resource,Agency Fee,4362
http://statistics.data.gov.uk/id/local-authority/47UD,Redditch Borough Council,14/03/2014,202643,135278,171.45,Bristow  & Sutor,157,Exec. Director Fin. & Resource,Agency Fee,4362
http://statistics.data.gov.uk/id/local-authority/47UD,Redditch Borough Council,14/03/2014,202644,135281,67.25,Bristow  & Sutor,157,Exec. Director Fin. & Resource,Agency Fee,4362
http://statistics.data.gov.uk/id/local-authority/47UD,Redditch Borough Council,14/03/2014,202645,135282,135.02,Bristow  & Sutor,157,Exec. Director Fin. & Resource,Agency Fee,4362
http://statistics.data.gov.uk/id/local-authority/47UD,Redditch Borough Council,14/03/2014,202646,135872,349.67,Bristow  & Sutor,157,Vat Control Account,Vat Input Tax Adjustments,2994
http://statistics.data.gov.uk/id/local-authority/47UD,Redditch Borough Council,14/03/2014,202647,135760,19.48,Bristow  & Sutor,157,Vat Control Account,Vat Input Tax Adjustments,2994
http://statistics.data.gov.uk/id/local-authority/47UD,Redditch Borough Council,27/03/2014,203482,135710,33.03,Bristow  & Sutor,157,Exec. Director Fin. & Resource,Agency Fee,4362
http://statistics.data.gov.uk/id/local-authority/47UD,Redditch Borough Council,27/03/2014,203483,135709,96.49,Bristow  & Sutor,157,Exec. Director Fin. & Resource,Agency Fee,4362
http://statistics.data.gov.uk/id/local-authority/47UD,Redditch Borough Council,27/03/2014,203484,135706,31.6,Bristow  & Sutor,157,Exec. Director Fin. & Resource,Agency Fee,4362
http://statistics.data.gov.uk/id/local-authority/47UD,Redditch Borough Council,27/03/2014,203485,135708,96.5,Bristow  & Sutor,157,Exec. Director Fin. & Resource,Agency Fee,4362
http://statistics.data.gov.uk/id/local-authority/47UD,Redditch Borough Council,27/03/2014,203486,135705,98.19,Bristow  & Sutor,157,Exec. Director Fin. & Resource,Agency Fee,4362
http://statistics.data.gov.uk/id/local-authority/47UD,Redditch Borough Council,27/03/2014,203487,135707,32.59,Bristow  & Sutor,157,Exec. Director Fin. & Resource,Agency Fee,4362
http://statistics.data.gov.uk/id/local-authority/47UD,Redditch Borough Council,27/03/2014,203489,136282,409.09,Bristow  & Sutor,157,Vat Control Account,Vat Input Tax Adjustments,2994
http://statistics.data.gov.uk/id/local-authority/47UD,Redditch Borough Council,27/03/2014,203490,136171,92.3,Bristow  & Sutor,157,Vat Control Account,Vat Input Tax Adjustments,2994
http://statistics.data.gov.uk/id/local-authority/47UD,Redditch Borough Council,27/03/2014,203491,136139,26.86,Bristow  & Sutor,157,Vat Control Account,Vat Input Tax Adjustments,2994
http://statistics.data.gov.uk/id/local-authority/47UD,Redditch Borough Council,27/03/2014,203492,135996,115.86,Bristow  & Sutor,157,Vat Control Account,Vat Input Tax Adjustments,2994
http://statistics.data.gov.uk/id/local-authority/47UD,Redditch Borough Council,27/03/2014,203493,136210,294.18,Bristow  & Sutor,157,Vat Control Account,Vat Input Tax Adjustments,2994
http://statistics.data.gov.uk/id/local-authority/47UD,Redditch Borough Council,27/03/2014,203494,135951,2.8,Bristow  & Sutor,157,Vat Control Account,Vat Input Tax Adjustments,2994
http://statistics.data.gov.uk/id/local-authority/47UD,Redditch Borough Council,27/03/2014,203741,136726,475.77,Bristow  & Sutor,157,Vat Control Account,Vat Input Tax Adjustments,2994
http://statistics.data.gov.uk/id/local-authority/47UD,Redditch Borough Council,27/03/2014,203743,136578,93.1,Bristow  & Sutor,157,Vat Control Account,Vat Input Tax Adjustments,2994
http://statistics.data.gov.uk/id/local-authority/47UD,Redditch Borough Council,27/03/2014,203749,136653,634.72,Bristow  & Sutor,157,Vat Control Account,Vat Input Tax Adjustments,2994
http://statistics.data.gov.uk/id/local-authority/47UD,Redditch Borough Council,27/03/2014,203750,136612,35.86,Bristow  & Sutor,157,Vat Control Account,Vat Input Tax Adjustments,2994
http://statistics.data.gov.uk/id/local-authority/47UD,Redditch Borough Council,21/03/2014,203207,2878,"4,675.42",Entertainers Promotions Limited,1708,Executive Director Lec,Professional Fees,4352
http://statistics.data.gov.uk/id/local-authority/47UD,Redditch Borough Council,07/03/2014,202230,213709,250,Bt Redcare,1800,Executive Director Lec,Operation Equip -Rep & Maint,4152
http://statistics.data.gov.uk/id/local-authority/47UD,Redditch Borough Council,27/03/2014,202499,213624,250,Bt Redcare,1800,Executive Director Lec,Operation Equip -Rep & Maint,4152
http://statistics.data.gov.uk/id/local-authority/47UD,Redditch Borough Council,27/03/2014,203630,4718,"1,379.00",Elc Contractors Ltd,184,Rbc Balance Sheet,Contract Payments,8131
http://statistics.data.gov.uk/id/local-authority/47UD,Redditch Borough Council,07/03/2014,200314,RED/315991,329.85,Grafton Merchanting Gb Ltd,188,Crossgate Stocks,Received Not Invoiced,2096
http://statistics.data.gov.uk/id/local-authority/47UD,Redditch Borough Council,07/03/2014,200314,RED/315991,0.09,Grafton Merchanting Gb Ltd,188,Crossgate Stocks,Stock Variance,1203
http://statistics.data.gov.uk/id/local-authority/47UD,Redditch Borough Council,07/03/2014,201578,RED/316744,263.45,Grafton Merchanting Gb Ltd,188,Crossgate Stocks,Received Not Invoiced,2096
http://statistics.data.gov.uk/id/local-authority/47UD,Redditch Borough Council,14/03/2014,201234,RED/316625,156.3,Grafton Merchanting Gb Ltd,188,Crossgate Stocks,Received Not Invoiced,2096
http://statistics.data.gov.uk/id/local-authority/47UD,Redditch Borough Council,14/03/2014,201234,RED/316625,12,Grafton Merchanting Gb Ltd,188,Crossgate Stocks,Stock Account (Cedar),1201
http://statistics.data.gov.uk/id/local-authority/47UD,Redditch Borough Council,14/03/2014,201234,RED/316625,-0.15,Grafton Merchanting Gb Ltd,188,Crossgate Stocks,Stock Variance,1203
http://statistics.data.gov.uk/id/local-authority/47UD,Redditch Borough Council,14/03/2014,202125,RED/318065,29.9,Grafton Merchanting Gb Ltd,188,Housing Repairs Account,Materials,4170
http://statistics.data.gov.uk/id/local-authority/47UD,Redditch Borough Council,14/03/2014,202126,RED/318078,54.95,Grafton Merchanting Gb Ltd,188,Housing Repairs Account,Materials,4170
http://statistics.data.gov.uk/id/local-authority/47UD,Redditch Borough Council,14/03/2014,202128,RED/317849,191.6,Grafton Merchanting Gb Ltd,188,Crossgate Stocks,Received Not Invoiced,2096
http://statistics.data.gov.uk/id/local-authority/47UD,Redditch Borough Council,21/03/2014,200656,RED/316144,76.95,Grafton Merchanting Gb Ltd,188,Housing Repairs Account,Materials,4170
http://statistics.data.gov.uk/id/local-authority/47UD,Redditch Borough Council,21/03/2014,200657,RED/316187,54.68,Grafton Merchanting Gb Ltd,188,Housing Repairs Account,Materials,4170
http://statistics.data.gov.uk/id/local-authority/47UD,Redditch Borough Council,21/03/2014,200659,RED/311514,288,Grafton Merchanting Gb Ltd,188,Housing Repairs Account,Materials,4170
http://statistics.data.gov.uk/id/local-authority/47UD,Redditch Borough Council,21/03/2014,200735,RED/316273,19.95,Grafton Merchanting Gb Ltd,188,Housing Repairs Account,Materials,4170
http://statistics.data.gov.uk/id/local-authority/47UD,Redditch Borough Council,21/03/2014,200736,RED/316277,20,Grafton Merchanting Gb Ltd,188,Housing Repairs Account,Materials,4170
http://statistics.data.gov.uk/id/local-authority/47UD,Redditch Borough Council,21/03/2014,200737,RED/316290,58.87,Grafton Merchanting Gb Ltd,188,Housing Repairs Account,Materials,4170
http://statistics.data.gov.uk/id/local-authority/47UD,Redditch Borough Council,21/03/2014,200738,RED/316298,55.73,Grafton Merchanting Gb Ltd,188,Housing Repairs Account,Materials,4170
http://statistics.data.gov.uk/id/local-authority/47UD,Redditch Borough Council,21/03/2014,201235,RED/316777,41.7,Grafton Merchanting Gb Ltd,188,Housing Repairs Account,Materials,4170
http://statistics.data.gov.uk/id/local-authority/47UD,Redditch Borough Council,21/03/2014,201237,RED/316775,91.66,Grafton Merchanting Gb Ltd,188,Housing Repairs Account,Materials,4170
http://statistics.data.gov.uk/id/local-authority/47UD,Redditch Borough Council,21/03/2014,201240,RED/316503,159.3,Grafton Merchanting Gb Ltd,188,Housing Repairs Account,Materials,4170
http://statistics.data.gov.uk/id/local-authority/47UD,Redditch Borough Council,21/03/2014,201624,RED/317331,123.45,Grafton Merchanting Gb Ltd,188,Housing Repairs Account,Materials,4170
http://statistics.data.gov.uk/id/local-authority/47UD,Redditch Borough Council,21/03/2014,201693,RED/317149,73.68,Grafton Merchanting Gb Ltd,188,Housing Repairs Account,Materials,4170
http://statistics.data.gov.uk/id/local-authority/47UD,Redditch Borough Council,21/03/2014,201798,RED/317624,393.12,Grafton Merchanting Gb Ltd,188,Housing Repairs Account,Materials,4170
http://statistics.data.gov.uk/id/local-authority/47UD,Redditch Borough Council,21/03/2014,201799,RED/317630,57.6,Grafton Merchanting Gb Ltd,188,Housing Repairs Account,Materials,4170
http://statistics.data.gov.uk/id/local-authority/47UD,Redditch Borough Council,21/03/2014,201800,RED/317427,81.7,Grafton Merchanting Gb Ltd,188,Housing Repairs Account,Materials,4170
http://statistics.data.gov.uk/id/local-authority/47UD,Redditch Borough Council,21/03/2014,201804,RED/317568,181.65,Grafton Merchanting Gb Ltd,188,Housing Repairs Account,Materials,4170
http://statistics.data.gov.uk/id/local-authority/47UD,Redditch Borough Council,21/03/2014,201805,RED/308674,390,Grafton Merchanting Gb Ltd,188,Housing Repairs Account,Materials,4170
http://statistics.data.gov.uk/id/local-authority/47UD,Redditch Borough Council,21/03/2014,202123,RED/316523,373.75,Grafton Merchanting Gb Ltd,188,Housing Repairs Account,Materials,4170
http://statistics.data.gov.uk/id/local-authority/47UD,Redditch Borough Council,21/03/2014,202124,RED/316527,401.75,Grafton Merchanting Gb Ltd,188,Housing Repairs Account,Materials,4170
http://statistics.data.gov.uk/id/local-authority/47UD,Redditch Borough Council,21/03/2014,202794,RED/317520,45.83,Grafton Merchanting Gb Ltd,188,Housing Repairs Account,Materials,4170
http://statistics.data.gov.uk/id/local-authority/47UD,Redditch Borough Council,21/03/2014,202957,RED/318025,66.48,Grafton Merchanting Gb Ltd,188,Crossgate Stocks,Received Not Invoiced,2096
http://statistics.data.gov.uk/id/local-authority/47UD,Redditch Borough Council,21/03/2014,202958,RED/318156,32.55,Grafton Merchanting Gb Ltd,188,Housing Repairs Account,Materials,4170
http://statistics.data.gov.uk/id/local-authority/47UD,Redditch Borough Council,21/03/2014,202960,RED/318123,12.95,Grafton Merchanting Gb Ltd,188,Housing Repairs Account,Materials,4170
http://statistics.data.gov.uk/id/local-authority/47UD,Redditch Borough Council,21/03/2014,203061,RED/319066,152.5,Grafton Merchanting Gb Ltd,188,Crossgate Stocks,Received Not Invoiced,2096
http://statistics.data.gov.uk/id/local-authority/47UD,Redditch Borough Council,21/03/2014,203063,RED/318854,239,Grafton Merchanting Gb Ltd,188,Crossgate Stocks,Received Not Invoiced,2096
http://statistics.data.gov.uk/id/local-authority/47UD,Redditch Borough Council,27/03/2014,201692,RED/317141,64.69,Grafton Merchanting Gb Ltd,188,Housing Repairs Account,Materials,4170
http://statistics.data.gov.uk/id/local-authority/47UD,Redditch Borough Council,27/03/2014,202793,RED/317081,392.81,Grafton Merchanting Gb Ltd,188,Housing Repairs Account,Materials,4170
http://statistics.data.gov.uk/id/local-authority/47UD,Redditch Borough Council,27/03/2014,202795,RED/317579,362.5,Grafton Merchanting Gb Ltd,188,Crossgate Stocks,Received Not Invoiced,2096
http://statistics.data.gov.uk/id/local-authority/47UD,Redditch Borough Council,27/03/2014,202795,RED/317579,0.27,Grafton Merchanting Gb Ltd,188,Crossgate Stocks,Stock Variance,1203
http://statistics.data.gov.uk/id/local-authority/47UD,Redditch Borough Council,07/03/2014,194911,2202041415,107.92,Worcestershire County Council,195,Executive Director Lec,Concessionary Travel,5150
http://statistics.data.gov.uk/id/local-authority/47UD,Redditch Borough Council,07/03/2014,201124,2202042391,"3,712.00",Worcestershire County Council,195,Exec. Director Fin. & Resource,Search Fees - Wcc,5004
http://statistics.data.gov.uk/id/local-authority/47UD,Redditch Borough Council,21/03/2014,200092,2203016171,33,Worcestershire County Council,195,Chief Executive,Removal Costs,4550
http://statistics.data.gov.uk/id/local-authority/47UD,Redditch Borough Council,21/03/2014,200092,2203016171,"1,177.00",Worcestershire County Council,195,Exec. Director Fin. & Resource,Misc. Expenses,4730
http://statistics.data.gov.uk/id/local-authority/47UD,Redditch Borough Council,21/03/2014,200092,2203016171,"2,923.96",Worcestershire County Council,195,Exec. Director Fin. & Resource,Planned R&M,3105
http://statistics.data.gov.uk/id/local-authority/47UD,Redditch Borough Council,21/03/2014,200092,2203016171,"2,168.00",Worcestershire County Council,195,Exec. Director Fin. & Resource,Refuse Collection,3602
http://statistics.data.gov.uk/id/local-authority/47UD,Redditch Borough Council,21/03/2014,200092,2203016171,275,Worcestershire County Council,195,Exec. Director Fin. & Resource,Removal Costs,4550
http://statistics.data.gov.uk/id/local-authority/47UD,Redditch Borough Council,21/03/2014,200092,2203016171,165,Worcestershire County Council,195,Exec. Director Fin. & Resource,Removal Costs,4550
http://statistics.data.gov.uk/id/local-authority/47UD,Redditch Borough Council,21/03/2014,200092,2203016171,"-7,858.83",Worcestershire County Council,195,Exec. Director Fin. & Resource,Response R&M,3104
http://statistics.data.gov.uk/id/local-authority/47UD,Redditch Borough Council,21/03/2014,200092,2203016171,"2,099.62",Worcestershire County Council,195,Exec. Director Fin. & Resource,Response R&M,3104
http://statistics.data.gov.uk/id/local-authority/47UD,Redditch Borough Council,21/03/2014,200092,2203016171,"4,778.05",Worcestershire County Council,195,Exec. Director Fin. & Resource,Response R&M,3104
http://statistics.data.gov.uk/id/local-authority/47UD,Redditch Borough Council,21/03/2014,200092,2203016171,"1,037.52",Worcestershire County Council,195,Exec. Director Fin. & Resource,Security Costs,3500
http://statistics.data.gov.uk/id/local-authority/47UD,Redditch Borough Council,21/03/2014,200092,2203016171,116.92,Worcestershire County Council,195,Exec. Director Fin. & Resource,Security Costs,3500
http://statistics.data.gov.uk/id/local-authority/47UD,Redditch Borough Council,21/03/2014,200092,2203016171,33,Worcestershire County Council,195,Exec. Director Prrh,Other Office Expenses,4306
http://statistics.data.gov.uk/id/local-authority/47UD,Redditch Borough Council,21/03/2014,200092,2203016171,"10,572.34",Worcestershire County Council,195,Exec. Director Prrh,Response R&M,3104
http://statistics.data.gov.uk/id/local-authority/47UD,Redditch Borough Council,21/03/2014,200092,2203016171,"1,576.60",Worcestershire County Council,195,Exec. Director Prrh,Response R&M,3104
http://statistics.data.gov.uk/id/local-authority/47UD,Redditch Borough Council,21/03/2014,200092,2203016171,225,Worcestershire County Council,195,Executive Director Lec,Fixture & Fittings,3550
http://statistics.data.gov.uk/id/local-authority/47UD,Redditch Borough Council,21/03/2014,200092,2203016171,"2,822.26",Worcestershire County Council,195,Executive Director Lec,General Repairs,3100
http://statistics.data.gov.uk/id/local-authority/47UD,Redditch Borough Council,21/03/2014,200092,2203016171,"13,606.33",Worcestershire County Council,195,Executive Director Lec,General Repairs,3100
http://statistics.data.gov.uk/id/local-authority/47UD,Redditch Borough Council,21/03/2014,200092,2203016171,"13,248.93",Worcestershire County Council,195,Executive Director Lec,Response R&M,3104
http://statistics.data.gov.uk/id/local-authority/47UD,Redditch Borough Council,21/03/2014,200092,2203016171,524.31,Worcestershire County Council,195,Executive Director Lec,Response R&M,3104
http://statistics.data.gov.uk/id/local-authority/47UD,Redditch Borough Council,21/03/2014,200092,2203016171,59.14,Worcestershire County Council,195,Executive Director Lec,Response R&M,3104
http://statistics.data.gov.uk/id/local-authority/47UD,Redditch Borough Council,21/03/2014,200092,2203016171,"3,444.49",Worcestershire County Council,195,Executive Director Lec,Response R&M,3104
http://statistics.data.gov.uk/id/local-authority/47UD,Redditch Borough Council,21/03/2014,200092,2203016171,525,Worcestershire County Council,195,Executive Director Lec,Response R&M,3104
http://statistics.data.gov.uk/id/local-authority/47UD,Redditch Borough Council,21/03/2014,200092,2203016171,"2,487.57",Worcestershire County Council,195,Executive Director Lec,Response R&M,3104
http://statistics.data.gov.uk/id/local-authority/47UD,Redditch Borough Council,21/03/2014,200092,2203016171,"4,680.80",Worcestershire County Council,195,Executive Director Lec,Response R&M,3104
http://statistics.data.gov.uk/id/local-authority/47UD,Redditch Borough Council,21/03/2014,200092,2203016171,"1,290.16",Worcestershire County Council,195,Executive Director Lec,Response R&M,3104
http://statistics.data.gov.uk/id/local-authority/47UD,Redditch Borough Council,21/03/2014,200092,2203016171,48,Worcestershire County Council,195,Executive Director Lec,Response R&M,3104
http://statistics.data.gov.uk/id/local-authority/47UD,Redditch Borough Council,21/03/2014,200092,2203016171,179.34,Worcestershire County Council,195,Executive Director Lec,Response R&M,3104
http://statistics.data.gov.uk/id/local-authority/47UD,Redditch Borough Council,21/03/2014,200092,2203016171,0.71,Worcestershire County Council,195,Executive Director Lec,Response R&M,3104
http://statistics.data.gov.uk/id/local-authority/47UD,Redditch Borough Council,21/03/2014,200092,2203016171,227.4,Worcestershire County Council,195,Executive Director Lec,Response R&M,3104
http://statistics.data.gov.uk/id/local-authority/47UD,Redditch Borough Council,21/03/2014,200092,2203016171,843.21,Worcestershire County Council,195,Executive Director Lec,Response R&M,3104
http://statistics.data.gov.uk/id/local-authority/47UD,Redditch Borough Council,21/03/2014,200092,2203016171,"2,302.31",Worcestershire County Council,195,Executive Director Lec,Response R&M,3104
http://statistics.data.gov.uk/id/local-authority/47UD,Redditch Borough Council,21/03/2014,200092,2203016171,224.5,Worcestershire County Council,195,Executive Director Lec,Response R&M,3104
http://statistics.data.gov.uk/id/local-authority/47UD,Redditch Borough Council,21/03/2014,200092,2203016171,344.25,Worcestershire County Council,195,Executive Director Lec,Response R&M,3104
http://statistics.data.gov.uk/id/local-authority/47UD,Redditch Borough Council,21/03/2014,200092,2203016171,"4,389.85",Worcestershire County Council,195,Executive Director Lec,Response R&M,3104
http://statistics.data.gov.uk/id/local-authority/47UD,Redditch Borough Council,21/03/2014,200092,2203016171,"2,982.82",Worcestershire County Council,195,Executive Director Lec,Response R&M,3104
http://statistics.data.gov.uk/id/local-authority/47UD,Redditch Borough Council,21/03/2014,200092,2203016171,"9,593.33",Worcestershire County Council,195,Executive Director Lec,Response R&M,3104
http://statistics.data.gov.uk/id/local-authority/47UD,Redditch Borough Council,21/03/2014,200092,2203016171,"1,739.76",Worcestershire County Council,195,Executive Director Lec,Security Costs,3500
http://statistics.data.gov.uk/id/local-authority/47UD,Redditch Borough Council,21/03/2014,200092,2203016171,782.76,Worcestershire County Council,195,Executive Director Lec,Security Costs,3500
http://statistics.data.gov.uk/id/local-authority/47UD,Redditch Borough Council,21/03/2014,200092,2203016171,"1,558.61",Worcestershire County Council,195,Housing Repairs Account,Contractors,5158
http://statistics.data.gov.uk/id/local-authority/47UD,Redditch Borough Council,21/03/2014,200092,2203016171,"1,282.76",Worcestershire County Council,195,Housing Repairs Account,Contractors,5158
http://statistics.data.gov.uk/id/local-authority/47UD,Redditch Borough Council,21/03/2014,200092,2203016171,"2,436.86",Worcestershire County Council,195,Housing Repairs Account,Repairs In House Team,3107
http://statistics.data.gov.uk/id/local-authority/47UD,Redditch Borough Council,21/03/2014,200092,2203016171,99,Worcestershire County Council,195,Housing Revenue Account,Office Equipment Hire & Rental,4001
http://statistics.data.gov.uk/id/local-authority/47UD,Redditch Borough Council,21/03/2014,200092,2203016171,465,Worcestershire County Council,195,Housing Revenue Account,Operational Equip- Purchase,4150
http://statistics.data.gov.uk/id/local-authority/47UD,Redditch Borough Council,21/03/2014,200092,2203016171,245,Worcestershire County Council,195,Housing Revenue Account,Operation Equip -Rep & Maint,4152
http://statistics.data.gov.uk/id/local-authority/47UD,Redditch Borough Council,21/03/2014,200092,2203016171,129,Worcestershire County Council,195,Housing Revenue Account,Operation Equip -Rep & Maint,4152
http://statistics.data.gov.uk/id/local-authority/47UD,Redditch Borough Council,21/03/2014,200092,2203016171,"93,586.14",Worcestershire County Council,195,Rbc Balance Sheet,Contract Payments,8131
http://statistics.data.gov.uk/id/local-authority/47UD,Redditch Borough Council,21/03/2014,201119,2203016219,"1,071.90",Worcestershire County Council,195,Exec. Director Fin. & Resource,Refuse Collection,3602
http://statistics.data.gov.uk/id/local-authority/47UD,Redditch Borough Council,21/03/2014,201119,2203016219,"11,996.56",Worcestershire County Council,195,Exec. Director Fin. & Resource,Response R&M,3104
http://statistics.data.gov.uk/id/local-authority/47UD,Redditch Borough Council,21/03/2014,201119,2203016219,"2,565.22",Worcestershire County Council,195,Exec. Director Fin. & Resource,Response R&M,3104
http://statistics.data.gov.uk/id/local-authority/47UD,Redditch Borough Council,21/03/2014,201119,2203016219,"6,543.26",Worcestershire County Council,195,Exec. Director Fin. & Resource,Response R&M,3104
http://statistics.data.gov.uk/id/local-authority/47UD,Redditch Borough Council,21/03/2014,201119,2203016219,30,Worcestershire County Council,195,Exec. Director Fin. & Resource,Response R&M,3104
http://statistics.data.gov.uk/id/local-authority/47UD,Redditch Borough Council,21/03/2014,201119,2203016219,44.48,Worcestershire County Council,195,Exec. Director Fin. & Resource,Response R&M,3104
http://statistics.data.gov.uk/id/local-authority/47UD,Redditch Borough Council,21/03/2014,201119,2203016219,382.84,Worcestershire County Council,195,Exec. Director Fin. & Resource,Security Costs,3500
http://statistics.data.gov.uk/id/local-authority/47UD,Redditch Borough Council,21/03/2014,201119,2203016219,17,Worcestershire County Council,195,Exec. Director Fin. & Resource,Security Costs,3500
http://statistics.data.gov.uk/id/local-authority/47UD,Redditch Borough Council,21/03/2014,201119,2203016219,274.92,Worcestershire County Council,195,Exec. Director Fin. & Resource,Security Costs,3500
http://statistics.data.gov.uk/id/local-authority/47UD,Redditch Borough Council,21/03/2014,201119,2203016219,944.04,Worcestershire County Council,195,Exec. Director Prrh,Response R&M,3104
http://statistics.data.gov.uk/id/local-authority/47UD,Redditch Borough Council,21/03/2014,201119,2203016219,64.09,Worcestershire County Council,195,Exec. Director Prrh,Response R&M,3104
http://statistics.data.gov.uk/id/local-authority/47UD,Redditch Borough Council,21/03/2014,201119,2203016219,"1,138.00",Worcestershire County Council,195,Executive Director Lec,Operation Equip -Rep & Maint,4152
http://statistics.data.gov.uk/id/local-authority/47UD,Redditch Borough Council,21/03/2014,201119,2203016219,"3,311.26",Worcestershire County Council,195,Executive Director Lec,Response R&M,3104
http://statistics.data.gov.uk/id/local-authority/47UD,Redditch Borough Council,21/03/2014,201119,2203016219,-146.38,Worcestershire County Council,195,Executive Director Lec,Response R&M,3104
http://statistics.data.gov.uk/id/local-authority/47UD,Redditch Borough Council,21/03/2014,201119,2203016219,30,Worcestershire County Council,195,Executive Director Lec,Response R&M,3104
http://statistics.data.gov.uk/id/local-authority/47UD,Redditch Borough Council,21/03/2014,201119,2203016219,604.04,Worcestershire County Council,195,Executive Director Lec,Response R&M,3104
http://statistics.data.gov.uk/id/local-authority/47UD,Redditch Borough Council,21/03/2014,201119,2203016219,"1,113.88",Worcestershire County Council,195,Executive Director Lec,Response R&M,3104
http://statistics.data.gov.uk/id/local-authority/47UD,Redditch Borough Council,21/03/2014,201119,2203016219,36,Worcestershire County Council,195,Executive Director Lec,Response R&M,3104
http://statistics.data.gov.uk/id/local-authority/47UD,Redditch Borough Council,21/03/2014,201119,2203016219,535.98,Worcestershire County Council,195,Executive Director Lec,Response R&M,3104
http://statistics.data.gov.uk/id/local-authority/47UD,Redditch Borough Council,21/03/2014,201119,2203016219,"1,449.50",Worcestershire County Council,195,Executive Director Lec,Response R&M,3104
http://statistics.data.gov.uk/id/local-authority/47UD,Redditch Borough Council,21/03/2014,201119,2203016219,160.08,Worcestershire County Council,195,Executive Director Lec,Response R&M,3104
http://statistics.data.gov.uk/id/local-authority/47UD,Redditch Borough Council,21/03/2014,201119,2203016219,459.79,Worcestershire County Council,195,Executive Director Lec,Response R&M,3104
http://statistics.data.gov.uk/id/local-authority/47UD,Redditch Borough Council,21/03/2014,201119,2203016219,8.7,Worcestershire County Council,195,Executive Director Lec,Response R&M,3104
http://statistics.data.gov.uk/id/local-authority/47UD,Redditch Borough Council,21/03/2014,201119,2203016219,297.34,Worcestershire County Council,195,Executive Director Lec,Response R&M,3104
http://statistics.data.gov.uk/id/local-authority/47UD,Redditch Borough Council,21/03/2014,201119,2203016219,288.75,Worcestershire County Council,195,Executive Director Lec,Response R&M,3104
http://statistics.data.gov.uk/id/local-authority/47UD,Redditch Borough Council,21/03/2014,201119,2203016219,51.48,Worcestershire County Council,195,Executive Director Lec,Response R&M,3104
http://statistics.data.gov.uk/id/local-authority/47UD,Redditch Borough Council,21/03/2014,201119,2203016219,652.5,Worcestershire County Council,195,Executive Director Lec,Response R&M,3104
http://statistics.data.gov.uk/id/local-authority/47UD,Redditch Borough Council,21/03/2014,201119,2203016219,83.38,Worcestershire County Council,195,Executive Director Lec,Response R&M,3104
http://statistics.data.gov.uk/id/local-authority/47UD,Redditch Borough Council,21/03/2014,201119,2203016219,"4,314.77",Worcestershire County Council,195,Executive Director Lec,Response R&M,3104
http://statistics.data.gov.uk/id/local-authority/47UD,Redditch Borough Council,21/03/2014,201119,2203016219,642.92,Worcestershire County Council,195,Executive Director Lec,Security Costs,3500
http://statistics.data.gov.uk/id/local-authority/47UD,Redditch Borough Council,21/03/2014,201119,2203016219,"1,640.03",Worcestershire County Council,195,Housing Repairs Account,Contractors,5158
http://statistics.data.gov.uk/id/local-authority/47UD,Redditch Borough Council,21/03/2014,201119,2203016219,"1,231.71",Worcestershire County Council,195,Housing Repairs Account,Repairs In House Team,3107
http://statistics.data.gov.uk/id/local-authority/47UD,Redditch Borough Council,21/03/2014,201119,2203016219,619.5,Worcestershire County Council,195,Rbc Balance Sheet,Contract Payments,8131
http://statistics.data.gov.uk/id/local-authority/47UD,Redditch Borough Council,21/03/2014,201872,2203016239,"32,920.71",Worcestershire County Council,195,Exec. Director Fin. & Resource,Wett Shared Service Cost,5013
http://statistics.data.gov.uk/id/local-authority/47UD,Redditch Borough Council,21/03/2014,201872,2203016239,"47,570.04",Worcestershire County Council,195,Exec. Director Fin. & Resource,Wett Shared Service Cost,5013
http://statistics.data.gov.uk/id/local-authority/47UD,Redditch Borough Council,21/03/2014,203208,2204073551,504.83,Worcestershire County Council,195,Surestart Project,Caretaking,3603
http://statistics.data.gov.uk/id/local-authority/47UD,Redditch Borough Council,21/03/2014,203208,2204073551,568.38,Worcestershire County Council,195,Surestart Project,Electricity,3300
http://statistics.data.gov.uk/id/local-authority/47UD,Redditch Borough Council,21/03/2014,203208,2204073551,382.8,Worcestershire County Council,195,Surestart Project,Gas,3301
http://statistics.data.gov.uk/id/local-authority/47UD,Redditch Borough Council,21/03/2014,203208,2204073551,308.85,Worcestershire County Council,195,Surestart Project,Refuse Collection,3602
http://statistics.data.gov.uk/id/local-authority/47UD,Redditch Borough Council,21/03/2014,203208,2204073551,396.76,Worcestershire County Council,195,Surestart Project,Water Charges,3450
http://statistics.data.gov.uk/id/local-authority/47UD,Redditch Borough Council,21/03/2014,203209,2204074081,492.14,Worcestershire County Council,195,Surestart Project,Electricity,3300
http://statistics.data.gov.uk/id/local-authority/47UD,Redditch Borough Council,21/03/2014,203209,2204074081,439.65,Worcestershire County Council,195,Surestart Project,Gas,3301
http://statistics.data.gov.uk/id/local-authority/47UD,Redditch Borough Council,21/03/2014,203209,2204074081,254.28,Worcestershire County Council,195,Surestart Project,Water Charges,3450
http://statistics.data.gov.uk/id/local-authority/47UD,Redditch Borough Council,27/03/2014,201811,2202042576,"21,136.09",Worcestershire County Council,195,Executive Director Lec,Refuse Collection,3602
http://statistics.data.gov.uk/id/local-authority/47UD,Redditch Borough Council,27/03/2014,202051,2202042666,839.1,Worcestershire County Council,195,Rbc Balance Sheet,Direct Payments,8132
http://statistics.data.gov.uk/id/local-authority/47UD,Redditch Borough Council,27/03/2014,202503,2204073482,162,Worcestershire County Council,195,Executive Director Lec,Hire Of Premises,3351
http://statistics.data.gov.uk/id/local-authority/47UD,Redditch Borough Council,27/03/2014,198681,40134198,"2,308.08",Local Government Association,1978,Exec. Director Fin. & Resource,Legal Fees,4350
http://statistics.data.gov.uk/id/local-authority/47UD,Redditch Borough Council,27/03/2014,203648,40132699,"1,007.28",Local Government Association,1978,Exec. Director Fin. & Resource,Legal Fees,4350
http://statistics.data.gov.uk/id/local-authority/47UD,Redditch Borough Council,14/03/2014,201542,1310,256,E & J Contractors Ltd,201,Housing Repairs Account,Drainage,3201
http://statistics.data.gov.uk/id/local-authority/47UD,Redditch Borough Council,14/03/2014,201543,1311,256,E & J Contractors Ltd,201,Rbc Balance Sheet,Contract Payments,8131
http://statistics.data.gov.uk/id/local-authority/47UD,Redditch Borough Council,14/03/2014,201544,1312,256,E & J Contractors Ltd,201,Rbc Balance Sheet,Contract Payments,8131
http://statistics.data.gov.uk/id/local-authority/47UD,Redditch Borough Council,14/03/2014,201554,1313,256,E & J Contractors Ltd,201,Rbc Balance Sheet,Contract Payments,8131
http://statistics.data.gov.uk/id/local-authority/47UD,Redditch Borough Council,14/03/2014,201555,1314,256,E & J Contractors Ltd,201,Rbc Balance Sheet,Contract Payments,8131
http://statistics.data.gov.uk/id/local-authority/47UD,Redditch Borough Council,14/03/2014,201557,1319,172.8,E & J Contractors Ltd,201,Housing Repairs Account,Drainage,3201
http://statistics.data.gov.uk/id/local-authority/47UD,Redditch Borough Council,14/03/2014,201558,1320,96,E & J Contractors Ltd,201,Housing Repairs Account,Drainage,3201
http://statistics.data.gov.uk/id/local-authority/47UD,Redditch Borough Council,14/03/2014,201559,1321,172.8,E & J Contractors Ltd,201,Housing Repairs Account,Drainage,3201
http://statistics.data.gov.uk/id/local-authority/47UD,Redditch Borough Council,14/03/2014,201560,1322,172.8,E & J Contractors Ltd,201,Housing Repairs Account,Drainage,3201
http://statistics.data.gov.uk/id/local-authority/47UD,Redditch Borough Council,14/03/2014,201562,1323,286,E & J Contractors Ltd,201,Housing Repairs Account,Drainage,3201
http://statistics.data.gov.uk/id/local-authority/47UD,Redditch Borough Council,21/03/2014,201556,1318,96,E & J Contractors Ltd,201,Housing Repairs Account,Drainage,3201
http://statistics.data.gov.uk/id/local-authority/47UD,Redditch Borough Council,21/03/2014,202287,1325,124.2,E & J Contractors Ltd,201,Housing Repairs Account,Drainage,3201
http://statistics.data.gov.uk/id/local-authority/47UD,Redditch Borough Council,21/03/2014,202288,1326,172.8,E & J Contractors Ltd,201,Housing Repairs Account,Drainage,3201
http://statistics.data.gov.uk/id/local-authority/47UD,Redditch Borough Council,21/03/2014,202289,1327,124.2,E & J Contractors Ltd,201,Housing Repairs Account,Drainage,3201
http://statistics.data.gov.uk/id/local-authority/47UD,Redditch Borough Council,21/03/2014,202290,1328,144,E & J Contractors Ltd,201,Housing Repairs Account,Drainage,3201
http://statistics.data.gov.uk/id/local-authority/47UD,Redditch Borough Council,21/03/2014,202293,1341,124.2,E & J Contractors Ltd,201,Housing Repairs Account,Drainage,3201
http://statistics.data.gov.uk/id/local-authority/47UD,Redditch Borough Council,21/03/2014,202294,1345,124.2,E & J Contractors Ltd,201,Housing Repairs Account,Drainage,3201
http://statistics.data.gov.uk/id/local-authority/47UD,Redditch Borough Council,21/03/2014,202295,1344,96,E & J Contractors Ltd,201,Housing Repairs Account,Contractors,5158
http://statistics.data.gov.uk/id/local-authority/47UD,Redditch Borough Council,21/03/2014,202296,1342,172.8,E & J Contractors Ltd,201,Housing Repairs Account,Drainage,3201
http://statistics.data.gov.uk/id/local-authority/47UD,Redditch Borough Council,21/03/2014,202297,1346,96,E & J Contractors Ltd,201,Housing Repairs Account,Drainage,3201
http://statistics.data.gov.uk/id/local-authority/47UD,Redditch Borough Council,21/03/2014,202298,1343,144,E & J Contractors Ltd,201,Housing Repairs Account,Contractors,5158
http://statistics.data.gov.uk/id/local-authority/47UD,Redditch Borough Council,27/03/2014,202291,1329,629.8,E & J Contractors Ltd,201,Housing Repairs Account,Drainage,3201
http://statistics.data.gov.uk/id/local-authority/47UD,Redditch Borough Council,27/03/2014,202292,1340,747.28,E & J Contractors Ltd,201,Housing Repairs Account,Drainage,3201
http://statistics.data.gov.uk/id/local-authority/47UD,Redditch Borough Council,07/03/2014,202198,23387,"75,000.00",Erris (Builders)Ltd,21,Rbc Balance Sheet,Contract Payments,8131
http://statistics.data.gov.uk/id/local-authority/47UD,Redditch Borough Council,14/03/2014,202674,1800000160,"15,280.00",Zurich Municipal,2100,Exec. Director Fin. & Resource,Misc. Insurance,4734
http://statistics.data.gov.uk/id/local-authority/47UD,Redditch Borough Council,21/03/2014,203195,HT171,660.24,Holly Trees Day Nursery,2187,Surestart Project,Market Place,4742
http://statistics.data.gov.uk/id/local-authority/47UD,Redditch Borough Council,07/03/2014,202095,8040016195,"1,500.00",Worcester City Council,2238,Exec. Director Fin. & Resource,Audit Fees,4359
http://statistics.data.gov.uk/id/local-authority/47UD,Redditch Borough Council,14/03/2014,202097,8040016182,"79,900.00",Worcester City Council,2238,Exec. Director Fin. & Resource,Wett Shared Service Cost,5013
http://statistics.data.gov.uk/id/local-authority/47UD,Redditch Borough Council,14/03/2014,202689,ST/BROMREDBER01,"5,058.20",First People,2274,Executive Director Lec,Consultants Fees,4351
http://statistics.data.gov.uk/id/local-authority/47UD,Redditch Borough Council,07/03/2014,201635,SI18173,"7,920.00",Ssi Schaefer,2278,Crossgate Stocks,Received Not Invoiced,2096
http://statistics.data.gov.uk/id/local-authority/47UD,Redditch Borough Council,27/03/2014,202811,2346401,698.16,Phonographic Performance Limited (Ppl),2333,Executive Director Lec,Licences,4710
http://statistics.data.gov.uk/id/local-authority/47UD,Redditch Borough Council,07/03/2014,201585,157422,720.51,Wykamol Group,2360,Crossgate Stocks,Received Not Invoiced,2096
http://statistics.data.gov.uk/id/local-authority/47UD,Redditch Borough Council,07/03/2014,201674,323838,518.58,First Personnel Group Limited,2364,Housing Revenue Account,Agency Staff,3020
http://statistics.data.gov.uk/id/local-authority/47UD,Redditch Borough Council,14/03/2014,202701,324730,615.06,First Personnel Group Limited,2364,Housing Revenue Account,Agency Staff,3020
http://statistics.data.gov.uk/id/local-authority/47UD,Redditch Borough Council,27/03/2014,202084,324287,514.56,First Personnel Group Limited,2364,Housing Revenue Account,Agency Staff,3020
http://statistics.data.gov.uk/id/local-authority/47UD,Redditch Borough Council,27/03/2014,203141,325181,225.12,First Personnel Group Limited,2364,Housing Revenue Account,Agency Staff,3020
http://statistics.data.gov.uk/id/local-authority/47UD,Redditch Borough Council,21/03/2014,202566,683,200,Abbeyclean,2367,Surestart Project,Contract Cleaning,3600
http://statistics.data.gov.uk/id/local-authority/47UD,Redditch Borough Council,21/03/2014,202566,683,500,Abbeyclean,2367,Surestart Project,Contract Cleaning,3600
http://statistics.data.gov.uk/id/local-authority/47UD,Redditch Borough Council,21/03/2014,202566,683,200,Abbeyclean,2367,Surestart Project,Contract Cleaning,3600
http://statistics.data.gov.uk/id/local-authority/47UD,Redditch Borough Council,21/03/2014,202566,683,375,Abbeyclean,2367,Surestart Project,Contract Cleaning,3600
http://statistics.data.gov.uk/id/local-authority/47UD,Redditch Borough Council,14/03/2014,202494,1.09662E+13,682.19,Martin Brokers (Uk) Ltd,2375,Notional Deprn And Financing,Commission - Short Term Borrow,5801
http://statistics.data.gov.uk/id/local-authority/47UD,Redditch Borough Council,21/03/2014,203163,326,150,Bourne Design,2389,Surestart Project,Publicity & Promotion,4700
http://statistics.data.gov.uk/id/local-authority/47UD,Redditch Borough Council,21/03/2014,203164,316,368,Bourne Design,2389,Surestart Project,Publicity & Promotion,4700
http://statistics.data.gov.uk/id/local-authority/47UD,Redditch Borough Council,21/03/2014,203165,322,38,Bourne Design,2389,Surestart Project,Publicity & Promotion,4700
http://statistics.data.gov.uk/id/local-authority/47UD,Redditch Borough Council,21/03/2014,203166,325,160,Bourne Design,2389,Surestart Project,Publicity & Promotion,4700
http://statistics.data.gov.uk/id/local-authority/47UD,Redditch Borough Council,21/03/2014,203167,320,33,Bourne Design,2389,Surestart Project,Publicity & Promotion,4700
http://statistics.data.gov.uk/id/local-authority/47UD,Redditch Borough Council,21/03/2014,203168,313,136,Bourne Design,2389,Surestart Project,Publicity & Promotion,4700
http://statistics.data.gov.uk/id/local-authority/47UD,Redditch Borough Council,21/03/2014,203169,315,"2,936.95",Bourne Design,2389,Surestart Project,Publicity & Promotion,4700
http://statistics.data.gov.uk/id/local-authority/47UD,Redditch Borough Council,21/03/2014,203170,312,136,Bourne Design,2389,Surestart Project,Publicity & Promotion,4700
http://statistics.data.gov.uk/id/local-authority/47UD,Redditch Borough Council,21/03/2014,203171,319,515,Bourne Design,2389,Surestart Project,Publicity & Promotion,4700
http://statistics.data.gov.uk/id/local-authority/47UD,Redditch Borough Council,21/03/2014,203172,314,155,Bourne Design,2389,Surestart Project,Publicity & Promotion,4700
http://statistics.data.gov.uk/id/local-authority/47UD,Redditch Borough Council,21/03/2014,203173,318,95,Bourne Design,2389,Surestart Project,Publicity & Promotion,4700
http://statistics.data.gov.uk/id/local-authority/47UD,Redditch Borough Council,21/03/2014,203174,317,240,Bourne Design,2389,Surestart Project,Publicity & Promotion,4700
http://statistics.data.gov.uk/id/local-authority/47UD,Redditch Borough Council,21/03/2014,203175,323,"1,910.00",Bourne Design,2389,Surestart Project,Publicity & Promotion,4700
http://statistics.data.gov.uk/id/local-authority/47UD,Redditch Borough Council,21/03/2014,203176,324,285,Bourne Design,2389,Surestart Project,Publicity & Promotion,4700
http://statistics.data.gov.uk/id/local-authority/47UD,Redditch Borough Council,21/03/2014,203177,327,225,Bourne Design,2389,Surestart Project,Publicity & Promotion,4700
http://statistics.data.gov.uk/id/local-authority/47UD,Redditch Borough Council,21/03/2014,203178,329,140,Bourne Design,2389,Surestart Project,Publicity & Promotion,4700
http://statistics.data.gov.uk/id/local-authority/47UD,Redditch Borough Council,21/03/2014,203179,330,115,Bourne Design,2389,Surestart Project,Publicity & Promotion,4700
http://statistics.data.gov.uk/id/local-authority/47UD,Redditch Borough Council,07/03/2014,201520,307044161,86.7,Eurocell Building Plastics Ltd,24,Housing Repairs Account,Materials,4170
http://statistics.data.gov.uk/id/local-authority/47UD,Redditch Borough Council,07/03/2014,201699,307062373,"1,448.50",Eurocell Building Plastics Ltd,24,Crossgate Stocks,Received Not Invoiced,2096
http://statistics.data.gov.uk/id/local-authority/47UD,Redditch Borough Council,21/03/2014,202130,307097453,"1,448.50",Eurocell Building Plastics Ltd,24,Crossgate Stocks,Received Not Invoiced,2096
http://statistics.data.gov.uk/id/local-authority/47UD,Redditch Borough Council,27/03/2014,202133,307094803,31.62,Eurocell Building Plastics Ltd,24,Housing Repairs Account,Materials,4170
http://statistics.data.gov.uk/id/local-authority/47UD,Redditch Borough Council,21/03/2014,203210,600107570,448.79,Severn Trent Water,2411,Surestart Project,Water Charges,3450
http://statistics.data.gov.uk/id/local-authority/47UD,Redditch Borough Council,27/03/2014,203655,7310028031,607.86,Severn Trent Water,2411,Housing Revenue Account,Water Charges,3450
http://statistics.data.gov.uk/id/local-authority/47UD,Redditch Borough Council,07/03/2014,201122,INV230019,80,Tpg Disable Aids,242,Rbc Balance Sheet,Contract Payments,8131
http://statistics.data.gov.uk/id/local-authority/47UD,Redditch Borough Council,14/03/2014,201280,INV230245,63,Tpg Disable Aids,242,Rbc Balance Sheet,Contract Payments,8131
http://statistics.data.gov.uk/id/local-authority/47UD,Redditch Borough Council,14/03/2014,201281,INV230244,60,Tpg Disable Aids,242,Rbc Balance Sheet,Contract Payments,8131
http://statistics.data.gov.uk/id/local-authority/47UD,Redditch Borough Council,14/03/2014,201851,INV230247,60,Tpg Disable Aids,242,Rbc Balance Sheet,Contract Payments,8131
http://statistics.data.gov.uk/id/local-authority/47UD,Redditch Borough Council,21/03/2014,202157,INV230699,"1,235.00",Tpg Disable Aids,242,Rbc Balance Sheet,Contract Payments,8131
http://statistics.data.gov.uk/id/local-authority/47UD,Redditch Borough Council,27/03/2014,202577,1163035,774.31,Mcd Kidderminster,255,Housing Repairs Account,Materials,4170
http://statistics.data.gov.uk/id/local-authority/47UD,Redditch Borough Council,07/03/2014,201797,176164,159,Malcolm Dyson Stationers Ltd,262,Executive Director Lec,Operational Equip- Purchase,4150
http://statistics.data.gov.uk/id/local-authority/47UD,Redditch Borough Council,14/03/2014,200937,176010,5.95,Malcolm Dyson Stationers Ltd,262,Executive Director Lec,Office Consumables,4304
http://statistics.data.gov.uk/id/local-authority/47UD,Redditch Borough Council,14/03/2014,202686,176001,115.5,Malcolm Dyson Stationers Ltd,262,Executive Director Lec,Office Consumables,4304
http://statistics.data.gov.uk/id/local-authority/47UD,Redditch Borough Council,21/03/2014,200732,175600,39,Malcolm Dyson Stationers Ltd,262,Surestart Project,Computer Consumables,4500
http://statistics.data.gov.uk/id/local-authority/47UD,Redditch Borough Council,21/03/2014,200732,175600,357,Malcolm Dyson Stationers Ltd,262,Surestart Project,Computer Consumables,4500
http://statistics.data.gov.uk/id/local-authority/47UD,Redditch Borough Council,21/03/2014,201259,176119,89,Malcolm Dyson Stationers Ltd,262,Surestart Project,Computer Consumables,4500
http://statistics.data.gov.uk/id/local-authority/47UD,Redditch Borough Council,21/03/2014,201868,176285,28.8,Malcolm Dyson Stationers Ltd,262,Surestart Project,Office Consumables,4304
http://statistics.data.gov.uk/id/local-authority/47UD,Redditch Borough Council,21/03/2014,201870,176274,98.5,Malcolm Dyson Stationers Ltd,262,Surestart Project,Office Equipment Purchase,4000
http://statistics.data.gov.uk/id/local-authority/47UD,Redditch Borough Council,27/03/2014,203074,176544,187,Malcolm Dyson Stationers Ltd,262,Executive Director Lec,Office Consumables,4304
http://statistics.data.gov.uk/id/local-authority/47UD,Redditch Borough Council,14/03/2014,202764,169640,757.3,Inn Express,263,Executive Director Lec,Catering Provisions(Vat Exempt,4200
http://statistics.data.gov.uk/id/local-authority/47UD,Redditch Borough Council,14/03/2014,202765,169744,-278.3,Inn Express,263,Executive Director Lec,Catering Provisions(Vat Exempt,4200
http://statistics.data.gov.uk/id/local-authority/47UD,Redditch Borough Council,27/03/2014,203500,7304,"7,700.00",Autocross,2642,Executive Director Lec,Contractors,5158
http://statistics.data.gov.uk/id/local-authority/47UD,Redditch Borough Council,07/03/2014,201120,7455,140,M & D Carpentry & Bldng Contractor Ltd,265,Housing Repairs Account,Contractors,5158
http://statistics.data.gov.uk/id/local-authority/47UD,Redditch Borough Council,07/03/2014,201120,7455,"3,894.53",M & D Carpentry & Bldng Contractor Ltd,265,Rbc Balance Sheet,Contract Payments,8131
http://statistics.data.gov.uk/id/local-authority/47UD,Redditch Borough Council,07/03/2014,201545,7454,"14,310.96",M & D Carpentry & Bldng Contractor Ltd,265,Rbc Balance Sheet,Contract Payments,8131
http://statistics.data.gov.uk/id/local-authority/47UD,Redditch Borough Council,14/03/2014,201546,7460,"19,314.74",M & D Carpentry & Bldng Contractor Ltd,265,Rbc Balance Sheet,Contract Payments,8131
http://statistics.data.gov.uk/id/local-authority/47UD,Redditch Borough Council,14/03/2014,201704,7464,"2,740.00",M & D Carpentry & Bldng Contractor Ltd,265,Rbc Balance Sheet,Contract Payments,8131
http://statistics.data.gov.uk/id/local-authority/47UD,Redditch Borough Council,14/03/2014,201836,7478,"20,902.38",M & D Carpentry & Bldng Contractor Ltd,265,Rbc Balance Sheet,Contract Payments,8131
http://statistics.data.gov.uk/id/local-authority/47UD,Redditch Borough Council,14/03/2014,201874,7480,"21,454.56",M & D Carpentry & Bldng Contractor Ltd,265,Rbc Balance Sheet,Contract Payments,8131
http://statistics.data.gov.uk/id/local-authority/47UD,Redditch Borough Council,14/03/2014,202077,7485,"9,119.14",M & D Carpentry & Bldng Contractor Ltd,265,Rbc Balance Sheet,Contract Payments,8131
http://statistics.data.gov.uk/id/local-authority/47UD,Redditch Borough Council,14/03/2014,202078,7486,"1,328.05",M & D Carpentry & Bldng Contractor Ltd,265,Rbc Balance Sheet,Contract Payments,8131
http://statistics.data.gov.uk/id/local-authority/47UD,Redditch Borough Council,27/03/2014,202962,7499,"7,734.16",M & D Carpentry & Bldng Contractor Ltd,265,Rbc Balance Sheet,Contract Payments,8131
http://statistics.data.gov.uk/id/local-authority/47UD,Redditch Borough Council,27/03/2014,203088,7508,"2,936.23",M & D Carpentry & Bldng Contractor Ltd,265,Housing Repairs Account,Contractors,5158
http://statistics.data.gov.uk/id/local-authority/47UD,Redditch Borough Council,27/03/2014,203090,7501,"1,742.00",M & D Carpentry & Bldng Contractor Ltd,265,Housing Repairs Account,Contractors,5158
http://statistics.data.gov.uk/id/local-authority/47UD,Redditch Borough Council,27/03/2014,203090,7501,"11,011.00",M & D Carpentry & Bldng Contractor Ltd,265,Rbc Balance Sheet,Contract Payments,8131
http://statistics.data.gov.uk/id/local-authority/47UD,Redditch Borough Council,27/03/2014,203092,7500,"3,577.79",M & D Carpentry & Bldng Contractor Ltd,265,Housing Repairs Account,Contractors,5158
http://statistics.data.gov.uk/id/local-authority/47UD,Redditch Borough Council,27/03/2014,203094,7506,"2,100.48",M & D Carpentry & Bldng Contractor Ltd,265,Housing Repairs Account,Contractors,5158
http://statistics.data.gov.uk/id/local-authority/47UD,Redditch Borough Council,27/03/2014,203124,7507,545.81,M & D Carpentry & Bldng Contractor Ltd,265,Housing Repairs Account,Contractors,5158
http://statistics.data.gov.uk/id/local-authority/47UD,Redditch Borough Council,27/03/2014,203512,DFG/13037,"-1,645.50",Terry Group Ltd,2659,Executive Director Lec,Administration Fee,6364
http://statistics.data.gov.uk/id/local-authority/47UD,Redditch Borough Council,27/03/2014,203512,DFG/13037,"10,505.50",Terry Group Ltd,2659,Rbc Balance Sheet,Disabled Facilities Grant,8701
http://statistics.data.gov.uk/id/local-authority/47UD,Redditch Borough Council,27/03/2014,203622,DFG/11967,"4,397.50",Liftability Limited,272,Rbc Balance Sheet,Disabled Facilities Grant,8701
http://statistics.data.gov.uk/id/local-authority/47UD,Redditch Borough Council,07/03/2014,202192,3940,690,Prestige Preservation Ltd,2918,Housing Repairs Account,Contractors,5158
http://statistics.data.gov.uk/id/local-authority/47UD,Redditch Borough Council,14/03/2014,202671,3972,690,Prestige Preservation Ltd,2918,Housing Repairs Account,Contractors,5158
http://statistics.data.gov.uk/id/local-authority/47UD,Redditch Borough Council,14/03/2014,202166,29993,"9,634.10",Robert Bruce Construction  Limited,2950,Rbc Balance Sheet,Contract Payments,8131
http://statistics.data.gov.uk/id/local-authority/47UD,Redditch Borough Council,07/03/2014,201294,0705/0163989,80.91,Jewson Ltd,300,Housing Repairs Account,Materials,4170
http://statistics.data.gov.uk/id/local-authority/47UD,Redditch Borough Council,07/03/2014,201297,0705/0163986,12.99,Jewson Ltd,300,Housing Repairs Account,Operational Equip- Purchase,4150
http://statistics.data.gov.uk/id/local-authority/47UD,Redditch Borough Council,07/03/2014,201350,0705/0164164,10.68,Jewson Ltd,300,Housing Repairs Account,Materials,4170
http://statistics.data.gov.uk/id/local-authority/47UD,Redditch Borough Council,07/03/2014,201353,0705/0164133,237.6,Jewson Ltd,300,Crossgate Stocks,Received Not Invoiced,2096
http://statistics.data.gov.uk/id/local-authority/47UD,Redditch Borough Council,07/03/2014,201356,0705/0164108,39.65,Jewson Ltd,300,Housing Repairs Account,Materials,4170
http://statistics.data.gov.uk/id/local-authority/47UD,Redditch Borough Council,07/03/2014,201658,0705/0164302,15.5,Jewson Ltd,300,Housing Repairs Account,Materials,4170
http://statistics.data.gov.uk/id/local-authority/47UD,Redditch Borough Council,07/03/2014,201659,0705/0164281,24.98,Jewson Ltd,300,Housing Repairs Account,Materials,4170
http://statistics.data.gov.uk/id/local-authority/47UD,Redditch Borough Council,07/03/2014,201660,0705/0164246,37.44,Jewson Ltd,300,Housing Repairs Account,Materials,4170
http://statistics.data.gov.uk/id/local-authority/47UD,Redditch Borough Council,21/03/2014,202099,0705/0164460,237.6,Jewson Ltd,300,Crossgate Stocks,Received Not Invoiced,2096
http://statistics.data.gov.uk/id/local-authority/47UD,Redditch Borough Council,21/03/2014,202100,0705/0164468,22.99,Jewson Ltd,300,Housing Repairs Account,Materials,4170
http://statistics.data.gov.uk/id/local-authority/47UD,Redditch Borough Council,21/03/2014,202102,0705/0164397,15.2,Jewson Ltd,300,Housing Repairs Account,Materials,4170
http://statistics.data.gov.uk/id/local-authority/47UD,Redditch Borough Council,21/03/2014,202103,0705/0164435,39.65,Jewson Ltd,300,Housing Repairs Account,Materials,4170
http://statistics.data.gov.uk/id/local-authority/47UD,Redditch Borough Council,21/03/2014,202105,0705/0164448,5.07,Jewson Ltd,300,Housing Repairs Account,Materials,4170
http://statistics.data.gov.uk/id/local-authority/47UD,Redditch Borough Council,27/03/2014,202556,0705/0164544,5.07,Jewson Ltd,300,Housing Repairs Account,Materials,4170
http://statistics.data.gov.uk/id/local-authority/47UD,Redditch Borough Council,27/03/2014,202557,0705/0164599,58.85,Jewson Ltd,300,Housing Repairs Account,Materials,4170
http://statistics.data.gov.uk/id/local-authority/47UD,Redditch Borough Council,27/03/2014,201675,37807,-105,Janitorial Direct Ltd,302,Rbc Balance Sheet,Stock Account (Cedar),1201
http://statistics.data.gov.uk/id/local-authority/47UD,Redditch Borough Council,27/03/2014,202938,38356,298.01,Janitorial Direct Ltd,302,Crossgate Stocks,Received Not Invoiced,2096
http://statistics.data.gov.uk/id/local-authority/47UD,Redditch Borough Council,27/03/2014,202940,37745,195,Janitorial Direct Ltd,302,Crossgate Stocks,Received Not Invoiced,2096
http://statistics.data.gov.uk/id/local-authority/47UD,Redditch Borough Council,27/03/2014,202942,37539,413.68,Janitorial Direct Ltd,302,Crossgate Stocks,Received Not Invoiced,2096
http://statistics.data.gov.uk/id/local-authority/47UD,Redditch Borough Council,27/03/2014,202943,37518,300,Janitorial Direct Ltd,302,Crossgate Stocks,Received Not Invoiced,2096
http://statistics.data.gov.uk/id/local-authority/47UD,Redditch Borough Council,27/03/2014,202944,37285,298,Janitorial Direct Ltd,302,Crossgate Stocks,Received Not Invoiced,2096
http://statistics.data.gov.uk/id/local-authority/47UD,Redditch Borough Council,14/03/2014,202680,81176967,"1,240.66",Office Depot (Uk) Ltd,3098,Chief Executive,Central Printing,4301
http://statistics.data.gov.uk/id/local-authority/47UD,Redditch Borough Council,14/03/2014,202680,81176967,9.65,Office Depot (Uk) Ltd,3098,Exec. Director Fin. & Resource,Office Consumables,4304
http://statistics.data.gov.uk/id/local-authority/47UD,Redditch Borough Council,14/03/2014,202680,81176967,1.11,Office Depot (Uk) Ltd,3098,Exec. Director Fin. & Resource,Office Consumables,4304
http://statistics.data.gov.uk/id/local-authority/47UD,Redditch Borough Council,14/03/2014,202680,81176967,10.98,Office Depot (Uk) Ltd,3098,Exec. Director Fin. & Resource,Office Consumables,4304
http://statistics.data.gov.uk/id/local-authority/47UD,Redditch Borough Council,14/03/2014,202680,81176967,1.25,Office Depot (Uk) Ltd,3098,Exec. Director Fin. & Resource,Office Consumables,4304
http://statistics.data.gov.uk/id/local-authority/47UD,Redditch Borough Council,14/03/2014,202680,81176967,46.05,Office Depot (Uk) Ltd,3098,Exec. Director Prrh,Office Consumables,4304
http://statistics.data.gov.uk/id/local-authority/47UD,Redditch Borough Council,14/03/2014,202680,81176967,54.45,Office Depot (Uk) Ltd,3098,Executive Director Lec,Catering Provisions(Vat Exempt,4200
http://statistics.data.gov.uk/id/local-authority/47UD,Redditch Borough Council,14/03/2014,202680,81176967,48.21,Office Depot (Uk) Ltd,3098,Executive Director Lec,Office Consumables,4304
http://statistics.data.gov.uk/id/local-authority/47UD,Redditch Borough Council,14/03/2014,202680,81176967,44.87,Office Depot (Uk) Ltd,3098,Executive Director Lec,Office Consumables,4304
http://statistics.data.gov.uk/id/local-authority/47UD,Redditch Borough Council,14/03/2014,202680,81176967,13.54,Office Depot (Uk) Ltd,3098,Executive Director Lec,Office Consumables,4304
http://statistics.data.gov.uk/id/local-authority/47UD,Redditch Borough Council,14/03/2014,202680,81176967,14,Office Depot (Uk) Ltd,3098,Executive Director Lec,Office Consumables,4304
http://statistics.data.gov.uk/id/local-authority/47UD,Redditch Borough Council,14/03/2014,202680,81176967,86.31,Office Depot (Uk) Ltd,3098,Executive Director Lec,Office Consumables,4304
http://statistics.data.gov.uk/id/local-authority/47UD,Redditch Borough Council,14/03/2014,202680,81176967,6.59,Office Depot (Uk) Ltd,3098,Executive Director Lec,Office Consumables,4304
http://statistics.data.gov.uk/id/local-authority/47UD,Redditch Borough Council,14/03/2014,202680,81176967,69.76,Office Depot (Uk) Ltd,3098,Housing Revenue Account,Office Consumables,4304
http://statistics.data.gov.uk/id/local-authority/47UD,Redditch Borough Council,14/03/2014,202680,81176967,42.39,Office Depot (Uk) Ltd,3098,Surestart Project,Office Consumables,4304
http://statistics.data.gov.uk/id/local-authority/47UD,Redditch Borough Council,14/03/2014,202680,81176967,1.47,Office Depot (Uk) Ltd,3098,Surestart Project,Office Consumables,4304
http://statistics.data.gov.uk/id/local-authority/47UD,Redditch Borough Council,14/03/2014,202680,81176967,6.04,Office Depot (Uk) Ltd,3098,Surestart Project,Office Consumables,4304
http://statistics.data.gov.uk/id/local-authority/47UD,Redditch Borough Council,14/03/2014,202680,81176967,0.46,Office Depot (Uk) Ltd,3098,Surestart Project,Office Consumables,4304
http://statistics.data.gov.uk/id/local-authority/47UD,Redditch Borough Council,27/03/2014,203754,81189626,58.98,Office Depot (Uk) Ltd,3098,Chief Executive,Central Printing,4301
http://statistics.data.gov.uk/id/local-authority/47UD,Redditch Borough Council,27/03/2014,203754,81189626,5.23,Office Depot (Uk) Ltd,3098,Exec. Director Fin. & Resource,Office Consumables,4304
http://statistics.data.gov.uk/id/local-authority/47UD,Redditch Borough Council,27/03/2014,203754,81189626,1.54,Office Depot (Uk) Ltd,3098,Exec. Director Fin. & Resource,Office Consumables,4304
http://statistics.data.gov.uk/id/local-authority/47UD,Redditch Borough Council,27/03/2014,203754,81189626,30.92,Office Depot (Uk) Ltd,3098,Executive Director Lec,Catering Provisions(Vat Exempt,4200
http://statistics.data.gov.uk/id/local-authority/47UD,Redditch Borough Council,27/03/2014,203754,81189626,30.12,Office Depot (Uk) Ltd,3098,Executive Director Lec,Computer Consumables,4500
http://statistics.data.gov.uk/id/local-authority/47UD,Redditch Borough Council,27/03/2014,203754,81189626,52.46,Office Depot (Uk) Ltd,3098,Executive Director Lec,Office Consumables,4304
http://statistics.data.gov.uk/id/local-authority/47UD,Redditch Borough Council,27/03/2014,203754,81189626,53.65,Office Depot (Uk) Ltd,3098,Executive Director Lec,Office Consumables,4304
http://statistics.data.gov.uk/id/local-authority/47UD,Redditch Borough Council,27/03/2014,203754,81189626,51.83,Office Depot (Uk) Ltd,3098,Executive Director Lec,Office Consumables,4304
http://statistics.data.gov.uk/id/local-authority/47UD,Redditch Borough Council,27/03/2014,203754,81189626,1.88,Office Depot (Uk) Ltd,3098,Executive Director Lec,Office Consumables,4304
http://statistics.data.gov.uk/id/local-authority/47UD,Redditch Borough Council,27/03/2014,203754,81189626,5.74,Office Depot (Uk) Ltd,3098,Housing Repairs Account,Office Consumables,4304
http://statistics.data.gov.uk/id/local-authority/47UD,Redditch Borough Council,27/03/2014,203754,81189626,10.37,Office Depot (Uk) Ltd,3098,Housing Revenue Account,Office Consumables,4304
http://statistics.data.gov.uk/id/local-authority/47UD,Redditch Borough Council,27/03/2014,203754,81189626,14.48,Office Depot (Uk) Ltd,3098,Surestart Project,Office Consumables,4304
http://statistics.data.gov.uk/id/local-authority/47UD,Redditch Borough Council,27/03/2014,203754,81189626,24.22,Office Depot (Uk) Ltd,3098,Surestart Project,Office Consumables,4304
http://statistics.data.gov.uk/id/local-authority/47UD,Redditch Borough Council,27/03/2014,203754,81189626,4.51,Office Depot (Uk) Ltd,3098,Surestart Project,Office Consumables,4304
http://statistics.data.gov.uk/id/local-authority/47UD,Redditch Borough Council,27/03/2014,202063,34905619,"1,007.62",Life Fitness (Uk) Ltd,3120,Executive Director Lec,Recreational Equip - Purchase,4100
http://statistics.data.gov.uk/id/local-authority/47UD,Redditch Borough Council,14/03/2014,202673,132,"6,075.00",Iso Property Developments,3154,Rbc Balance Sheet,Disabled Facilities Grant,8701
http://statistics.data.gov.uk/id/local-authority/47UD,Redditch Borough Council,27/03/2014,203621,DFG/11967,"-1,279.25",Iso Property Developments,3154,Executive Director Lec,Administration Fee,6364
http://statistics.data.gov.uk/id/local-authority/47UD,Redditch Borough Council,27/03/2014,203621,DFG/11967,"9,644.25",Iso Property Developments,3154,Rbc Balance Sheet,Disabled Facilities Grant,8701
http://statistics.data.gov.uk/id/local-authority/47UD,Redditch Borough Council,07/03/2014,201118,1800008618,"1,391.67",Halfords,3168,Payroll Control,Payments Over -Current Year,2921
http://statistics.data.gov.uk/id/local-authority/47UD,Redditch Borough Council,21/03/2014,202596,3947,314.09,Smith Bellerby,329,Exec. Director Fin. & Resource,Professional Fees,4352
http://statistics.data.gov.uk/id/local-authority/47UD,Redditch Borough Council,21/03/2014,202596,3947,10.83,Smith Bellerby,329,Exec. Director Fin. & Resource,Water Charges,3450
http://statistics.data.gov.uk/id/local-authority/47UD,Redditch Borough Council,21/03/2014,202596,3947,379.25,Smith Bellerby,329,Executive Director Lec,Water Charges,3450
http://statistics.data.gov.uk/id/local-authority/47UD,Redditch Borough Council,21/03/2014,202596,3947,27.08,Smith Bellerby,329,Executive Director Lec,Water Charges,3450
http://statistics.data.gov.uk/id/local-authority/47UD,Redditch Borough Council,21/03/2014,202596,3947,16.25,Smith Bellerby,329,Executive Director Lec,Water Charges,3450
http://statistics.data.gov.uk/id/local-authority/47UD,Redditch Borough Council,27/03/2014,203666,95512,367.6,Ats Euromaster Ltd,3306,Executive Director Lec,Tyres,3753
http://statistics.data.gov.uk/id/local-authority/47UD,Redditch Borough Council,27/03/2014,203666,95512,94,Ats Euromaster Ltd,3306,Executive Director Lec,Tyres,3753
http://statistics.data.gov.uk/id/local-authority/47UD,Redditch Borough Council,27/03/2014,203666,95512,394.56,Ats Euromaster Ltd,3306,Executive Director Lec,Tyres,3753
http://statistics.data.gov.uk/id/local-authority/47UD,Redditch Borough Council,27/03/2014,203666,95512,55.21,Ats Euromaster Ltd,3306,Executive Director Lec,Tyres,3753
http://statistics.data.gov.uk/id/local-authority/47UD,Redditch Borough Council,27/03/2014,203666,95512,144.34,Ats Euromaster Ltd,3306,Executive Director Lec,Tyres,3753
http://statistics.data.gov.uk/id/local-authority/47UD,Redditch Borough Council,27/03/2014,203666,95512,65.35,Ats Euromaster Ltd,3306,Executive Director Lec,Tyres,3753
http://statistics.data.gov.uk/id/local-authority/47UD,Redditch Borough Council,27/03/2014,203666,95512,74.05,Ats Euromaster Ltd,3306,Executive Director Lec,Tyres,3753
http://statistics.data.gov.uk/id/local-authority/47UD,Redditch Borough Council,27/03/2014,203666,95512,20,Ats Euromaster Ltd,3306,Executive Director Lec,Tyres,3753
http://statistics.data.gov.uk/id/local-authority/47UD,Redditch Borough Council,27/03/2014,203666,95512,3.72,Ats Euromaster Ltd,3306,Executive Director Lec,Tyres,3753
http://statistics.data.gov.uk/id/local-authority/47UD,Redditch Borough Council,27/03/2014,203666,95512,8.06,Ats Euromaster Ltd,3306,Executive Director Lec,Tyres,3753
http://statistics.data.gov.uk/id/local-authority/47UD,Redditch Borough Council,27/03/2014,203666,95512,93,Ats Euromaster Ltd,3306,Executive Director Lec,Tyres,3753
http://statistics.data.gov.uk/id/local-authority/47UD,Redditch Borough Council,27/03/2014,203666,95512,4.64,Ats Euromaster Ltd,3306,Executive Director Lec,Tyres,3753
http://statistics.data.gov.uk/id/local-authority/47UD,Redditch Borough Council,27/03/2014,203666,95512,1.16,Ats Euromaster Ltd,3306,Executive Director Lec,Tyres,3753
http://statistics.data.gov.uk/id/local-authority/47UD,Redditch Borough Council,27/03/2014,203666,95512,9.3,Ats Euromaster Ltd,3306,Executive Director Lec,Tyres,3753
http://statistics.data.gov.uk/id/local-authority/47UD,Redditch Borough Council,27/03/2014,203666,95512,1.86,Ats Euromaster Ltd,3306,Executive Director Lec,Tyres,3753
http://statistics.data.gov.uk/id/local-authority/47UD,Redditch Borough Council,27/03/2014,203666,95512,84.32,Ats Euromaster Ltd,3306,Executive Director Lec,Tyres,3753
http://statistics.data.gov.uk/id/local-authority/47UD,Redditch Borough Council,27/03/2014,203666,95512,21.75,Ats Euromaster Ltd,3306,Executive Director Lec,Tyres,3753
http://statistics.data.gov.uk/id/local-authority/47UD,Redditch Borough Council,27/03/2014,203666,95512,4.35,Ats Euromaster Ltd,3306,Executive Director Lec,Tyres,3753
http://statistics.data.gov.uk/id/local-authority/47UD,Redditch Borough Council,27/03/2014,203666,95512,69.16,Ats Euromaster Ltd,3306,Housing Repairs Account,Tyres,3753
http://statistics.data.gov.uk/id/local-authority/47UD,Redditch Borough Council,27/03/2014,203666,95512,138.32,Ats Euromaster Ltd,3306,Housing Repairs Account,Tyres,3753
http://statistics.data.gov.uk/id/local-authority/47UD,Redditch Borough Council,27/03/2014,203666,95512,8.06,Ats Euromaster Ltd,3306,Housing Repairs Account,Tyres,3753
http://statistics.data.gov.uk/id/local-authority/47UD,Redditch Borough Council,27/03/2014,203666,95512,1.16,Ats Euromaster Ltd,3306,Housing Repairs Account,Tyres,3753
http://statistics.data.gov.uk/id/local-authority/47UD,Redditch Borough Council,27/03/2014,203666,95512,2.32,Ats Euromaster Ltd,3306,Housing Repairs Account,Tyres,3753
http://statistics.data.gov.uk/id/local-authority/47UD,Redditch Borough Council,27/03/2014,203666,95512,3.72,Ats Euromaster Ltd,3306,Housing Repairs Account,Tyres,3753
http://statistics.data.gov.uk/id/local-authority/47UD,Redditch Borough Council,27/03/2014,203666,95512,3.72,Ats Euromaster Ltd,3306,Housing Repairs Account,Tyres,3753
http://statistics.data.gov.uk/id/local-authority/47UD,Redditch Borough Council,27/03/2014,203666,95512,8.7,Ats Euromaster Ltd,3306,Housing Repairs Account,Tyres,3753
http://statistics.data.gov.uk/id/local-authority/47UD,Redditch Borough Council,27/03/2014,203666,95512,8.7,Ats Euromaster Ltd,3306,Housing Repairs Account,Tyres,3753
http://statistics.data.gov.uk/id/local-authority/47UD,Redditch Borough Council,27/03/2014,203666,95512,22.95,Ats Euromaster Ltd,3306,Housing Repairs Account,Tyres,3753
http://statistics.data.gov.uk/id/local-authority/47UD,Redditch Borough Council,14/03/2014,199796,275746,800,Bullivant Media Ltd,3652,Rbc Balance Sheet,Building - Purchase,8102
http://statistics.data.gov.uk/id/local-authority/47UD,Redditch Borough Council,14/03/2014,201534,279042,124.8,Bullivant Media Ltd,3652,Executive Director Lec,Advertising,4735
http://statistics.data.gov.uk/id/local-authority/47UD,Redditch Borough Council,14/03/2014,201535,279209,170,Bullivant Media Ltd,3652,Exec. Director Prrh,Advertising,4735
http://statistics.data.gov.uk/id/local-authority/47UD,Redditch Borough Council,14/03/2014,201536,280014,124.8,Bullivant Media Ltd,3652,Executive Director Lec,Advertising,4735
http://statistics.data.gov.uk/id/local-authority/47UD,Redditch Borough Council,14/03/2014,201839,281646,112,Bullivant Media Ltd,3652,Executive Director Lec,Advertising,4735
http://statistics.data.gov.uk/id/local-authority/47UD,Redditch Borough Council,21/03/2014,202160,282604,112,Bullivant Media Ltd,3652,Executive Director Lec,Advertising,4735
http://statistics.data.gov.uk/id/local-authority/47UD,Redditch Borough Council,07/03/2014,201645,53895,711.25,Force 3 Security Limited,3658,Exec. Director Fin. & Resource,Security Costs,3500
http://statistics.data.gov.uk/id/local-authority/47UD,Redditch Borough Council,07/03/2014,190385,1000/878,550,R S T S Landscaping Limited,370,Executive Director Lec,Operational Equip- Purchase,4150
http://statistics.data.gov.uk/id/local-authority/47UD,Redditch Borough Council,21/03/2014,190386,1000/879,270,R S T S Landscaping Limited,370,Executive Director Lec,Operational Equip- Purchase,4150
http://statistics.data.gov.uk/id/local-authority/47UD,Redditch Borough Council,14/03/2014,202710,272168,758.65,R D Rogers Butchers,373,Housing Revenue Account,Catering Provisions(Vat Exempt,4200
http://statistics.data.gov.uk/id/local-authority/47UD,Redditch Borough Council,07/03/2014,200894,131614,457.94,R & H Electric (Redditch) Ltd,374,Exec. Director Fin. & Resource,Materials,4170
http://statistics.data.gov.uk/id/local-authority/47UD,Redditch Borough Council,07/03/2014,201360,131685,163.92,R & H Electric (Redditch) Ltd,374,Exec. Director Fin. & Resource,Materials,4170
http://statistics.data.gov.uk/id/local-authority/47UD,Redditch Borough Council,07/03/2014,201362,131651,54.86,R & H Electric (Redditch) Ltd,374,Exec. Director Fin. & Resource,Materials,4170
http://statistics.data.gov.uk/id/local-authority/47UD,Redditch Borough Council,07/03/2014,201363,131689,42.56,R & H Electric (Redditch) Ltd,374,Exec. Director Fin. & Resource,Materials,4170
http://statistics.data.gov.uk/id/local-authority/47UD,Redditch Borough Council,07/03/2014,201364,77386,5.5,R & H Electric (Redditch) Ltd,374,Exec. Director Fin. & Resource,Materials,4170
http://statistics.data.gov.uk/id/local-authority/47UD,Redditch Borough Council,07/03/2014,201371,77383,35.27,R & H Electric (Redditch) Ltd,374,Exec. Director Fin. & Resource,Materials,4170
http://statistics.data.gov.uk/id/local-authority/47UD,Redditch Borough Council,21/03/2014,202111,77407,109,R & H Electric (Redditch) Ltd,374,Exec. Director Fin. & Resource,Materials,4170
http://statistics.data.gov.uk/id/local-authority/47UD,Redditch Borough Council,27/03/2014,202109,77435,57.5,R & H Electric (Redditch) Ltd,374,Exec. Director Fin. & Resource,Materials,4170
http://statistics.data.gov.uk/id/local-authority/47UD,Redditch Borough Council,27/03/2014,202614,77523,44,R & H Electric (Redditch) Ltd,374,Executive Director Lec,Materials,4170
http://statistics.data.gov.uk/id/local-authority/47UD,Redditch Borough Council,27/03/2014,202615,77518,54.5,R & H Electric (Redditch) Ltd,374,Exec. Director Fin. & Resource,Materials,4170
http://statistics.data.gov.uk/id/local-authority/47UD,Redditch Borough Council,27/03/2014,202616,131828,235.02,R & H Electric (Redditch) Ltd,374,Exec. Director Fin. & Resource,Materials,4170
http://statistics.data.gov.uk/id/local-authority/47UD,Redditch Borough Council,27/03/2014,202617,131791,413.4,R & H Electric (Redditch) Ltd,374,Crossgate Stocks,Received Not Invoiced,2096
http://statistics.data.gov.uk/id/local-authority/47UD,Redditch Borough Council,27/03/2014,202618,131799,159.3,R & H Electric (Redditch) Ltd,374,Crossgate Stocks,Received Not Invoiced,2096
http://statistics.data.gov.uk/id/local-authority/47UD,Redditch Borough Council,07/03/2014,201317,13104257,"1,195.00",Facultatieve Technologies,38,Rbc Balance Sheet,Contract Payments,8131
http://statistics.data.gov.uk/id/local-authority/47UD,Redditch Borough Council,07/03/2014,201677,9462,563.5,Practical Care Products Ltd,391,Housing Repairs Account,Materials,4170
http://statistics.data.gov.uk/id/local-authority/47UD,Redditch Borough Council,07/03/2014,201679,9460,325,Practical Care Products Ltd,391,Housing Repairs Account,Materials,4170
http://statistics.data.gov.uk/id/local-authority/47UD,Redditch Borough Council,07/03/2014,201680,9445,193,Practical Care Products Ltd,391,Housing Repairs Account,Materials,4170
http://statistics.data.gov.uk/id/local-authority/47UD,Redditch Borough Council,07/03/2014,201681,9444,533.5,Practical Care Products Ltd,391,Housing Repairs Account,Materials,4170
http://statistics.data.gov.uk/id/local-authority/47UD,Redditch Borough Council,21/03/2014,202131,9493,518,Practical Care Products Ltd,391,Housing Repairs Account,Materials,4170
http://statistics.data.gov.uk/id/local-authority/47UD,Redditch Borough Council,27/03/2014,202067,9475,551,Practical Care Products Ltd,391,Housing Repairs Account,Materials,4170
http://statistics.data.gov.uk/id/local-authority/47UD,Redditch Borough Council,27/03/2014,202132,9494,662,Practical Care Products Ltd,391,Housing Repairs Account,Materials,4170
http://statistics.data.gov.uk/id/local-authority/47UD,Redditch Borough Council,07/03/2014,201159,4168 060804,"1,412.62",Bss Group Plc (Pts),395,Crossgate Stocks,Received Not Invoiced,2096
http://statistics.data.gov.uk/id/local-authority/47UD,Redditch Borough Council,07/03/2014,201160,4168 060806,7.48,Bss Group Plc (Pts),395,Crossgate Stocks,Received Not Invoiced,2096
http://statistics.data.gov.uk/id/local-authority/47UD,Redditch Borough Council,07/03/2014,201576,4168 060882,43.09,Bss Group Plc (Pts),395,Housing Repairs Account,Materials,4170
http://statistics.data.gov.uk/id/local-authority/47UD,Redditch Borough Council,07/03/2014,201577,4168 060868,48.11,Bss Group Plc (Pts),395,Housing Repairs Account,Materials,4170
http://statistics.data.gov.uk/id/local-authority/47UD,Redditch Borough Council,07/03/2014,201638,4168 061004,16.09,Bss Group Plc (Pts),395,Housing Repairs Account,Materials,4170
http://statistics.data.gov.uk/id/local-authority/47UD,Redditch Borough Council,21/03/2014,201637,4168 061018,61.99,Bss Group Plc (Pts),395,Housing Repairs Account,Materials,4170
http://statistics.data.gov.uk/id/local-authority/47UD,Redditch Borough Council,21/03/2014,201813,4168 061099,"1,202.15",Bss Group Plc (Pts),395,Crossgate Stocks,Received Not Invoiced,2096
http://statistics.data.gov.uk/id/local-authority/47UD,Redditch Borough Council,27/03/2014,201812,4168 061127,58.49,Bss Group Plc (Pts),395,Housing Repairs Account,Materials,4170
http://statistics.data.gov.uk/id/local-authority/47UD,Redditch Borough Council,27/03/2014,202025,4168 061177,53.13,Bss Group Plc (Pts),395,Housing Repairs Account,Materials,4170
http://statistics.data.gov.uk/id/local-authority/47UD,Redditch Borough Council,27/03/2014,202466,4168 061321,543.17,Bss Group Plc (Pts),395,Crossgate Stocks,Received Not Invoiced,2096
http://statistics.data.gov.uk/id/local-authority/47UD,Redditch Borough Council,21/03/2014,201661,11724,125,Pfb Self Drive,441,Executive Director Lec,Misc. Expenses,4730
http://statistics.data.gov.uk/id/local-authority/47UD,Redditch Borough Council,21/03/2014,201662,11663,695,Pfb Self Drive,441,Executive Director Lec,Contract Hire,3850
http://statistics.data.gov.uk/id/local-authority/47UD,Redditch Borough Council,21/03/2014,201663,11755,695,Pfb Self Drive,441,Executive Director Lec,Contract Hire,3850
http://statistics.data.gov.uk/id/local-authority/47UD,Redditch Borough Council,21/03/2014,201664,11700,245,Pfb Self Drive,441,Executive Director Lec,Misc. Expenses,4730
http://statistics.data.gov.uk/id/local-authority/47UD,Redditch Borough Council,21/03/2014,201665,11629,245,Pfb Self Drive,441,Executive Director Lec,Misc. Expenses,4730
http://statistics.data.gov.uk/id/local-authority/47UD,Redditch Borough Council,21/03/2014,201666,11639,125,Pfb Self Drive,441,Executive Director Lec,Misc. Expenses,4730
http://statistics.data.gov.uk/id/local-authority/47UD,Redditch Borough Council,21/03/2014,202024,11831,125,Pfb Self Drive,441,Executive Director Lec,Contract Hire,3850
http://statistics.data.gov.uk/id/local-authority/47UD,Redditch Borough Council,14/03/2014,198567,90382970,-10.5,Univar Bv,451,Executive Director Lec,Materials,4170
http://statistics.data.gov.uk/id/local-authority/47UD,Redditch Borough Council,14/03/2014,200669,90306155,-21,Univar Bv,451,Executive Director Lec,Materials,4170
http://statistics.data.gov.uk/id/local-authority/47UD,Redditch Borough Council,14/03/2014,200670,90356132,-42,Univar Bv,451,Executive Director Lec,Materials,4170
http://statistics.data.gov.uk/id/local-authority/47UD,Redditch Borough Council,14/03/2014,200671,90382489,45.95,Univar Bv,451,Executive Director Lec,Materials,4170
http://statistics.data.gov.uk/id/local-authority/47UD,Redditch Borough Council,14/03/2014,200672,90398158,506.37,Univar Bv,451,Executive Director Lec,Materials,4170
http://statistics.data.gov.uk/id/local-authority/47UD,Redditch Borough Council,21/03/2014,203155,90449503,762.53,Univar Bv,451,Executive Director Lec,Materials,4170
http://statistics.data.gov.uk/id/local-authority/47UD,Redditch Borough Council,27/03/2014,203439,90454712,476.87,Univar Bv,451,Executive Director Lec,Materials,4170
http://statistics.data.gov.uk/id/local-authority/47UD,Redditch Borough Council,27/03/2014,203560,90453439,175,Univar Bv,451,Executive Director Lec,Materials,4170
http://statistics.data.gov.uk/id/local-authority/47UD,Redditch Borough Council,07/03/2014,201604,7361,210.64,Ultrasol,453,Crossgate Stocks,Received Not Invoiced,2096
http://statistics.data.gov.uk/id/local-authority/47UD,Redditch Borough Council,07/03/2014,201605,7360,158.2,Ultrasol,453,Crossgate Stocks,Received Not Invoiced,2096
http://statistics.data.gov.uk/id/local-authority/47UD,Redditch Borough Council,27/03/2014,202477,7382,264.84,Ultrasol,453,Crossgate Stocks,Received Not Invoiced,2096
http://statistics.data.gov.uk/id/local-authority/47UD,Redditch Borough Council,21/03/2014,203154,100309,140,Dhc Services,4574,Rbc Balance Sheet,Contract Payments,8131
http://statistics.data.gov.uk/id/local-authority/47UD,Redditch Borough Council,27/03/2014,203153,100308,"2,420.00",Dhc Services,4574,Rbc Balance Sheet,Contract Payments,8131
http://statistics.data.gov.uk/id/local-authority/47UD,Redditch Borough Council,07/03/2014,201372,50262318,35,Tunstall  Limited,459,Executive Director Lec,Operation Equip -Rep & Maint,4152
http://statistics.data.gov.uk/id/local-authority/47UD,Redditch Borough Council,07/03/2014,201525,3IN/10236648,450,Tunstall  Limited,459,Executive Director Lec,Operational Equip- Purchase,4150
http://statistics.data.gov.uk/id/local-authority/47UD,Redditch Borough Council,07/03/2014,201525,3IN/10236648,65,Tunstall  Limited,459,Executive Director Lec,Operational Equip- Purchase,4150
http://statistics.data.gov.uk/id/local-authority/47UD,Redditch Borough Council,07/03/2014,201702,INV/50262655,45.94,Tunstall  Limited,459,Executive Director Lec,Operation Equip -Rep & Maint,4152
http://statistics.data.gov.uk/id/local-authority/47UD,Redditch Borough Council,21/03/2014,201373,50262309,35,Tunstall  Limited,459,Executive Director Lec,Operation Equip -Rep & Maint,4152
http://statistics.data.gov.uk/id/local-authority/47UD,Redditch Borough Council,21/03/2014,201849,INV/30027241,"3,550.51",Tunstall  Limited,459,Executive Director Lec,Operation Equip -Rep & Maint,4152
http://statistics.data.gov.uk/id/local-authority/47UD,Redditch Borough Council,27/03/2014,195843,INV/50256602,467.47,Tunstall  Limited,459,Executive Director Lec,Operation Equip -Rep & Maint,4152
http://statistics.data.gov.uk/id/local-authority/47UD,Redditch Borough Council,27/03/2014,200339,INV/50261675,186.8,Tunstall  Limited,459,Executive Director Lec,Operation Equip -Rep & Maint,4152
http://statistics.data.gov.uk/id/local-authority/47UD,Redditch Borough Council,27/03/2014,202984,3SC/30022431,-186.8,Tunstall  Limited,459,Executive Director Lec,Operation Equip -Rep & Maint,4152
http://statistics.data.gov.uk/id/local-authority/47UD,Redditch Borough Council,27/03/2014,202985,3SC/30022430,-450,Tunstall  Limited,459,Executive Director Lec,Operation Equip -Rep & Maint,4152
http://statistics.data.gov.uk/id/local-authority/47UD,Redditch Borough Council,27/03/2014,203078,INV/50263623,45.94,Tunstall  Limited,459,Executive Director Lec,Operation Equip -Rep & Maint,4152
http://statistics.data.gov.uk/id/local-authority/47UD,Redditch Borough Council,07/03/2014,201697,121277,42.68,Tudor Enviromental,461,Executive Director Lec,Materials (Veh),3700
http://statistics.data.gov.uk/id/local-authority/47UD,Redditch Borough Council,21/03/2014,202033,121487,253,Tudor Enviromental,461,Crossgate Stocks,Received Not Invoiced,2096
http://statistics.data.gov.uk/id/local-authority/47UD,Redditch Borough Council,21/03/2014,202035,121405,77.5,Tudor Enviromental,461,Executive Director Lec,Protective Clothing,4250
http://statistics.data.gov.uk/id/local-authority/47UD,Redditch Borough Council,27/03/2014,202034,121426,140.9,Tudor Enviromental,461,Executive Director Lec,Protective Clothing,4250
http://statistics.data.gov.uk/id/local-authority/47UD,Redditch Borough Council,27/03/2014,202568,121675,29.95,Tudor Enviromental,461,Executive Director Lec,Materials,4170
http://statistics.data.gov.uk/id/local-authority/47UD,Redditch Borough Council,27/03/2014,203085,2042,"7,030.81",Fence-Tech Ltd (Ho),4685,Rbc Balance Sheet,Contract Payments,8131
http://statistics.data.gov.uk/id/local-authority/47UD,Redditch Borough Council,27/03/2014,203086,2043,"1,217.00",Fence-Tech Ltd (Ho),4685,Rbc Balance Sheet,Contract Payments,8131
http://statistics.data.gov.uk/id/local-authority/47UD,Redditch Borough Council,21/03/2014,203206,965,-66.5,Artistes International Management Ltd,4770,Executive Director Lec,Other Receipts (Non Vat),6209
http://statistics.data.gov.uk/id/local-authority/47UD,Redditch Borough Council,21/03/2014,203206,965,"1,679.12",Artistes International Management Ltd,4770,Executive Director Lec,Professional Fees,4352
http://statistics.data.gov.uk/id/local-authority/47UD,Redditch Borough Council,07/03/2014,202187,Feb-14,"2,356.89",Mr D Broadbent,4782,Exec. Director Prrh,Temporary Accomodation,4557
http://statistics.data.gov.uk/id/local-authority/47UD,Redditch Borough Council,14/03/2014,202085,175551,267.25,Huck Nets (Uk) Ltd,4785,Executive Director Lec,Project Work,4733
http://statistics.data.gov.uk/id/local-authority/47UD,Redditch Borough Council,14/03/2014,202086,175659,"3,910.00",Huck Nets (Uk) Ltd,4785,Executive Director Lec,Project Work,4733
http://statistics.data.gov.uk/id/local-authority/47UD,Redditch Borough Council,14/03/2014,201179,2708,"5,187.65",Kelbec Civils Ltd,4794,Housing Repairs Account,Drainage,3201
http://statistics.data.gov.uk/id/local-authority/47UD,Redditch Borough Council,14/03/2014,202065,2753,323.3,Kelbec Civils Ltd,4794,Executive Director Lec,Recreational Equip -Reps/Maint,4102
http://statistics.data.gov.uk/id/local-authority/47UD,Redditch Borough Council,21/03/2014,198671,2662,"3,744.12",Kelbec Civils Ltd,4794,Rbc Balance Sheet,Contract Payments,8131
http://statistics.data.gov.uk/id/local-authority/47UD,Redditch Borough Council,21/03/2014,200773,2710,"2,338.01",Kelbec Civils Ltd,4794,Housing Revenue Account,Paved Area Maintenance,3202
http://statistics.data.gov.uk/id/local-authority/47UD,Redditch Borough Council,27/03/2014,202064,2750,"21,494.47",Kelbec Civils Ltd,4794,Rbc Balance Sheet,Contract Payments,8131
http://statistics.data.gov.uk/id/local-authority/47UD,Redditch Borough Council,27/03/2014,202809,2754,"4,055.46",Kelbec Civils Ltd,4794,Housing Repairs Account,Drainage,3201
http://statistics.data.gov.uk/id/local-authority/47UD,Redditch Borough Council,27/03/2014,203028,2772,"4,141.51",Kelbec Civils Ltd,4794,Executive Director Lec,Contractors,5158
http://statistics.data.gov.uk/id/local-authority/47UD,Redditch Borough Council,07/03/2014,201336,4163998,"1,888.65",The Performing Right Society Ltd,488,Executive Director Lec,Licences,4710
http://statistics.data.gov.uk/id/local-authority/47UD,Redditch Borough Council,14/03/2014,201532,4164785,88,The Performing Right Society Ltd,488,Executive Director Lec,Misc. Expenses,4730
http://statistics.data.gov.uk/id/local-authority/47UD,Redditch Borough Council,21/03/2014,203211,4168174,208.76,The Performing Right Society Ltd,488,Surestart Project,Licences,4710
http://statistics.data.gov.uk/id/local-authority/47UD,Redditch Borough Council,21/03/2014,203211,4168174,242.51,The Performing Right Society Ltd,488,Surestart Project,Licences,4710
http://statistics.data.gov.uk/id/local-authority/47UD,Redditch Borough Council,21/03/2014,203211,4168174,276.98,The Performing Right Society Ltd,488,Surestart Project,Licences,4710
http://statistics.data.gov.uk/id/local-authority/47UD,Redditch Borough Council,21/03/2014,203211,4168174,208.76,The Performing Right Society Ltd,488,Surestart Project,Licences,4710
http://statistics.data.gov.uk/id/local-authority/47UD,Redditch Borough Council,21/03/2014,203211,4168174,208.76,The Performing Right Society Ltd,488,Surestart Project,Licences,4710
http://statistics.data.gov.uk/id/local-authority/47UD,Redditch Borough Council,21/03/2014,202624,SI14001391,"1,947.00",Solon Security,4881,Executive Director Lec,Project Work,4733
http://statistics.data.gov.uk/id/local-authority/47UD,Redditch Borough Council,07/03/2014,202231,207850,"27,558.00",Leo Engineering Ltd ( Minibus Options ),4946,Rbc Balance Sheet,Vehicles - Purchase,8150
http://statistics.data.gov.uk/id/local-authority/47UD,Redditch Borough Council,07/03/2014,202232,207849,"27,558.00",Leo Engineering Ltd ( Minibus Options ),4946,Rbc Balance Sheet,Vehicles - Purchase,8150
http://statistics.data.gov.uk/id/local-authority/47UD,Redditch Borough Council,07/03/2014,201271,44,23.42,The Glasshouse,495,Housing Repairs Account,Materials,4170
http://statistics.data.gov.uk/id/local-authority/47UD,Redditch Borough Council,21/03/2014,201333,46,452.5,The Glasshouse,495,Rbc Balance Sheet,Contract Payments,8131
http://statistics.data.gov.uk/id/local-authority/47UD,Redditch Borough Council,21/03/2014,202285,99,37.32,The Glasshouse,495,Housing Repairs Account,Contractors,5158
http://statistics.data.gov.uk/id/local-authority/47UD,Redditch Borough Council,21/03/2014,202286,97,"2,051.15",The Glasshouse,495,Housing Repairs Account,Contractors,5158
http://statistics.data.gov.uk/id/local-authority/47UD,Redditch Borough Council,27/03/2014,202284,98,28.5,The Glasshouse,495,Housing Repairs Account,Materials,4170
http://statistics.data.gov.uk/id/local-authority/47UD,Redditch Borough Council,27/03/2014,202284,98,37.67,The Glasshouse,495,Housing Repairs Account,Materials,4170
http://statistics.data.gov.uk/id/local-authority/47UD,Redditch Borough Council,21/03/2014,202553,108114,995,Keep Britain Tidy,4972,Executive Director Lec,Subscriptions,4650
http://statistics.data.gov.uk/id/local-authority/47UD,Redditch Borough Council,21/03/2014,203148,101030,"17,500.00",Diamond Bus Company Limited,499,Executive Director Lec,Concessionary Travel,5150
http://statistics.data.gov.uk/id/local-authority/47UD,Redditch Borough Council,14/03/2014,202687,169,643.99,Spurcroft Civic,4999,Exec. Director Fin. & Resource,Overview & Scrutiny Expend,4732
http://statistics.data.gov.uk/id/local-authority/47UD,Redditch Borough Council,07/03/2014,201608,546232,"12,705.36",Openview Security Solutions Limited,5020,Executive Director Lec,Operation Equip -Rep & Maint,4152
http://statistics.data.gov.uk/id/local-authority/47UD,Redditch Borough Council,27/03/2014,202609,548115,"12,705.36",Openview Security Solutions Limited,5020,Executive Director Lec,Operation Equip -Rep & Maint,4152
http://statistics.data.gov.uk/id/local-authority/47UD,Redditch Borough Council,07/03/2014,202201,30056604,"22,962.50",Amas A/C 63907686,5113,Exec. Director Prrh,Hire Of Premises,3351
http://statistics.data.gov.uk/id/local-authority/47UD,Redditch Borough Council,07/03/2014,201784,427561,"10,392.04",Harvest Energy Limited,5136,Crossgate Stocks,Received Not Invoiced,2096
http://statistics.data.gov.uk/id/local-authority/47UD,Redditch Borough Council,14/03/2014,201633,CI 194396/Z,78.24,Indepth Managed Services,5139,Executive Director Lec,Contractors,5158
http://statistics.data.gov.uk/id/local-authority/47UD,Redditch Borough Council,27/03/2014,199902,ICC 230393/M,586.64,Indepth Managed Services,5139,Executive Director Lec,Contract Cleaning,3600
http://statistics.data.gov.uk/id/local-authority/47UD,Redditch Borough Council,27/03/2014,200102,ICC-230490/K,262.26,Indepth Managed Services,5139,Executive Director Lec,Contract Cleaning,3600
http://statistics.data.gov.uk/id/local-authority/47UD,Redditch Borough Council,07/03/2014,202202,30056994,"1,923.54",Amas Ltd (A/C 03457982),5149,Exec. Director Prrh,Service Charges,3352
http://statistics.data.gov.uk/id/local-authority/47UD,Redditch Borough Council,27/03/2014,202052,49778,64.17,Toolstation Ltd,5151,Executive Director Lec,Misc. Expenses,4730
http://statistics.data.gov.uk/id/local-authority/47UD,Redditch Borough Council,27/03/2014,202652,50072,31.12,Toolstation Ltd,5151,Housing Repairs Account,Materials,4170
http://statistics.data.gov.uk/id/local-authority/47UD,Redditch Borough Council,27/03/2014,202654,50073,83.32,Toolstation Ltd,5151,Housing Repairs Account,Materials,4170
http://statistics.data.gov.uk/id/local-authority/47UD,Redditch Borough Council,27/03/2014,202655,50074,28.16,Toolstation Ltd,5151,Housing Repairs Account,Materials,4170
http://statistics.data.gov.uk/id/local-authority/47UD,Redditch Borough Council,27/03/2014,202656,50075,45.82,Toolstation Ltd,5151,Housing Repairs Account,Materials,4170
http://statistics.data.gov.uk/id/local-authority/47UD,Redditch Borough Council,27/03/2014,202657,50070,1.5,Toolstation Ltd,5151,Housing Repairs Account,Materials,4170
http://statistics.data.gov.uk/id/local-authority/47UD,Redditch Borough Council,27/03/2014,202658,50069,46.4,Toolstation Ltd,5151,Housing Repairs Account,Operational Equip- Purchase,4150
http://statistics.data.gov.uk/id/local-authority/47UD,Redditch Borough Council,27/03/2014,202659,50068,36.69,Toolstation Ltd,5151,Housing Repairs Account,Materials,4170
http://statistics.data.gov.uk/id/local-authority/47UD,Redditch Borough Council,27/03/2014,202660,50067,19.97,Toolstation Ltd,5151,Housing Repairs Account,Materials,4170
http://statistics.data.gov.uk/id/local-authority/47UD,Redditch Borough Council,27/03/2014,202661,50065,23.22,Toolstation Ltd,5151,Housing Repairs Account,Operational Equip- Purchase,4150
http://statistics.data.gov.uk/id/local-authority/47UD,Redditch Borough Council,27/03/2014,202662,50064,35.99,Toolstation Ltd,5151,Housing Repairs Account,Materials,4170
http://statistics.data.gov.uk/id/local-authority/47UD,Redditch Borough Council,27/03/2014,202663,50060,19.67,Toolstation Ltd,5151,Housing Repairs Account,Materials,4170
http://statistics.data.gov.uk/id/local-authority/47UD,Redditch Borough Council,27/03/2014,202664,50061,109.05,Toolstation Ltd,5151,Exec. Director Fin. & Resource,Materials,4170
http://statistics.data.gov.uk/id/local-authority/47UD,Redditch Borough Council,27/03/2014,202665,50062,64.17,Toolstation Ltd,5151,Executive Director Lec,Misc. Expenses,4730
http://statistics.data.gov.uk/id/local-authority/47UD,Redditch Borough Council,27/03/2014,202666,50063,5.17,Toolstation Ltd,5151,Housing Repairs Account,Materials,4170
http://statistics.data.gov.uk/id/local-authority/47UD,Redditch Borough Council,27/03/2014,202667,50059,58.31,Toolstation Ltd,5151,Exec. Director Fin. & Resource,Materials,4170
http://statistics.data.gov.uk/id/local-authority/47UD,Redditch Borough Council,27/03/2014,202668,50057,0,Toolstation Ltd,5151,Housing Repairs Account,Materials,4170
http://statistics.data.gov.uk/id/local-authority/47UD,Redditch Borough Council,27/03/2014,202668,50057,1.32,Toolstation Ltd,5151,Housing Repairs Account,Materials,4170
http://statistics.data.gov.uk/id/local-authority/47UD,Redditch Borough Council,27/03/2014,202669,50056,7.83,Toolstation Ltd,5151,Housing Repairs Account,Materials,4170
http://statistics.data.gov.uk/id/local-authority/47UD,Redditch Borough Council,27/03/2014,202670,50058,4.97,Toolstation Ltd,5151,Housing Repairs Account,Materials,4170
http://statistics.data.gov.uk/id/local-authority/47UD,Redditch Borough Council,27/03/2014,203545,SC&R/00000063,"8,562.79",Festival Housing,5190,Executive Director Lec,Festival Housing Assoc,5014
http://statistics.data.gov.uk/id/local-authority/47UD,Redditch Borough Council,27/03/2014,202986,6929781,"19,095.00",Grant Thornton Uk Llp,5364,Exec. Director Fin. & Resource,Audit Fees,4359
http://statistics.data.gov.uk/id/local-authority/47UD,Redditch Borough Council,07/03/2014,202208,IN8633,695.6,Matrix Scm Ltd,5367,Exec. Director Prrh,Agency Staff,3020
http://statistics.data.gov.uk/id/local-authority/47UD,Redditch Borough Council,07/03/2014,202208,IN8633,672.59,Matrix Scm Ltd,5367,Executive Director Lec,Agency Staff,3020
http://statistics.data.gov.uk/id/local-authority/47UD,Redditch Borough Council,07/03/2014,202208,IN8633,"2,229.35",Matrix Scm Ltd,5367,Executive Director Lec,Agency Staff,3020
http://statistics.data.gov.uk/id/local-authority/47UD,Redditch Borough Council,07/03/2014,202208,IN8633,505.81,Matrix Scm Ltd,5367,Executive Director Lec,Agency Staff,3020
http://statistics.data.gov.uk/id/local-authority/47UD,Redditch Borough Council,07/03/2014,202208,IN8633,434.38,Matrix Scm Ltd,5367,Executive Director Lec,Agency Staff,3020
http://statistics.data.gov.uk/id/local-authority/47UD,Redditch Borough Council,07/03/2014,202208,IN8633,"1,077.44",Matrix Scm Ltd,5367,Housing Repairs Account,Agency Staff,3020
http://statistics.data.gov.uk/id/local-authority/47UD,Redditch Borough Council,07/03/2014,202208,IN8633,"4,107.17",Matrix Scm Ltd,5367,Housing Repairs Account,Agency Staff,3020
http://statistics.data.gov.uk/id/local-authority/47UD,Redditch Borough Council,07/03/2014,202208,IN8633,"1,983.73",Matrix Scm Ltd,5367,Housing Revenue Account,Agency Staff,3020
http://statistics.data.gov.uk/id/local-authority/47UD,Redditch Borough Council,07/03/2014,202208,IN8633,295.27,Matrix Scm Ltd,5367,Housing Revenue Account,Agency Staff,3020
http://statistics.data.gov.uk/id/local-authority/47UD,Redditch Borough Council,14/03/2014,202632,IN8699,686.2,Matrix Scm Ltd,5367,Exec. Director Prrh,Agency Staff,3020
http://statistics.data.gov.uk/id/local-authority/47UD,Redditch Borough Council,14/03/2014,202632,IN8699,813.7,Matrix Scm Ltd,5367,Executive Director Lec,Agency Staff,3020
http://statistics.data.gov.uk/id/local-authority/47UD,Redditch Borough Council,14/03/2014,202632,IN8699,710.87,Matrix Scm Ltd,5367,Executive Director Lec,Agency Staff,3020
http://statistics.data.gov.uk/id/local-authority/47UD,Redditch Borough Council,14/03/2014,202632,IN8699,"7,287.46",Matrix Scm Ltd,5367,Executive Director Lec,Agency Staff,3020
http://statistics.data.gov.uk/id/local-authority/47UD,Redditch Borough Council,14/03/2014,202632,IN8699,434.38,Matrix Scm Ltd,5367,Executive Director Lec,Agency Staff,3020
http://statistics.data.gov.uk/id/local-authority/47UD,Redditch Borough Council,14/03/2014,202632,IN8699,"1,077.44",Matrix Scm Ltd,5367,Housing Repairs Account,Agency Staff,3020
http://statistics.data.gov.uk/id/local-authority/47UD,Redditch Borough Council,14/03/2014,202632,IN8699,"4,140.59",Matrix Scm Ltd,5367,Housing Repairs Account,Agency Staff,3020
http://statistics.data.gov.uk/id/local-authority/47UD,Redditch Borough Council,14/03/2014,202632,IN8699,681.39,Matrix Scm Ltd,5367,Housing Revenue Account,Agency Staff,3020
http://statistics.data.gov.uk/id/local-authority/47UD,Redditch Borough Council,21/03/2014,203193,IN8766,733.05,Matrix Scm Ltd,5367,Exec. Director Prrh,Agency Staff,3020
http://statistics.data.gov.uk/id/local-authority/47UD,Redditch Borough Council,21/03/2014,203193,IN8766,690.9,Matrix Scm Ltd,5367,Exec. Director Prrh,Agency Staff,3020
http://statistics.data.gov.uk/id/local-authority/47UD,Redditch Borough Council,21/03/2014,203193,IN8766,672.59,Matrix Scm Ltd,5367,Executive Director Lec,Agency Staff,3020
http://statistics.data.gov.uk/id/local-authority/47UD,Redditch Borough Council,21/03/2014,203193,IN8766,"4,020.15",Matrix Scm Ltd,5367,Executive Director Lec,Agency Staff,3020
http://statistics.data.gov.uk/id/local-authority/47UD,Redditch Borough Council,21/03/2014,203193,IN8766,505.81,Matrix Scm Ltd,5367,Executive Director Lec,Agency Staff,3020
http://statistics.data.gov.uk/id/local-authority/47UD,Redditch Borough Council,21/03/2014,203193,IN8766,"1,507.07",Matrix Scm Ltd,5367,Executive Director Lec,Agency Staff,3020
http://statistics.data.gov.uk/id/local-authority/47UD,Redditch Borough Council,21/03/2014,203193,IN8766,428.51,Matrix Scm Ltd,5367,Executive Director Lec,Agency Staff,3020
http://statistics.data.gov.uk/id/local-authority/47UD,Redditch Borough Council,21/03/2014,203193,IN8766,"1,612.46",Matrix Scm Ltd,5367,Housing Repairs Account,Agency Staff,3020
http://statistics.data.gov.uk/id/local-authority/47UD,Redditch Borough Council,21/03/2014,203193,IN8766,"4,022.19",Matrix Scm Ltd,5367,Housing Repairs Account,Agency Staff,3020
http://statistics.data.gov.uk/id/local-authority/47UD,Redditch Borough Council,21/03/2014,203193,IN8766,"1,299.09",Matrix Scm Ltd,5367,Housing Revenue Account,Agency Staff,3020
http://statistics.data.gov.uk/id/local-authority/47UD,Redditch Borough Council,21/03/2014,203193,IN8766,431.54,Matrix Scm Ltd,5367,Housing Revenue Account,Agency Staff,3020
http://statistics.data.gov.uk/id/local-authority/47UD,Redditch Borough Council,27/03/2014,203664,IN8831,407.25,Matrix Scm Ltd,5367,Exec. Director Prrh,Agency Staff,3020
http://statistics.data.gov.uk/id/local-authority/47UD,Redditch Borough Council,27/03/2014,203664,IN8831,695.6,Matrix Scm Ltd,5367,Exec. Director Prrh,Agency Staff,3020
http://statistics.data.gov.uk/id/local-authority/47UD,Redditch Borough Council,27/03/2014,203664,IN8831,765.65,Matrix Scm Ltd,5367,Executive Director Lec,Agency Staff,3020
http://statistics.data.gov.uk/id/local-authority/47UD,Redditch Borough Council,27/03/2014,203664,IN8831,"4,731.67",Matrix Scm Ltd,5367,Executive Director Lec,Agency Staff,3020
http://statistics.data.gov.uk/id/local-authority/47UD,Redditch Borough Council,27/03/2014,203664,IN8831,505.81,Matrix Scm Ltd,5367,Executive Director Lec,Agency Staff,3020
http://statistics.data.gov.uk/id/local-authority/47UD,Redditch Borough Council,27/03/2014,203664,IN8831,"3,443.67",Matrix Scm Ltd,5367,Executive Director Lec,Agency Staff,3020
http://statistics.data.gov.uk/id/local-authority/47UD,Redditch Borough Council,27/03/2014,203664,IN8831,434.38,Matrix Scm Ltd,5367,Executive Director Lec,Agency Staff,3020
http://statistics.data.gov.uk/id/local-authority/47UD,Redditch Borough Council,27/03/2014,203664,IN8831,"1,973.96",Matrix Scm Ltd,5367,Housing Repairs Account,Agency Staff,3020
http://statistics.data.gov.uk/id/local-authority/47UD,Redditch Borough Council,27/03/2014,203664,IN8831,"4,681.91",Matrix Scm Ltd,5367,Housing Repairs Account,Agency Staff,3020
http://statistics.data.gov.uk/id/local-authority/47UD,Redditch Borough Council,27/03/2014,203664,IN8831,308.08,Matrix Scm Ltd,5367,Housing Revenue Account,Agency Staff,3020
http://statistics.data.gov.uk/id/local-authority/47UD,Redditch Borough Council,27/03/2014,203664,IN8831,697.22,Matrix Scm Ltd,5367,Housing Revenue Account,Agency Staff,3020
http://statistics.data.gov.uk/id/local-authority/47UD,Redditch Borough Council,07/03/2014,202186,MTH 11 2014,"186,316.67",Worcestershire County Council,5371,Notional Deprn And Financing,Superannuation,3005
http://statistics.data.gov.uk/id/local-authority/47UD,Redditch Borough Council,07/03/2014,202186,MTH 11 2014,"154,009.55",Worcestershire County Council,5371,Payroll Control,Payments Over -Current Year,2921
http://statistics.data.gov.uk/id/local-authority/47UD,Redditch Borough Council,07/03/2014,201266,195 - 061440,62.01,Edmundson Electrical Ltd,5374,Housing Repairs Account,Materials,4170
http://statistics.data.gov.uk/id/local-authority/47UD,Redditch Borough Council,07/03/2014,201268,195 - 061351,8.42,Edmundson Electrical Ltd,5374,Housing Repairs Account,Materials,4170
http://statistics.data.gov.uk/id/local-authority/47UD,Redditch Borough Council,07/03/2014,201269,195 - 061295,8.42,Edmundson Electrical Ltd,5374,Housing Repairs Account,Materials,4170
http://statistics.data.gov.uk/id/local-authority/47UD,Redditch Borough Council,07/03/2014,201274,195 - 061564,25.38,Edmundson Electrical Ltd,5374,Housing Repairs Account,Materials,4170
http://statistics.data.gov.uk/id/local-authority/47UD,Redditch Borough Council,07/03/2014,201276,195 - 061350,52.94,Edmundson Electrical Ltd,5374,Housing Repairs Account,Materials,4170
http://statistics.data.gov.uk/id/local-authority/47UD,Redditch Borough Council,07/03/2014,201646,195-061772,28.4,Edmundson Electrical Ltd,5374,Housing Repairs Account,Materials,4170
http://statistics.data.gov.uk/id/local-authority/47UD,Redditch Borough Council,07/03/2014,201647,195/061860,59.62,Edmundson Electrical Ltd,5374,Housing Repairs Account,Materials,4170
http://statistics.data.gov.uk/id/local-authority/47UD,Redditch Borough Council,07/03/2014,201648,195-061861,59.62,Edmundson Electrical Ltd,5374,Housing Repairs Account,Materials,4170
http://statistics.data.gov.uk/id/local-authority/47UD,Redditch Borough Council,07/03/2014,201649,195-061589,2.7,Edmundson Electrical Ltd,5374,Housing Repairs Account,Materials,4170
http://statistics.data.gov.uk/id/local-authority/47UD,Redditch Borough Council,21/03/2014,202107,195-062227,8.42,Edmundson Electrical Ltd,5374,Housing Repairs Account,Materials,4170
http://statistics.data.gov.uk/id/local-authority/47UD,Redditch Borough Council,21/03/2014,202108,195-062235,8.1,Edmundson Electrical Ltd,5374,Housing Repairs Account,Materials,4170
http://statistics.data.gov.uk/id/local-authority/47UD,Redditch Borough Council,21/03/2014,202110,195-061912,780,Edmundson Electrical Ltd,5374,Housing Repairs Account,Materials,4170
http://statistics.data.gov.uk/id/local-authority/47UD,Redditch Borough Council,21/03/2014,202112,195-062130,16.52,Edmundson Electrical Ltd,5374,Housing Repairs Account,Materials,4170
http://statistics.data.gov.uk/id/local-authority/47UD,Redditch Borough Council,27/03/2014,202746,195 - 062331,14.88,Edmundson Electrical Ltd,5374,Housing Repairs Account,Materials,4170
http://statistics.data.gov.uk/id/local-authority/47UD,Redditch Borough Council,27/03/2014,202748,195 - 062397,15.36,Edmundson Electrical Ltd,5374,Housing Repairs Account,Materials,4170
http://statistics.data.gov.uk/id/local-authority/47UD,Redditch Borough Council,27/03/2014,202749,195 - 062547,20.2,Edmundson Electrical Ltd,5374,Housing Repairs Account,Materials,4170
http://statistics.data.gov.uk/id/local-authority/47UD,Redditch Borough Council,21/03/2014,203146,INV-0457,"10,726.76",Avid Installation Solutions Limited,5425,Rbc Balance Sheet,Contract Payments,8131
http://statistics.data.gov.uk/id/local-authority/47UD,Redditch Borough Council,21/03/2014,203222,301,150,The Open Theatre Company Limited,5455,Executive Director Lec,Agency Staff,3020
http://statistics.data.gov.uk/id/local-authority/47UD,Redditch Borough Council,21/03/2014,203222,301,450,The Open Theatre Company Limited,5455,Executive Director Lec,Professional Fees,4352
http://statistics.data.gov.uk/id/local-authority/47UD,Redditch Borough Council,14/03/2014,202685,100020,50.36,Makro Food Service,5524,Executive Director Lec,Catering Provisions(Vat Exempt,4200
http://statistics.data.gov.uk/id/local-authority/47UD,Redditch Borough Council,14/03/2014,202685,100020,90.45,Makro Food Service,5524,Executive Director Lec,Catering Provisions(Vat Exempt,4200
http://statistics.data.gov.uk/id/local-authority/47UD,Redditch Borough Council,14/03/2014,202685,100020,45.96,Makro Food Service,5524,Executive Director Lec,Catering Provisions(Vat Exempt,4200
http://statistics.data.gov.uk/id/local-authority/47UD,Redditch Borough Council,14/03/2014,202685,100020,36.18,Makro Food Service,5524,Executive Director Lec,Catering Provisions(Vat Exempt,4200
http://statistics.data.gov.uk/id/local-authority/47UD,Redditch Borough Council,14/03/2014,202685,100020,45.87,Makro Food Service,5524,Executive Director Lec,Catering Provisions(Vat Exempt,4200
http://statistics.data.gov.uk/id/local-authority/47UD,Redditch Borough Council,14/03/2014,202685,100020,8.09,Makro Food Service,5524,Executive Director Lec,Catering Provisions(Vat Exempt,4200
http://statistics.data.gov.uk/id/local-authority/47UD,Redditch Borough Council,14/03/2014,202685,100020,19.95,Makro Food Service,5524,Executive Director Lec,Catering Provisions(Vat Exempt,4200
http://statistics.data.gov.uk/id/local-authority/47UD,Redditch Borough Council,14/03/2014,202685,100020,4.15,Makro Food Service,5524,Executive Director Lec,Catering Provisions(Vat Exempt,4200
http://statistics.data.gov.uk/id/local-authority/47UD,Redditch Borough Council,14/03/2014,202685,100020,2.29,Makro Food Service,5524,Executive Director Lec,Catering Provisions(Vat Exempt,4200
http://statistics.data.gov.uk/id/local-authority/47UD,Redditch Borough Council,21/03/2014,203205,100644,61.16,Makro Food Service,5524,Executive Director Lec,Catering Provisions(Vat Exempt,4200
http://statistics.data.gov.uk/id/local-authority/47UD,Redditch Borough Council,21/03/2014,203205,100644,90.45,Makro Food Service,5524,Executive Director Lec,Catering Provisions(Vat Exempt,4200
http://statistics.data.gov.uk/id/local-authority/47UD,Redditch Borough Council,21/03/2014,203205,100644,45.96,Makro Food Service,5524,Executive Director Lec,Catering Provisions(Vat Exempt,4200
http://statistics.data.gov.uk/id/local-authority/47UD,Redditch Borough Council,21/03/2014,203205,100644,29.9,Makro Food Service,5524,Executive Director Lec,Catering Provisions(Vat Exempt,4200
http://statistics.data.gov.uk/id/local-authority/47UD,Redditch Borough Council,21/03/2014,203205,100644,79.95,Makro Food Service,5524,Executive Director Lec,Catering Provisions(Vat Exempt,4200
http://statistics.data.gov.uk/id/local-authority/47UD,Redditch Borough Council,21/03/2014,200841,7003,877.5,Maid Marions,5543,Housing Revenue Account,Caretaking,3603
http://statistics.data.gov.uk/id/local-authority/47UD,Redditch Borough Council,21/03/2014,200841,7003,"1,950.00",Maid Marions,5543,Housing Revenue Account,Contract Cleaning,3600
http://statistics.data.gov.uk/id/local-authority/47UD,Redditch Borough Council,21/03/2014,200841,7003,975,Maid Marions,5543,Housing Revenue Account,Contract Cleaning,3600
http://statistics.data.gov.uk/id/local-authority/47UD,Redditch Borough Council,21/03/2014,202619,7147,877.5,Maid Marions,5543,Housing Revenue Account,Caretaking,3603
http://statistics.data.gov.uk/id/local-authority/47UD,Redditch Borough Council,21/03/2014,202619,7147,"1,950.00",Maid Marions,5543,Housing Revenue Account,Contract Cleaning,3600
http://statistics.data.gov.uk/id/local-authority/47UD,Redditch Borough Council,21/03/2014,202619,7147,975,Maid Marions,5543,Housing Revenue Account,Contract Cleaning,3600
http://statistics.data.gov.uk/id/local-authority/47UD,Redditch Borough Council,21/03/2014,202620,7148,"1,068.00",Maid Marions,5543,Executive Director Lec,Contract Cleaning,3600
http://statistics.data.gov.uk/id/local-authority/47UD,Redditch Borough Council,27/03/2014,202621,7182,"1,437.50",Maid Marions,5543,Housing Repairs Account,Contractors,5158
http://statistics.data.gov.uk/id/local-authority/47UD,Redditch Borough Council,07/03/2014,201748,897,240.35,Hill Fasteners Ltd,555,Crossgate Stocks,Received Not Invoiced,2096
http://statistics.data.gov.uk/id/local-authority/47UD,Redditch Borough Council,21/03/2014,202180,907,344.6,Hill Fasteners Ltd,555,Crossgate Stocks,Received Not Invoiced,2096
http://statistics.data.gov.uk/id/local-authority/47UD,Redditch Borough Council,07/03/2014,202210,99531,180,Pete Burton,556,Executive Director Lec,Casual Staff,3022
http://statistics.data.gov.uk/id/local-authority/47UD,Redditch Borough Council,07/03/2014,202238,99534,500,Pete Burton,556,Executive Director Lec,Volunteer Costs,3206
http://statistics.data.gov.uk/id/local-authority/47UD,Redditch Borough Council,07/03/2014,202239,99532,400,Pete Burton,556,Executive Director Lec,Project Work,4733
http://statistics.data.gov.uk/id/local-authority/47UD,Redditch Borough Council,07/03/2014,202240,99533,300,Pete Burton,556,Executive Director Lec,Project Work,4733
http://statistics.data.gov.uk/id/local-authority/47UD,Redditch Borough Council,21/03/2014,202088,SL02327083INV,448,Northgate Vehicle Hire Ltd,5573,Housing Repairs Account,Contract Hire,3850
http://statistics.data.gov.uk/id/local-authority/47UD,Redditch Borough Council,21/03/2014,202089,SL02327085INV,448,Northgate Vehicle Hire Ltd,5573,Housing Repairs Account,Contract Hire,3850
http://statistics.data.gov.uk/id/local-authority/47UD,Redditch Borough Council,21/03/2014,202090,SL02327086INV,350,Northgate Vehicle Hire Ltd,5573,Housing Repairs Account,Contract Hire,3850
http://statistics.data.gov.uk/id/local-authority/47UD,Redditch Borough Council,21/03/2014,202504,11989,"12,781.12",Pauls Electrical Services Ltd,559,Rbc Balance Sheet,Contract Payments,8131
http://statistics.data.gov.uk/id/local-authority/47UD,Redditch Borough Council,21/03/2014,202505,11991,"1,132.11",Pauls Electrical Services Ltd,559,Housing Repairs Account,Contractors,5158
http://statistics.data.gov.uk/id/local-authority/47UD,Redditch Borough Council,21/03/2014,202506,11990,"1,627.40",Pauls Electrical Services Ltd,559,Housing Repairs Account,Repairs In House Team,3107
http://statistics.data.gov.uk/id/local-authority/47UD,Redditch Borough Council,21/03/2014,202507,11992,907.36,Pauls Electrical Services Ltd,559,Housing Repairs Account,Contractors,5158
http://statistics.data.gov.uk/id/local-authority/47UD,Redditch Borough Council,21/03/2014,202508,12016,790.21,Pauls Electrical Services Ltd,559,Housing Repairs Account,Contractors,5158
http://statistics.data.gov.uk/id/local-authority/47UD,Redditch Borough Council,21/03/2014,202509,12007,"4,291.00",Pauls Electrical Services Ltd,559,Housing Repairs Account,Contractors,5158
http://statistics.data.gov.uk/id/local-authority/47UD,Redditch Borough Council,21/03/2014,202510,12006,"3,094.00",Pauls Electrical Services Ltd,559,Housing Repairs Account,Contractors,5158
http://statistics.data.gov.uk/id/local-authority/47UD,Redditch Borough Council,21/03/2014,202511,12005,"1,237.42",Pauls Electrical Services Ltd,559,Housing Repairs Account,Contractors,5158
http://statistics.data.gov.uk/id/local-authority/47UD,Redditch Borough Council,14/03/2014,202122,3417/01041351,767.17,Gibbs & Dandy Timber,5603,Crossgate Stocks,Received Not Invoiced,2096
http://statistics.data.gov.uk/id/local-authority/47UD,Redditch Borough Council,21/03/2014,203020,3417/01042021,496.37,Gibbs & Dandy Timber,5603,Crossgate Stocks,Received Not Invoiced,2096
http://statistics.data.gov.uk/id/local-authority/47UD,Redditch Borough Council,27/03/2014,203598,3417/01042393,632.2,Gibbs & Dandy Timber,5603,Crossgate Stocks,Received Not Invoiced,2096
http://statistics.data.gov.uk/id/local-authority/47UD,Redditch Borough Council,27/03/2014,203614,12502,"2,015.00",Candor Care Ltd,5642,Rbc Balance Sheet,Disabled Facilities Grant,8701
http://statistics.data.gov.uk/id/local-authority/47UD,Redditch Borough Council,21/03/2014,203224,V00915540217,1.35,Everything Everywhere Ltd,5658,Chief Executive,Mobile Phone,4455
http://statistics.data.gov.uk/id/local-authority/47UD,Redditch Borough Council,21/03/2014,203224,V00915540217,30.02,Everything Everywhere Ltd,5658,Chief Executive,Mobile Phone,4455
http://statistics.data.gov.uk/id/local-authority/47UD,Redditch Borough Council,21/03/2014,203224,V00915540217,1.44,Everything Everywhere Ltd,5658,Chief Executive,Mobile Phone,4455
http://statistics.data.gov.uk/id/local-authority/47UD,Redditch Borough Council,21/03/2014,203224,V00915540217,20,Everything Everywhere Ltd,5658,Chief Executive,Mobile Phone,4455
http://statistics.data.gov.uk/id/local-authority/47UD,Redditch Borough Council,21/03/2014,203224,V00915540217,12.77,Everything Everywhere Ltd,5658,Chief Executive,Mobile Phone,4455
http://statistics.data.gov.uk/id/local-authority/47UD,Redditch Borough Council,21/03/2014,203224,V00915540217,28.66,Everything Everywhere Ltd,5658,Exec. Director Fin. & Resource,Mobile Phone,4455
http://statistics.data.gov.uk/id/local-authority/47UD,Redditch Borough Council,21/03/2014,203224,V00915540217,15.61,Everything Everywhere Ltd,5658,Exec. Director Fin. & Resource,Mobile Phone,4455
http://statistics.data.gov.uk/id/local-authority/47UD,Redditch Borough Council,21/03/2014,203224,V00915540217,23.05,Everything Everywhere Ltd,5658,Exec. Director Fin. & Resource,Mobile Phone,4455
http://statistics.data.gov.uk/id/local-authority/47UD,Redditch Borough Council,21/03/2014,203224,V00915540217,15.5,Everything Everywhere Ltd,5658,Exec. Director Fin. & Resource,Mobile Phone,4455
http://statistics.data.gov.uk/id/local-authority/47UD,Redditch Borough Council,21/03/2014,203224,V00915540217,17.56,Everything Everywhere Ltd,5658,Exec. Director Fin. & Resource,Mobile Phone,4455
http://statistics.data.gov.uk/id/local-authority/47UD,Redditch Borough Council,21/03/2014,203224,V00915540217,12.77,Everything Everywhere Ltd,5658,Exec. Director Fin. & Resource,Mobile Phone,4455
http://statistics.data.gov.uk/id/local-authority/47UD,Redditch Borough Council,21/03/2014,203224,V00915540217,6.57,Everything Everywhere Ltd,5658,Exec. Director Fin. & Resource,Mobile Phone,4455
http://statistics.data.gov.uk/id/local-authority/47UD,Redditch Borough Council,21/03/2014,203224,V00915540217,0.16,Everything Everywhere Ltd,5658,Exec. Director Fin. & Resource,Mobile Phone,4455
http://statistics.data.gov.uk/id/local-authority/47UD,Redditch Borough Council,21/03/2014,203224,V00915540217,2.04,Everything Everywhere Ltd,5658,Exec. Director Fin. & Resource,Mobile Phone,4455
http://statistics.data.gov.uk/id/local-authority/47UD,Redditch Borough Council,21/03/2014,203224,V00915540217,15.5,Everything Everywhere Ltd,5658,Exec. Director Fin. & Resource,Mobile Phone,4455
http://statistics.data.gov.uk/id/local-authority/47UD,Redditch Borough Council,21/03/2014,203224,V00915540217,12.77,Everything Everywhere Ltd,5658,Exec. Director Fin. & Resource,Mobile Phone,4455
http://statistics.data.gov.uk/id/local-authority/47UD,Redditch Borough Council,21/03/2014,203224,V00915540217,19.32,Everything Everywhere Ltd,5658,Exec. Director Fin. & Resource,Mobile Phone,4455
http://statistics.data.gov.uk/id/local-authority/47UD,Redditch Borough Council,21/03/2014,203224,V00915540217,12.77,Everything Everywhere Ltd,5658,Exec. Director Fin. & Resource,Mobile Phone,4455
http://statistics.data.gov.uk/id/local-authority/47UD,Redditch Borough Council,21/03/2014,203224,V00915540217,12.77,Everything Everywhere Ltd,5658,Exec. Director Fin. & Resource,Mobile Phone,4455
http://statistics.data.gov.uk/id/local-authority/47UD,Redditch Borough Council,21/03/2014,203224,V00915540217,15.6,Everything Everywhere Ltd,5658,Exec. Director Fin. & Resource,Mobile Phone,4455
http://statistics.data.gov.uk/id/local-authority/47UD,Redditch Borough Council,21/03/2014,203224,V00915540217,3.58,Everything Everywhere Ltd,5658,Exec. Director Fin. & Resource,Mobile Phone,4455
http://statistics.data.gov.uk/id/local-authority/47UD,Redditch Borough Council,21/03/2014,203224,V00915540217,0.07,Everything Everywhere Ltd,5658,Exec. Director Fin. & Resource,Mobile Phone,4455
http://statistics.data.gov.uk/id/local-authority/47UD,Redditch Borough Council,21/03/2014,203224,V00915540217,1.77,Everything Everywhere Ltd,5658,Exec. Director Fin. & Resource,Mobile Phone,4455
http://statistics.data.gov.uk/id/local-authority/47UD,Redditch Borough Council,21/03/2014,203224,V00915540217,1.96,Everything Everywhere Ltd,5658,Exec. Director Fin. & Resource,Mobile Phone,4455
http://statistics.data.gov.uk/id/local-authority/47UD,Redditch Borough Council,21/03/2014,203224,V00915540217,17.58,Everything Everywhere Ltd,5658,Exec. Director Fin. & Resource,Mobile Phone,4455
http://statistics.data.gov.uk/id/local-authority/47UD,Redditch Borough Council,21/03/2014,203224,V00915540217,20.55,Everything Everywhere Ltd,5658,Exec. Director Fin. & Resource,Mobile Phone,4455
http://statistics.data.gov.uk/id/local-authority/47UD,Redditch Borough Council,21/03/2014,203224,V00915540217,3.27,Everything Everywhere Ltd,5658,Exec. Director Fin. & Resource,Mobile Phone,4455
http://statistics.data.gov.uk/id/local-authority/47UD,Redditch Borough Council,21/03/2014,203224,V00915540217,16.43,Everything Everywhere Ltd,5658,Exec. Director Fin. & Resource,Mobile Phone,4455
http://statistics.data.gov.uk/id/local-authority/47UD,Redditch Borough Council,21/03/2014,203224,V00915540217,15.5,Everything Everywhere Ltd,5658,Exec. Director Fin. & Resource,Mobile Phone,4455
http://statistics.data.gov.uk/id/local-authority/47UD,Redditch Borough Council,21/03/2014,203224,V00915540217,17.71,Everything Everywhere Ltd,5658,Exec. Director Fin. & Resource,Mobile Phone,4455
http://statistics.data.gov.uk/id/local-authority/47UD,Redditch Borough Council,21/03/2014,203224,V00915540217,16.52,Everything Everywhere Ltd,5658,Exec. Director Fin. & Resource,Mobile Phone,4455
http://statistics.data.gov.uk/id/local-authority/47UD,Redditch Borough Council,21/03/2014,203224,V00915540217,23.14,Everything Everywhere Ltd,5658,Exec. Director Fin. & Resource,Mobile Phone,4455
http://statistics.data.gov.uk/id/local-authority/47UD,Redditch Borough Council,21/03/2014,203224,V00915540217,22.66,Everything Everywhere Ltd,5658,Exec. Director Fin. & Resource,Mobile Phone,4455
http://statistics.data.gov.uk/id/local-authority/47UD,Redditch Borough Council,21/03/2014,203224,V00915540217,21.19,Everything Everywhere Ltd,5658,Exec. Director Fin. & Resource,Mobile Phone,4455
http://statistics.data.gov.uk/id/local-authority/47UD,Redditch Borough Council,21/03/2014,203224,V00915540217,15.5,Everything Everywhere Ltd,5658,Exec. Director Fin. & Resource,Mobile Phone,4455
http://statistics.data.gov.uk/id/local-authority/47UD,Redditch Borough Council,21/03/2014,203224,V00915540217,48.24,Everything Everywhere Ltd,5658,Exec. Director Fin. & Resource,Mobile Phone,4455
http://statistics.data.gov.uk/id/local-authority/47UD,Redditch Borough Council,21/03/2014,203224,V00915540217,17.09,Everything Everywhere Ltd,5658,Exec. Director Fin. & Resource,Mobile Phone,4455
http://statistics.data.gov.uk/id/local-authority/47UD,Redditch Borough Council,21/03/2014,203224,V00915540217,12.77,Everything Everywhere Ltd,5658,Exec. Director Fin. & Resource,Mobile Phone,4455
http://statistics.data.gov.uk/id/local-authority/47UD,Redditch Borough Council,21/03/2014,203224,V00915540217,52.34,Everything Everywhere Ltd,5658,Exec. Director Fin. & Resource,Mobile Phone,4455
http://statistics.data.gov.uk/id/local-authority/47UD,Redditch Borough Council,21/03/2014,203224,V00915540217,0.27,Everything Everywhere Ltd,5658,Exec. Director Fin. & Resource,Mobile Phone,4455
http://statistics.data.gov.uk/id/local-authority/47UD,Redditch Borough Council,21/03/2014,203224,V00915540217,56.48,Everything Everywhere Ltd,5658,Exec. Director Fin. & Resource,Mobile Phone,4455
http://statistics.data.gov.uk/id/local-authority/47UD,Redditch Borough Council,21/03/2014,203224,V00915540217,2.27,Everything Everywhere Ltd,5658,Exec. Director Fin. & Resource,Mobile Phone,4455
http://statistics.data.gov.uk/id/local-authority/47UD,Redditch Borough Council,21/03/2014,203224,V00915540217,1.55,Everything Everywhere Ltd,5658,Exec. Director Fin. & Resource,Mobile Phone,4455
http://statistics.data.gov.uk/id/local-authority/47UD,Redditch Borough Council,21/03/2014,203224,V00915540217,9.61,Everything Everywhere Ltd,5658,Exec. Director Fin. & Resource,Mobile Phone,4455
http://statistics.data.gov.uk/id/local-authority/47UD,Redditch Borough Council,21/03/2014,203224,V00915540217,6.01,Everything Everywhere Ltd,5658,Exec. Director Fin. & Resource,Mobile Phone,4455
http://statistics.data.gov.uk/id/local-authority/47UD,Redditch Borough Council,21/03/2014,203224,V00915540217,0.4,Everything Everywhere Ltd,5658,Exec. Director Fin. & Resource,Mobile Phone,4455
http://statistics.data.gov.uk/id/local-authority/47UD,Redditch Borough Council,21/03/2014,203224,V00915540217,25.94,Everything Everywhere Ltd,5658,Exec. Director Fin. & Resource,Mobile Phone,4455
http://statistics.data.gov.uk/id/local-authority/47UD,Redditch Borough Council,21/03/2014,203224,V00915540217,12.56,Everything Everywhere Ltd,5658,Exec. Director Fin. & Resource,Mobile Phone,4455
http://statistics.data.gov.uk/id/local-authority/47UD,Redditch Borough Council,21/03/2014,203224,V00915540217,20,Everything Everywhere Ltd,5658,Exec. Director Fin. & Resource,Mobile Phone,4455
http://statistics.data.gov.uk/id/local-authority/47UD,Redditch Borough Council,21/03/2014,203224,V00915540217,2.38,Everything Everywhere Ltd,5658,Exec. Director Fin. & Resource,Mobile Phone,4455
http://statistics.data.gov.uk/id/local-authority/47UD,Redditch Borough Council,21/03/2014,203224,V00915540217,2.43,Everything Everywhere Ltd,5658,Exec. Director Fin. & Resource,Mobile Phone,4455
http://statistics.data.gov.uk/id/local-authority/47UD,Redditch Borough Council,21/03/2014,203224,V00915540217,12.77,Everything Everywhere Ltd,5658,Exec. Director Fin. & Resource,Mobile Phone,4455
http://statistics.data.gov.uk/id/local-authority/47UD,Redditch Borough Council,21/03/2014,203224,V00915540217,15.5,Everything Everywhere Ltd,5658,Exec. Director Fin. & Resource,Mobile Phone,4455
http://statistics.data.gov.uk/id/local-authority/47UD,Redditch Borough Council,21/03/2014,203224,V00915540217,44.93,Everything Everywhere Ltd,5658,Exec. Director Fin. & Resource,Mobile Phone,4455
http://statistics.data.gov.uk/id/local-authority/47UD,Redditch Borough Council,21/03/2014,203224,V00915540217,6.1,Everything Everywhere Ltd,5658,Exec. Director Prrh,Mobile Phone,4455
http://statistics.data.gov.uk/id/local-authority/47UD,Redditch Borough Council,21/03/2014,203224,V00915540217,17.83,Everything Everywhere Ltd,5658,Exec. Director Prrh,Mobile Phone,4455
http://statistics.data.gov.uk/id/local-authority/47UD,Redditch Borough Council,21/03/2014,203224,V00915540217,12.77,Everything Everywhere Ltd,5658,Exec. Director Prrh,Mobile Phone,4455
http://statistics.data.gov.uk/id/local-authority/47UD,Redditch Borough Council,21/03/2014,203224,V00915540217,25.32,Everything Everywhere Ltd,5658,Exec. Director Prrh,Mobile Phone,4455
http://statistics.data.gov.uk/id/local-authority/47UD,Redditch Borough Council,21/03/2014,203224,V00915540217,1.3,Everything Everywhere Ltd,5658,Exec. Director Prrh,Mobile Phone,4455
http://statistics.data.gov.uk/id/local-authority/47UD,Redditch Borough Council,21/03/2014,203224,V00915540217,23.89,Everything Everywhere Ltd,5658,Exec. Director Prrh,Mobile Phone,4455
http://statistics.data.gov.uk/id/local-authority/47UD,Redditch Borough Council,21/03/2014,203224,V00915540217,27.8,Everything Everywhere Ltd,5658,Exec. Director Prrh,Mobile Phone,4455
http://statistics.data.gov.uk/id/local-authority/47UD,Redditch Borough Council,21/03/2014,203224,V00915540217,0.56,Everything Everywhere Ltd,5658,Exec. Director Prrh,Mobile Phone,4455
http://statistics.data.gov.uk/id/local-authority/47UD,Redditch Borough Council,21/03/2014,203224,V00915540217,6.56,Everything Everywhere Ltd,5658,Exec. Director Prrh,Mobile Phone,4455
http://statistics.data.gov.uk/id/local-authority/47UD,Redditch Borough Council,21/03/2014,203224,V00915540217,21.65,Everything Everywhere Ltd,5658,Exec. Director Prrh,Mobile Phone,4455
http://statistics.data.gov.uk/id/local-authority/47UD,Redditch Borough Council,21/03/2014,203224,V00915540217,20.04,Everything Everywhere Ltd,5658,Exec. Director Prrh,Mobile Phone,4455
http://statistics.data.gov.uk/id/local-authority/47UD,Redditch Borough Council,21/03/2014,203224,V00915540217,24.57,Everything Everywhere Ltd,5658,Exec. Director Prrh,Mobile Phone,4455
http://statistics.data.gov.uk/id/local-authority/47UD,Redditch Borough Council,21/03/2014,203224,V00915540217,73.93,Everything Everywhere Ltd,5658,Exec. Director Prrh,Mobile Phone,4455
http://statistics.data.gov.uk/id/local-authority/47UD,Redditch Borough Council,21/03/2014,203224,V00915540217,1.86,Everything Everywhere Ltd,5658,Exec. Director Prrh,Mobile Phone,4455
http://statistics.data.gov.uk/id/local-authority/47UD,Redditch Borough Council,21/03/2014,203224,V00915540217,4.12,Everything Everywhere Ltd,5658,Exec. Director Prrh,Mobile Phone,4455
http://statistics.data.gov.uk/id/local-authority/47UD,Redditch Borough Council,21/03/2014,203224,V00915540217,12.77,Everything Everywhere Ltd,5658,Exec. Director Prrh,Mobile Phone,4455
http://statistics.data.gov.uk/id/local-authority/47UD,Redditch Borough Council,21/03/2014,203224,V00915540217,1.37,Everything Everywhere Ltd,5658,Exec. Director Prrh,Mobile Phone,4455
http://statistics.data.gov.uk/id/local-authority/47UD,Redditch Borough Council,21/03/2014,203224,V00915540217,19.31,Everything Everywhere Ltd,5658,Exec. Director Prrh,Mobile Phone,4455
http://statistics.data.gov.uk/id/local-authority/47UD,Redditch Borough Council,21/03/2014,203224,V00915540217,15.76,Everything Everywhere Ltd,5658,Exec. Director Prrh,Mobile Phone,4455
http://statistics.data.gov.uk/id/local-authority/47UD,Redditch Borough Council,21/03/2014,203224,V00915540217,25.5,Everything Everywhere Ltd,5658,Exec. Director Prrh,Mobile Phone,4455
http://statistics.data.gov.uk/id/local-authority/47UD,Redditch Borough Council,21/03/2014,203224,V00915540217,0.25,Everything Everywhere Ltd,5658,Exec. Director Prrh,Mobile Phone,4455
http://statistics.data.gov.uk/id/local-authority/47UD,Redditch Borough Council,21/03/2014,203224,V00915540217,10,Everything Everywhere Ltd,5658,Exec. Director Prrh,Mobile Phone,4455
http://statistics.data.gov.uk/id/local-authority/47UD,Redditch Borough Council,21/03/2014,203224,V00915540217,3.54,Everything Everywhere Ltd,5658,Exec. Director Prrh,Mobile Phone,4455
http://statistics.data.gov.uk/id/local-authority/47UD,Redditch Borough Council,21/03/2014,203224,V00915540217,12.77,Everything Everywhere Ltd,5658,Executive Director Lec,Mobile Phone,4455
http://statistics.data.gov.uk/id/local-authority/47UD,Redditch Borough Council,21/03/2014,203224,V00915540217,0.43,Everything Everywhere Ltd,5658,Executive Director Lec,Mobile Phone,4455
http://statistics.data.gov.uk/id/local-authority/47UD,Redditch Borough Council,21/03/2014,203224,V00915540217,0.8,Everything Everywhere Ltd,5658,Executive Director Lec,Mobile Phone,4455
http://statistics.data.gov.uk/id/local-authority/47UD,Redditch Borough Council,21/03/2014,203224,V00915540217,8.92,Everything Everywhere Ltd,5658,Executive Director Lec,Mobile Phone,4455
http://statistics.data.gov.uk/id/local-authority/47UD,Redditch Borough Council,21/03/2014,203224,V00915540217,2.11,Everything Everywhere Ltd,5658,Executive Director Lec,Mobile Phone,4455
http://statistics.data.gov.uk/id/local-authority/47UD,Redditch Borough Council,21/03/2014,203224,V00915540217,12.77,Everything Everywhere Ltd,5658,Executive Director Lec,Mobile Phone,4455
http://statistics.data.gov.uk/id/local-authority/47UD,Redditch Borough Council,21/03/2014,203224,V00915540217,8.37,Everything Everywhere Ltd,5658,Executive Director Lec,Mobile Phone,4455
http://statistics.data.gov.uk/id/local-authority/47UD,Redditch Borough Council,21/03/2014,203224,V00915540217,11.14,Everything Everywhere Ltd,5658,Executive Director Lec,Mobile Phone,4455
http://statistics.data.gov.uk/id/local-authority/47UD,Redditch Borough Council,21/03/2014,203224,V00915540217,2.07,Everything Everywhere Ltd,5658,Executive Director Lec,Mobile Phone,4455
http://statistics.data.gov.uk/id/local-authority/47UD,Redditch Borough Council,21/03/2014,203224,V00915540217,15.97,Everything Everywhere Ltd,5658,Executive Director Lec,Mobile Phone,4455
http://statistics.data.gov.uk/id/local-authority/47UD,Redditch Borough Council,21/03/2014,203224,V00915540217,0.09,Everything Everywhere Ltd,5658,Executive Director Lec,Mobile Phone,4455
http://statistics.data.gov.uk/id/local-authority/47UD,Redditch Borough Council,21/03/2014,203224,V00915540217,2.06,Everything Everywhere Ltd,5658,Executive Director Lec,Mobile Phone,4455
http://statistics.data.gov.uk/id/local-authority/47UD,Redditch Borough Council,21/03/2014,203224,V00915540217,1.62,Everything Everywhere Ltd,5658,Executive Director Lec,Mobile Phone,4455
http://statistics.data.gov.uk/id/local-authority/47UD,Redditch Borough Council,21/03/2014,203224,V00915540217,1.83,Everything Everywhere Ltd,5658,Executive Director Lec,Mobile Phone,4455
http://statistics.data.gov.uk/id/local-authority/47UD,Redditch Borough Council,21/03/2014,203224,V00915540217,1.73,Everything Everywhere Ltd,5658,Executive Director Lec,Mobile Phone,4455
http://statistics.data.gov.uk/id/local-authority/47UD,Redditch Borough Council,21/03/2014,203224,V00915540217,1.54,Everything Everywhere Ltd,5658,Executive Director Lec,Mobile Phone,4455
http://statistics.data.gov.uk/id/local-authority/47UD,Redditch Borough Council,21/03/2014,203224,V00915540217,1.1,Everything Everywhere Ltd,5658,Executive Director Lec,Mobile Phone,4455
http://statistics.data.gov.uk/id/local-authority/47UD,Redditch Borough Council,21/03/2014,203224,V00915540217,2.68,Everything Everywhere Ltd,5658,Executive Director Lec,Mobile Phone,4455
http://statistics.data.gov.uk/id/local-authority/47UD,Redditch Borough Council,21/03/2014,203224,V00915540217,1.25,Everything Everywhere Ltd,5658,Executive Director Lec,Mobile Phone,4455
http://statistics.data.gov.uk/id/local-authority/47UD,Redditch Borough Council,21/03/2014,203224,V00915540217,0.78,Everything Everywhere Ltd,5658,Executive Director Lec,Mobile Phone,4455
http://statistics.data.gov.uk/id/local-authority/47UD,Redditch Borough Council,21/03/2014,203224,V00915540217,2.42,Everything Everywhere Ltd,5658,Executive Director Lec,Mobile Phone,4455
http://statistics.data.gov.uk/id/local-authority/47UD,Redditch Borough Council,21/03/2014,203224,V00915540217,14.98,Everything Everywhere Ltd,5658,Executive Director Lec,Mobile Phone,4455
http://statistics.data.gov.uk/id/local-authority/47UD,Redditch Borough Council,21/03/2014,203224,V00915540217,1.27,Everything Everywhere Ltd,5658,Executive Director Lec,Mobile Phone,4455
http://statistics.data.gov.uk/id/local-authority/47UD,Redditch Borough Council,21/03/2014,203224,V00915540217,0.52,Everything Everywhere Ltd,5658,Executive Director Lec,Mobile Phone,4455
http://statistics.data.gov.uk/id/local-authority/47UD,Redditch Borough Council,21/03/2014,203224,V00915540217,0.83,Everything Everywhere Ltd,5658,Executive Director Lec,Mobile Phone,4455
http://statistics.data.gov.uk/id/local-authority/47UD,Redditch Borough Council,21/03/2014,203224,V00915540217,4.46,Everything Everywhere Ltd,5658,Executive Director Lec,Mobile Phone,4455
http://statistics.data.gov.uk/id/local-authority/47UD,Redditch Borough Council,21/03/2014,203224,V00915540217,0.31,Everything Everywhere Ltd,5658,Executive Director Lec,Mobile Phone,4455
http://statistics.data.gov.uk/id/local-authority/47UD,Redditch Borough Council,21/03/2014,203224,V00915540217,2.85,Everything Everywhere Ltd,5658,Executive Director Lec,Mobile Phone,4455
http://statistics.data.gov.uk/id/local-authority/47UD,Redditch Borough Council,21/03/2014,203224,V00915540217,1.53,Everything Everywhere Ltd,5658,Executive Director Lec,Mobile Phone,4455
http://statistics.data.gov.uk/id/local-authority/47UD,Redditch Borough Council,21/03/2014,203224,V00915540217,10.02,Everything Everywhere Ltd,5658,Executive Director Lec,Mobile Phone,4455
http://statistics.data.gov.uk/id/local-authority/47UD,Redditch Borough Council,21/03/2014,203224,V00915540217,0.29,Everything Everywhere Ltd,5658,Executive Director Lec,Mobile Phone,4455
http://statistics.data.gov.uk/id/local-authority/47UD,Redditch Borough Council,21/03/2014,203224,V00915540217,0.78,Everything Everywhere Ltd,5658,Executive Director Lec,Mobile Phone,4455
http://statistics.data.gov.uk/id/local-authority/47UD,Redditch Borough Council,21/03/2014,203224,V00915540217,6.25,Everything Everywhere Ltd,5658,Executive Director Lec,Mobile Phone,4455
http://statistics.data.gov.uk/id/local-authority/47UD,Redditch Borough Council,21/03/2014,203224,V00915540217,0.47,Everything Everywhere Ltd,5658,Executive Director Lec,Mobile Phone,4455
http://statistics.data.gov.uk/id/local-authority/47UD,Redditch Borough Council,21/03/2014,203224,V00915540217,4.75,Everything Everywhere Ltd,5658,Executive Director Lec,Mobile Phone,4455
http://statistics.data.gov.uk/id/local-authority/47UD,Redditch Borough Council,21/03/2014,203224,V00915540217,0.44,Everything Everywhere Ltd,5658,Executive Director Lec,Mobile Phone,4455
http://statistics.data.gov.uk/id/local-authority/47UD,Redditch Borough Council,21/03/2014,203224,V00915540217,0.12,Everything Everywhere Ltd,5658,Executive Director Lec,Mobile Phone,4455
http://statistics.data.gov.uk/id/local-authority/47UD,Redditch Borough Council,21/03/2014,203224,V00915540217,11.55,Everything Everywhere Ltd,5658,Executive Director Lec,Mobile Phone,4455
http://statistics.data.gov.uk/id/local-authority/47UD,Redditch Borough Council,21/03/2014,203224,V00915540217,0.48,Everything Everywhere Ltd,5658,Executive Director Lec,Mobile Phone,4455
http://statistics.data.gov.uk/id/local-authority/47UD,Redditch Borough Council,21/03/2014,203224,V00915540217,3.82,Everything Everywhere Ltd,5658,Executive Director Lec,Mobile Phone,4455
http://statistics.data.gov.uk/id/local-authority/47UD,Redditch Borough Council,21/03/2014,203224,V00915540217,4.51,Everything Everywhere Ltd,5658,Executive Director Lec,Mobile Phone,4455
http://statistics.data.gov.uk/id/local-authority/47UD,Redditch Borough Council,21/03/2014,203224,V00915540217,0.72,Everything Everywhere Ltd,5658,Executive Director Lec,Mobile Phone,4455
http://statistics.data.gov.uk/id/local-authority/47UD,Redditch Borough Council,21/03/2014,203224,V00915540217,8.1,Everything Everywhere Ltd,5658,Executive Director Lec,Mobile Phone,4455
http://statistics.data.gov.uk/id/local-authority/47UD,Redditch Borough Council,21/03/2014,203224,V00915540217,1.11,Everything Everywhere Ltd,5658,Executive Director Lec,Mobile Phone,4455
http://statistics.data.gov.uk/id/local-authority/47UD,Redditch Borough Council,21/03/2014,203224,V00915540217,12.05,Everything Everywhere Ltd,5658,Executive Director Lec,Mobile Phone,4455
http://statistics.data.gov.uk/id/local-authority/47UD,Redditch Borough Council,21/03/2014,203224,V00915540217,3.71,Everything Everywhere Ltd,5658,Executive Director Lec,Mobile Phone,4455
http://statistics.data.gov.uk/id/local-authority/47UD,Redditch Borough Council,21/03/2014,203224,V00915540217,3.12,Everything Everywhere Ltd,5658,Executive Director Lec,Mobile Phone,4455
http://statistics.data.gov.uk/id/local-authority/47UD,Redditch Borough Council,21/03/2014,203224,V00915540217,17.61,Everything Everywhere Ltd,5658,Executive Director Lec,Mobile Phone,4455
http://statistics.data.gov.uk/id/local-authority/47UD,Redditch Borough Council,21/03/2014,203224,V00915540217,2.24,Everything Everywhere Ltd,5658,Executive Director Lec,Mobile Phone,4455
http://statistics.data.gov.uk/id/local-authority/47UD,Redditch Borough Council,21/03/2014,203224,V00915540217,0.41,Everything Everywhere Ltd,5658,Executive Director Lec,Mobile Phone,4455
http://statistics.data.gov.uk/id/local-authority/47UD,Redditch Borough Council,21/03/2014,203224,V00915540217,7.92,Everything Everywhere Ltd,5658,Executive Director Lec,Mobile Phone,4455
http://statistics.data.gov.uk/id/local-authority/47UD,Redditch Borough Council,21/03/2014,203224,V00915540217,2.91,Everything Everywhere Ltd,5658,Executive Director Lec,Mobile Phone,4455
http://statistics.data.gov.uk/id/local-authority/47UD,Redditch Borough Council,21/03/2014,203224,V00915540217,0.11,Everything Everywhere Ltd,5658,Executive Director Lec,Mobile Phone,4455
http://statistics.data.gov.uk/id/local-authority/47UD,Redditch Borough Council,21/03/2014,203224,V00915540217,0.14,Everything Everywhere Ltd,5658,Executive Director Lec,Mobile Phone,4455
http://statistics.data.gov.uk/id/local-authority/47UD,Redditch Borough Council,21/03/2014,203224,V00915540217,6.45,Everything Everywhere Ltd,5658,Executive Director Lec,Mobile Phone,4455
http://statistics.data.gov.uk/id/local-authority/47UD,Redditch Borough Council,21/03/2014,203224,V00915540217,0.81,Everything Everywhere Ltd,5658,Executive Director Lec,Mobile Phone,4455
http://statistics.data.gov.uk/id/local-authority/47UD,Redditch Borough Council,21/03/2014,203224,V00915540217,6.38,Everything Everywhere Ltd,5658,Executive Director Lec,Mobile Phone,4455
http://statistics.data.gov.uk/id/local-authority/47UD,Redditch Borough Council,21/03/2014,203224,V00915540217,1.77,Everything Everywhere Ltd,5658,Executive Director Lec,Mobile Phone,4455
http://statistics.data.gov.uk/id/local-authority/47UD,Redditch Borough Council,21/03/2014,203224,V00915540217,1.85,Everything Everywhere Ltd,5658,Executive Director Lec,Mobile Phone,4455
http://statistics.data.gov.uk/id/local-authority/47UD,Redditch Borough Council,21/03/2014,203224,V00915540217,14.08,Everything Everywhere Ltd,5658,Executive Director Lec,Mobile Phone,4455
http://statistics.data.gov.uk/id/local-authority/47UD,Redditch Borough Council,21/03/2014,203224,V00915540217,0.84,Everything Everywhere Ltd,5658,Executive Director Lec,Mobile Phone,4455
http://statistics.data.gov.uk/id/local-authority/47UD,Redditch Borough Council,21/03/2014,203224,V00915540217,5.19,Everything Everywhere Ltd,5658,Executive Director Lec,Mobile Phone,4455
http://statistics.data.gov.uk/id/local-authority/47UD,Redditch Borough Council,21/03/2014,203224,V00915540217,5.5,Everything Everywhere Ltd,5658,Executive Director Lec,Mobile Phone,4455
http://statistics.data.gov.uk/id/local-authority/47UD,Redditch Borough Council,21/03/2014,203224,V00915540217,36.24,Everything Everywhere Ltd,5658,Executive Director Lec,Mobile Phone,4455
http://statistics.data.gov.uk/id/local-authority/47UD,Redditch Borough Council,21/03/2014,203224,V00915540217,3.89,Everything Everywhere Ltd,5658,Executive Director Lec,Mobile Phone,4455
http://statistics.data.gov.uk/id/local-authority/47UD,Redditch Borough Council,21/03/2014,203224,V00915540217,0.74,Everything Everywhere Ltd,5658,Executive Director Lec,Mobile Phone,4455
http://statistics.data.gov.uk/id/local-authority/47UD,Redditch Borough Council,21/03/2014,203224,V00915540217,27.15,Everything Everywhere Ltd,5658,Executive Director Lec,Mobile Phone,4455
http://statistics.data.gov.uk/id/local-authority/47UD,Redditch Borough Council,21/03/2014,203224,V00915540217,7.79,Everything Everywhere Ltd,5658,Executive Director Lec,Mobile Phone,4455
http://statistics.data.gov.uk/id/local-authority/47UD,Redditch Borough Council,21/03/2014,203224,V00915540217,0.12,Everything Everywhere Ltd,5658,Executive Director Lec,Mobile Phone,4455
http://statistics.data.gov.uk/id/local-authority/47UD,Redditch Borough Council,21/03/2014,203224,V00915540217,1.12,Everything Everywhere Ltd,5658,Executive Director Lec,Mobile Phone,4455
http://statistics.data.gov.uk/id/local-authority/47UD,Redditch Borough Council,21/03/2014,203224,V00915540217,1.09,Everything Everywhere Ltd,5658,Executive Director Lec,Mobile Phone,4455
http://statistics.data.gov.uk/id/local-authority/47UD,Redditch Borough Council,21/03/2014,203224,V00915540217,19.27,Everything Everywhere Ltd,5658,Executive Director Lec,Mobile Phone,4455
http://statistics.data.gov.uk/id/local-authority/47UD,Redditch Borough Council,21/03/2014,203224,V00915540217,14.81,Everything Everywhere Ltd,5658,Executive Director Lec,Mobile Phone,4455
http://statistics.data.gov.uk/id/local-authority/47UD,Redditch Borough Council,21/03/2014,203224,V00915540217,0.65,Everything Everywhere Ltd,5658,Executive Director Lec,Mobile Phone,4455
http://statistics.data.gov.uk/id/local-authority/47UD,Redditch Borough Council,21/03/2014,203224,V00915540217,24.32,Everything Everywhere Ltd,5658,Executive Director Lec,Mobile Phone,4455
http://statistics.data.gov.uk/id/local-authority/47UD,Redditch Borough Council,21/03/2014,203224,V00915540217,1.27,Everything Everywhere Ltd,5658,Executive Director Lec,Mobile Phone,4455
http://statistics.data.gov.uk/id/local-authority/47UD,Redditch Borough Council,21/03/2014,203224,V00915540217,1.22,Everything Everywhere Ltd,5658,Executive Director Lec,Mobile Phone,4455
http://statistics.data.gov.uk/id/local-authority/47UD,Redditch Borough Council,21/03/2014,203224,V00915540217,0.24,Everything Everywhere Ltd,5658,Executive Director Lec,Mobile Phone,4455
http://statistics.data.gov.uk/id/local-authority/47UD,Redditch Borough Council,21/03/2014,203224,V00915540217,0.48,Everything Everywhere Ltd,5658,Executive Director Lec,Mobile Phone,4455
http://statistics.data.gov.uk/id/local-authority/47UD,Redditch Borough Council,21/03/2014,203224,V00915540217,4.99,Everything Everywhere Ltd,5658,Executive Director Lec,Mobile Phone,4455
http://statistics.data.gov.uk/id/local-authority/47UD,Redditch Borough Council,21/03/2014,203224,V00915540217,2.09,Everything Everywhere Ltd,5658,Executive Director Lec,Mobile Phone,4455
http://statistics.data.gov.uk/id/local-authority/47UD,Redditch Borough Council,21/03/2014,203224,V00915540217,24.05,Everything Everywhere Ltd,5658,Executive Director Lec,Mobile Phone,4455
http://statistics.data.gov.uk/id/local-authority/47UD,Redditch Borough Council,21/03/2014,203224,V00915540217,12.05,Everything Everywhere Ltd,5658,Executive Director Lec,Mobile Phone,4455
http://statistics.data.gov.uk/id/local-authority/47UD,Redditch Borough Council,21/03/2014,203224,V00915540217,12.23,Everything Everywhere Ltd,5658,Executive Director Lec,Mobile Phone,4455
http://statistics.data.gov.uk/id/local-authority/47UD,Redditch Borough Council,21/03/2014,203224,V00915540217,0.47,Everything Everywhere Ltd,5658,Executive Director Lec,Mobile Phone,4455
http://statistics.data.gov.uk/id/local-authority/47UD,Redditch Borough Council,21/03/2014,203224,V00915540217,6.14,Everything Everywhere Ltd,5658,Executive Director Lec,Mobile Phone,4455
http://statistics.data.gov.uk/id/local-authority/47UD,Redditch Borough Council,21/03/2014,203224,V00915540217,12.77,Everything Everywhere Ltd,5658,Executive Director Lec,Mobile Phone,4455
http://statistics.data.gov.uk/id/local-authority/47UD,Redditch Borough Council,21/03/2014,203224,V00915540217,32.94,Everything Everywhere Ltd,5658,Executive Director Lec,Mobile Phone,4455
http://statistics.data.gov.uk/id/local-authority/47UD,Redditch Borough Council,21/03/2014,203224,V00915540217,17.27,Everything Everywhere Ltd,5658,Executive Director Lec,Mobile Phone,4455
http://statistics.data.gov.uk/id/local-authority/47UD,Redditch Borough Council,21/03/2014,203224,V00915540217,21.04,Everything Everywhere Ltd,5658,Executive Director Lec,Mobile Phone,4455
http://statistics.data.gov.uk/id/local-authority/47UD,Redditch Borough Council,21/03/2014,203224,V00915540217,4.25,Everything Everywhere Ltd,5658,Executive Director Lec,Mobile Phone,4455
http://statistics.data.gov.uk/id/local-authority/47UD,Redditch Borough Council,21/03/2014,203224,V00915540217,0.25,Everything Everywhere Ltd,5658,Executive Director Lec,Mobile Phone,4455
http://statistics.data.gov.uk/id/local-authority/47UD,Redditch Borough Council,21/03/2014,203224,V00915540217,30.31,Everything Everywhere Ltd,5658,Executive Director Lec,Mobile Phone,4455
http://statistics.data.gov.uk/id/local-authority/47UD,Redditch Borough Council,21/03/2014,203224,V00915540217,0.13,Everything Everywhere Ltd,5658,Executive Director Lec,Mobile Phone,4455
http://statistics.data.gov.uk/id/local-authority/47UD,Redditch Borough Council,21/03/2014,203224,V00915540217,1.81,Everything Everywhere Ltd,5658,Executive Director Lec,Mobile Phone,4455
http://statistics.data.gov.uk/id/local-authority/47UD,Redditch Borough Council,21/03/2014,203224,V00915540217,20.55,Everything Everywhere Ltd,5658,Executive Director Lec,Mobile Phone,4455
http://statistics.data.gov.uk/id/local-authority/47UD,Redditch Borough Council,21/03/2014,203224,V00915540217,2.1,Everything Everywhere Ltd,5658,Executive Director Lec,Mobile Phone,4455
http://statistics.data.gov.uk/id/local-authority/47UD,Redditch Borough Council,21/03/2014,203224,V00915540217,1.21,Everything Everywhere Ltd,5658,Executive Director Lec,Mobile Phone,4455
http://statistics.data.gov.uk/id/local-authority/47UD,Redditch Borough Council,21/03/2014,203224,V00915540217,0.11,Everything Everywhere Ltd,5658,Executive Director Lec,Mobile Phone,4455
http://statistics.data.gov.uk/id/local-authority/47UD,Redditch Borough Council,21/03/2014,203224,V00915540217,0.58,Everything Everywhere Ltd,5658,Executive Director Lec,Mobile Phone,4455
http://statistics.data.gov.uk/id/local-authority/47UD,Redditch Borough Council,21/03/2014,203224,V00915540217,0.04,Everything Everywhere Ltd,5658,Executive Director Lec,Mobile Phone,4455
http://statistics.data.gov.uk/id/local-authority/47UD,Redditch Borough Council,21/03/2014,203224,V00915540217,0.23,Everything Everywhere Ltd,5658,Executive Director Lec,Mobile Phone,4455
http://statistics.data.gov.uk/id/local-authority/47UD,Redditch Borough Council,21/03/2014,203224,V00915540217,2.1,Everything Everywhere Ltd,5658,Executive Director Lec,Mobile Phone,4455
http://statistics.data.gov.uk/id/local-authority/47UD,Redditch Borough Council,21/03/2014,203224,V00915540217,6.1,Everything Everywhere Ltd,5658,Executive Director Lec,Mobile Phone,4455
http://statistics.data.gov.uk/id/local-authority/47UD,Redditch Borough Council,21/03/2014,203224,V00915540217,2.11,Everything Everywhere Ltd,5658,Executive Director Lec,Mobile Phone,4455
http://statistics.data.gov.uk/id/local-authority/47UD,Redditch Borough Council,21/03/2014,203224,V00915540217,0.64,Everything Everywhere Ltd,5658,Executive Director Lec,Mobile Phone,4455
http://statistics.data.gov.uk/id/local-authority/47UD,Redditch Borough Council,21/03/2014,203224,V00915540217,4.89,Everything Everywhere Ltd,5658,Executive Director Lec,Mobile Phone,4455
http://statistics.data.gov.uk/id/local-authority/47UD,Redditch Borough Council,21/03/2014,203224,V00915540217,14.5,Everything Everywhere Ltd,5658,Executive Director Lec,Mobile Phone,4455
http://statistics.data.gov.uk/id/local-authority/47UD,Redditch Borough Council,21/03/2014,203224,V00915540217,11.8,Everything Everywhere Ltd,5658,Executive Director Lec,Mobile Phone,4455
http://statistics.data.gov.uk/id/local-authority/47UD,Redditch Borough Council,21/03/2014,203224,V00915540217,0.04,Everything Everywhere Ltd,5658,Executive Director Lec,Mobile Phone,4455
http://statistics.data.gov.uk/id/local-authority/47UD,Redditch Borough Council,21/03/2014,203224,V00915540217,0.5,Everything Everywhere Ltd,5658,Executive Director Lec,Mobile Phone,4455
http://statistics.data.gov.uk/id/local-authority/47UD,Redditch Borough Council,21/03/2014,203224,V00915540217,0.5,Everything Everywhere Ltd,5658,Executive Director Lec,Mobile Phone,4455
http://statistics.data.gov.uk/id/local-authority/47UD,Redditch Borough Council,21/03/2014,203224,V00915540217,0.5,Everything Everywhere Ltd,5658,Executive Director Lec,Mobile Phone,4455
http://statistics.data.gov.uk/id/local-authority/47UD,Redditch Borough Council,21/03/2014,203224,V00915540217,0.5,Everything Everywhere Ltd,5658,Executive Director Lec,Mobile Phone,4455
http://statistics.data.gov.uk/id/local-authority/47UD,Redditch Borough Council,21/03/2014,203224,V00915540217,1.21,Everything Everywhere Ltd,5658,Executive Director Lec,Mobile Phone,4455
http://statistics.data.gov.uk/id/local-authority/47UD,Redditch Borough Council,21/03/2014,203224,V00915540217,7.44,Everything Everywhere Ltd,5658,Executive Director Lec,Mobile Phone,4455
http://statistics.data.gov.uk/id/local-authority/47UD,Redditch Borough Council,21/03/2014,203224,V00915540217,0.75,Everything Everywhere Ltd,5658,Executive Director Lec,Mobile Phone,4455
http://statistics.data.gov.uk/id/local-authority/47UD,Redditch Borough Council,21/03/2014,203224,V00915540217,0.49,Everything Everywhere Ltd,5658,Executive Director Lec,Mobile Phone,4455
http://statistics.data.gov.uk/id/local-authority/47UD,Redditch Borough Council,21/03/2014,203224,V00915540217,2.43,Everything Everywhere Ltd,5658,Executive Director Lec,Mobile Phone,4455
http://statistics.data.gov.uk/id/local-authority/47UD,Redditch Borough Council,21/03/2014,203224,V00915540217,23.78,Everything Everywhere Ltd,5658,Executive Director Lec,Mobile Phone,4455
http://statistics.data.gov.uk/id/local-authority/47UD,Redditch Borough Council,21/03/2014,203224,V00915540217,3.48,Everything Everywhere Ltd,5658,Executive Director Lec,Mobile Phone,4455
http://statistics.data.gov.uk/id/local-authority/47UD,Redditch Borough Council,21/03/2014,203224,V00915540217,5.74,Everything Everywhere Ltd,5658,Executive Director Lec,Mobile Phone,4455
http://statistics.data.gov.uk/id/local-authority/47UD,Redditch Borough Council,21/03/2014,203224,V00915540217,3.13,Everything Everywhere Ltd,5658,Executive Director Lec,Mobile Phone,4455
http://statistics.data.gov.uk/id/local-authority/47UD,Redditch Borough Council,21/03/2014,203224,V00915540217,2.05,Everything Everywhere Ltd,5658,Executive Director Lec,Mobile Phone,4455
http://statistics.data.gov.uk/id/local-authority/47UD,Redditch Borough Council,21/03/2014,203224,V00915540217,2.89,Everything Everywhere Ltd,5658,Executive Director Lec,Mobile Phone,4455
http://statistics.data.gov.uk/id/local-authority/47UD,Redditch Borough Council,21/03/2014,203224,V00915540217,8.3,Everything Everywhere Ltd,5658,Executive Director Lec,Mobile Phone,4455
http://statistics.data.gov.uk/id/local-authority/47UD,Redditch Borough Council,21/03/2014,203224,V00915540217,0.32,Everything Everywhere Ltd,5658,Executive Director Lec,Mobile Phone,4455
http://statistics.data.gov.uk/id/local-authority/47UD,Redditch Borough Council,21/03/2014,203224,V00915540217,5.5,Everything Everywhere Ltd,5658,Executive Director Lec,Mobile Phone,4455
http://statistics.data.gov.uk/id/local-authority/47UD,Redditch Borough Council,21/03/2014,203224,V00915540217,12.24,Everything Everywhere Ltd,5658,Executive Director Lec,Mobile Phone,4455
http://statistics.data.gov.uk/id/local-authority/47UD,Redditch Borough Council,21/03/2014,203224,V00915540217,13.95,Everything Everywhere Ltd,5658,Executive Director Lec,Mobile Phone,4455
http://statistics.data.gov.uk/id/local-authority/47UD,Redditch Borough Council,21/03/2014,203224,V00915540217,7.96,Everything Everywhere Ltd,5658,Executive Director Lec,Mobile Phone,4455
http://statistics.data.gov.uk/id/local-authority/47UD,Redditch Borough Council,21/03/2014,203224,V00915540217,4.02,Everything Everywhere Ltd,5658,Executive Director Lec,Mobile Phone,4455
http://statistics.data.gov.uk/id/local-authority/47UD,Redditch Borough Council,21/03/2014,203224,V00915540217,4.32,Everything Everywhere Ltd,5658,Executive Director Lec,Mobile Phone,4455
http://statistics.data.gov.uk/id/local-authority/47UD,Redditch Borough Council,21/03/2014,203224,V00915540217,3.17,Everything Everywhere Ltd,5658,Executive Director Lec,Mobile Phone,4455
http://statistics.data.gov.uk/id/local-authority/47UD,Redditch Borough Council,21/03/2014,203224,V00915540217,0.05,Everything Everywhere Ltd,5658,Executive Director Lec,Mobile Phone,4455
http://statistics.data.gov.uk/id/local-authority/47UD,Redditch Borough Council,21/03/2014,203224,V00915540217,6.67,Everything Everywhere Ltd,5658,Executive Director Lec,Mobile Phone,4455
http://statistics.data.gov.uk/id/local-authority/47UD,Redditch Borough Council,21/03/2014,203224,V00915540217,4.99,Everything Everywhere Ltd,5658,Executive Director Lec,Mobile Phone,4455
http://statistics.data.gov.uk/id/local-authority/47UD,Redditch Borough Council,21/03/2014,203224,V00915540217,0.35,Everything Everywhere Ltd,5658,Executive Director Lec,Mobile Phone,4455
http://statistics.data.gov.uk/id/local-authority/47UD,Redditch Borough Council,21/03/2014,203224,V00915540217,1.32,Everything Everywhere Ltd,5658,Executive Director Lec,Mobile Phone,4455
http://statistics.data.gov.uk/id/local-authority/47UD,Redditch Borough Council,21/03/2014,203224,V00915540217,4.4,Everything Everywhere Ltd,5658,Executive Director Lec,Mobile Phone,4455
http://statistics.data.gov.uk/id/local-authority/47UD,Redditch Borough Council,21/03/2014,203224,V00915540217,0.07,Everything Everywhere Ltd,5658,Executive Director Lec,Mobile Phone,4455
http://statistics.data.gov.uk/id/local-authority/47UD,Redditch Borough Council,21/03/2014,203224,V00915540217,0.64,Everything Everywhere Ltd,5658,Executive Director Lec,Mobile Phone,4455
http://statistics.data.gov.uk/id/local-authority/47UD,Redditch Borough Council,21/03/2014,203224,V00915540217,4.46,Everything Everywhere Ltd,5658,Executive Director Lec,Mobile Phone,4455
http://statistics.data.gov.uk/id/local-authority/47UD,Redditch Borough Council,21/03/2014,203224,V00915540217,5.02,Everything Everywhere Ltd,5658,Executive Director Lec,Mobile Phone,4455
http://statistics.data.gov.uk/id/local-authority/47UD,Redditch Borough Council,21/03/2014,203224,V00915540217,9.34,Everything Everywhere Ltd,5658,Executive Director Lec,Mobile Phone,4455
http://statistics.data.gov.uk/id/local-authority/47UD,Redditch Borough Council,21/03/2014,203224,V00915540217,2.91,Everything Everywhere Ltd,5658,Executive Director Lec,Mobile Phone,4455
http://statistics.data.gov.uk/id/local-authority/47UD,Redditch Borough Council,21/03/2014,203224,V00915540217,4.95,Everything Everywhere Ltd,5658,Executive Director Lec,Mobile Phone,4455
http://statistics.data.gov.uk/id/local-authority/47UD,Redditch Borough Council,21/03/2014,203224,V00915540217,0.25,Everything Everywhere Ltd,5658,Executive Director Lec,Mobile Phone,4455
http://statistics.data.gov.uk/id/local-authority/47UD,Redditch Borough Council,21/03/2014,203224,V00915540217,0.22,Everything Everywhere Ltd,5658,Executive Director Lec,Mobile Phone,4455
http://statistics.data.gov.uk/id/local-authority/47UD,Redditch Borough Council,21/03/2014,203224,V00915540217,0.12,Everything Everywhere Ltd,5658,Executive Director Lec,Mobile Phone,4455
http://statistics.data.gov.uk/id/local-authority/47UD,Redditch Borough Council,21/03/2014,203224,V00915540217,2.37,Everything Everywhere Ltd,5658,Executive Director Lec,Mobile Phone,4455
http://statistics.data.gov.uk/id/local-authority/47UD,Redditch Borough Council,21/03/2014,203224,V00915540217,34.43,Everything Everywhere Ltd,5658,Executive Director Lec,Mobile Phone,4455
http://statistics.data.gov.uk/id/local-authority/47UD,Redditch Borough Council,21/03/2014,203224,V00915540217,5.5,Everything Everywhere Ltd,5658,Housing Repairs Account,Mobile Phone,4455
http://statistics.data.gov.uk/id/local-authority/47UD,Redditch Borough Council,21/03/2014,203224,V00915540217,32.28,Everything Everywhere Ltd,5658,Housing Repairs Account,Mobile Phone,4455
http://statistics.data.gov.uk/id/local-authority/47UD,Redditch Borough Council,21/03/2014,203224,V00915540217,0.84,Everything Everywhere Ltd,5658,Housing Repairs Account,Mobile Phone,4455
http://statistics.data.gov.uk/id/local-authority/47UD,Redditch Borough Council,21/03/2014,203224,V00915540217,2.47,Everything Everywhere Ltd,5658,Housing Repairs Account,Mobile Phone,4455
http://statistics.data.gov.uk/id/local-authority/47UD,Redditch Borough Council,21/03/2014,203224,V00915540217,10.05,Everything Everywhere Ltd,5658,Housing Repairs Account,Mobile Phone,4455
http://statistics.data.gov.uk/id/local-authority/47UD,Redditch Borough Council,21/03/2014,203224,V00915540217,0.02,Everything Everywhere Ltd,5658,Housing Repairs Account,Mobile Phone,4455
http://statistics.data.gov.uk/id/local-authority/47UD,Redditch Borough Council,21/03/2014,203224,V00915540217,10.94,Everything Everywhere Ltd,5658,Housing Repairs Account,Mobile Phone,4455
http://statistics.data.gov.uk/id/local-authority/47UD,Redditch Borough Council,21/03/2014,203224,V00915540217,1.85,Everything Everywhere Ltd,5658,Housing Repairs Account,Mobile Phone,4455
http://statistics.data.gov.uk/id/local-authority/47UD,Redditch Borough Council,21/03/2014,203224,V00915540217,1.15,Everything Everywhere Ltd,5658,Housing Repairs Account,Mobile Phone,4455
http://statistics.data.gov.uk/id/local-authority/47UD,Redditch Borough Council,21/03/2014,203224,V00915540217,22.74,Everything Everywhere Ltd,5658,Housing Repairs Account,Mobile Phone,4455
http://statistics.data.gov.uk/id/local-authority/47UD,Redditch Borough Council,21/03/2014,203224,V00915540217,2.45,Everything Everywhere Ltd,5658,Housing Repairs Account,Mobile Phone,4455
http://statistics.data.gov.uk/id/local-authority/47UD,Redditch Borough Council,21/03/2014,203224,V00915540217,8.98,Everything Everywhere Ltd,5658,Housing Repairs Account,Mobile Phone,4455
http://statistics.data.gov.uk/id/local-authority/47UD,Redditch Borough Council,21/03/2014,203224,V00915540217,46.36,Everything Everywhere Ltd,5658,Housing Repairs Account,Mobile Phone,4455
http://statistics.data.gov.uk/id/local-authority/47UD,Redditch Borough Council,21/03/2014,203224,V00915540217,2.58,Everything Everywhere Ltd,5658,Housing Repairs Account,Mobile Phone,4455
http://statistics.data.gov.uk/id/local-authority/47UD,Redditch Borough Council,21/03/2014,203224,V00915540217,0.13,Everything Everywhere Ltd,5658,Housing Repairs Account,Mobile Phone,4455
http://statistics.data.gov.uk/id/local-authority/47UD,Redditch Borough Council,21/03/2014,203224,V00915540217,5.44,Everything Everywhere Ltd,5658,Housing Repairs Account,Mobile Phone,4455
http://statistics.data.gov.uk/id/local-authority/47UD,Redditch Borough Council,21/03/2014,203224,V00915540217,14.36,Everything Everywhere Ltd,5658,Housing Repairs Account,Mobile Phone,4455
http://statistics.data.gov.uk/id/local-authority/47UD,Redditch Borough Council,21/03/2014,203224,V00915540217,5.73,Everything Everywhere Ltd,5658,Housing Repairs Account,Mobile Phone,4455
http://statistics.data.gov.uk/id/local-authority/47UD,Redditch Borough Council,21/03/2014,203224,V00915540217,10.79,Everything Everywhere Ltd,5658,Housing Repairs Account,Mobile Phone,4455
http://statistics.data.gov.uk/id/local-authority/47UD,Redditch Borough Council,21/03/2014,203224,V00915540217,7.06,Everything Everywhere Ltd,5658,Housing Repairs Account,Mobile Phone,4455
http://statistics.data.gov.uk/id/local-authority/47UD,Redditch Borough Council,21/03/2014,203224,V00915540217,0.18,Everything Everywhere Ltd,5658,Housing Repairs Account,Mobile Phone,4455
http://statistics.data.gov.uk/id/local-authority/47UD,Redditch Borough Council,21/03/2014,203224,V00915540217,13.39,Everything Everywhere Ltd,5658,Housing Repairs Account,Mobile Phone,4455
http://statistics.data.gov.uk/id/local-authority/47UD,Redditch Borough Council,21/03/2014,203224,V00915540217,8.48,Everything Everywhere Ltd,5658,Housing Repairs Account,Mobile Phone,4455
http://statistics.data.gov.uk/id/local-authority/47UD,Redditch Borough Council,21/03/2014,203224,V00915540217,1.05,Everything Everywhere Ltd,5658,Housing Repairs Account,Mobile Phone,4455
http://statistics.data.gov.uk/id/local-authority/47UD,Redditch Borough Council,21/03/2014,203224,V00915540217,10.68,Everything Everywhere Ltd,5658,Housing Repairs Account,Mobile Phone,4455
http://statistics.data.gov.uk/id/local-authority/47UD,Redditch Borough Council,21/03/2014,203224,V00915540217,5.94,Everything Everywhere Ltd,5658,Housing Repairs Account,Mobile Phone,4455
http://statistics.data.gov.uk/id/local-authority/47UD,Redditch Borough Council,21/03/2014,203224,V00915540217,1.66,Everything Everywhere Ltd,5658,Housing Repairs Account,Mobile Phone,4455
http://statistics.data.gov.uk/id/local-authority/47UD,Redditch Borough Council,21/03/2014,203224,V00915540217,5.77,Everything Everywhere Ltd,5658,Housing Repairs Account,Mobile Phone,4455
http://statistics.data.gov.uk/id/local-authority/47UD,Redditch Borough Council,21/03/2014,203224,V00915540217,3.57,Everything Everywhere Ltd,5658,Housing Repairs Account,Mobile Phone,4455
http://statistics.data.gov.uk/id/local-authority/47UD,Redditch Borough Council,21/03/2014,203224,V00915540217,5.35,Everything Everywhere Ltd,5658,Housing Repairs Account,Mobile Phone,4455
http://statistics.data.gov.uk/id/local-authority/47UD,Redditch Borough Council,21/03/2014,203224,V00915540217,4.12,Everything Everywhere Ltd,5658,Housing Repairs Account,Mobile Phone,4455
http://statistics.data.gov.uk/id/local-authority/47UD,Redditch Borough Council,21/03/2014,203224,V00915540217,7.08,Everything Everywhere Ltd,5658,Housing Repairs Account,Mobile Phone,4455
http://statistics.data.gov.uk/id/local-authority/47UD,Redditch Borough Council,21/03/2014,203224,V00915540217,17.4,Everything Everywhere Ltd,5658,Housing Repairs Account,Mobile Phone,4455
http://statistics.data.gov.uk/id/local-authority/47UD,Redditch Borough Council,21/03/2014,203224,V00915540217,8.6,Everything Everywhere Ltd,5658,Housing Repairs Account,Mobile Phone,4455
http://statistics.data.gov.uk/id/local-authority/47UD,Redditch Borough Council,21/03/2014,203224,V00915540217,0.36,Everything Everywhere Ltd,5658,Housing Repairs Account,Mobile Phone,4455
http://statistics.data.gov.uk/id/local-authority/47UD,Redditch Borough Council,21/03/2014,203224,V00915540217,7.37,Everything Everywhere Ltd,5658,Housing Repairs Account,Mobile Phone,4455
http://statistics.data.gov.uk/id/local-authority/47UD,Redditch Borough Council,21/03/2014,203224,V00915540217,0.72,Everything Everywhere Ltd,5658,Housing Repairs Account,Mobile Phone,4455
http://statistics.data.gov.uk/id/local-authority/47UD,Redditch Borough Council,21/03/2014,203224,V00915540217,2.96,Everything Everywhere Ltd,5658,Housing Repairs Account,Mobile Phone,4455
http://statistics.data.gov.uk/id/local-authority/47UD,Redditch Borough Council,21/03/2014,203224,V00915540217,36.81,Everything Everywhere Ltd,5658,Housing Repairs Account,Mobile Phone,4455
http://statistics.data.gov.uk/id/local-authority/47UD,Redditch Borough Council,21/03/2014,203224,V00915540217,3.18,Everything Everywhere Ltd,5658,Housing Repairs Account,Mobile Phone,4455
http://statistics.data.gov.uk/id/local-authority/47UD,Redditch Borough Council,21/03/2014,203224,V00915540217,2.08,Everything Everywhere Ltd,5658,Housing Repairs Account,Mobile Phone,4455
http://statistics.data.gov.uk/id/local-authority/47UD,Redditch Borough Council,21/03/2014,203224,V00915540217,0.04,Everything Everywhere Ltd,5658,Housing Repairs Account,Mobile Phone,4455
http://statistics.data.gov.uk/id/local-authority/47UD,Redditch Borough Council,21/03/2014,203224,V00915540217,6.11,Everything Everywhere Ltd,5658,Housing Repairs Account,Mobile Phone,4455
http://statistics.data.gov.uk/id/local-authority/47UD,Redditch Borough Council,21/03/2014,203224,V00915540217,7.31,Everything Everywhere Ltd,5658,Housing Repairs Account,Mobile Phone,4455
http://statistics.data.gov.uk/id/local-authority/47UD,Redditch Borough Council,21/03/2014,203224,V00915540217,6.6,Everything Everywhere Ltd,5658,Housing Repairs Account,Mobile Phone,4455
http://statistics.data.gov.uk/id/local-authority/47UD,Redditch Borough Council,21/03/2014,203224,V00915540217,1.64,Everything Everywhere Ltd,5658,Housing Revenue Account,Mobile Phone,4455
http://statistics.data.gov.uk/id/local-authority/47UD,Redditch Borough Council,21/03/2014,203224,V00915540217,11.19,Everything Everywhere Ltd,5658,Housing Revenue Account,Mobile Phone,4455
http://statistics.data.gov.uk/id/local-authority/47UD,Redditch Borough Council,21/03/2014,203224,V00915540217,6.22,Everything Everywhere Ltd,5658,Housing Revenue Account,Mobile Phone,4455
http://statistics.data.gov.uk/id/local-authority/47UD,Redditch Borough Council,21/03/2014,203224,V00915540217,2.4,Everything Everywhere Ltd,5658,Housing Revenue Account,Mobile Phone,4455
http://statistics.data.gov.uk/id/local-authority/47UD,Redditch Borough Council,21/03/2014,203224,V00915540217,4.35,Everything Everywhere Ltd,5658,Housing Revenue Account,Mobile Phone,4455
http://statistics.data.gov.uk/id/local-authority/47UD,Redditch Borough Council,21/03/2014,203224,V00915540217,1.25,Everything Everywhere Ltd,5658,Housing Revenue Account,Mobile Phone,4455
http://statistics.data.gov.uk/id/local-authority/47UD,Redditch Borough Council,21/03/2014,203224,V00915540217,16.75,Everything Everywhere Ltd,5658,Housing Revenue Account,Mobile Phone,4455
http://statistics.data.gov.uk/id/local-authority/47UD,Redditch Borough Council,21/03/2014,203224,V00915540217,2.87,Everything Everywhere Ltd,5658,Housing Revenue Account,Mobile Phone,4455
http://statistics.data.gov.uk/id/local-authority/47UD,Redditch Borough Council,21/03/2014,203224,V00915540217,21.57,Everything Everywhere Ltd,5658,Housing Revenue Account,Mobile Phone,4455
http://statistics.data.gov.uk/id/local-authority/47UD,Redditch Borough Council,21/03/2014,203224,V00915540217,13.9,Everything Everywhere Ltd,5658,Housing Revenue Account,Mobile Phone,4455
http://statistics.data.gov.uk/id/local-authority/47UD,Redditch Borough Council,21/03/2014,203224,V00915540217,0.91,Everything Everywhere Ltd,5658,Housing Revenue Account,Mobile Phone,4455
http://statistics.data.gov.uk/id/local-authority/47UD,Redditch Borough Council,21/03/2014,203224,V00915540217,14.42,Everything Everywhere Ltd,5658,Housing Revenue Account,Mobile Phone,4455
http://statistics.data.gov.uk/id/local-authority/47UD,Redditch Borough Council,21/03/2014,203224,V00915540217,4.69,Everything Everywhere Ltd,5658,Housing Revenue Account,Mobile Phone,4455
http://statistics.data.gov.uk/id/local-authority/47UD,Redditch Borough Council,21/03/2014,203224,V00915540217,0.1,Everything Everywhere Ltd,5658,Housing Revenue Account,Mobile Phone,4455
http://statistics.data.gov.uk/id/local-authority/47UD,Redditch Borough Council,21/03/2014,203224,V00915540217,1.85,Everything Everywhere Ltd,5658,Housing Revenue Account,Mobile Phone,4455
http://statistics.data.gov.uk/id/local-authority/47UD,Redditch Borough Council,21/03/2014,203224,V00915540217,3.19,Everything Everywhere Ltd,5658,Housing Revenue Account,Mobile Phone,4455
http://statistics.data.gov.uk/id/local-authority/47UD,Redditch Borough Council,21/03/2014,203224,V00915540217,4.35,Everything Everywhere Ltd,5658,Housing Revenue Account,Mobile Phone,4455
http://statistics.data.gov.uk/id/local-authority/47UD,Redditch Borough Council,21/03/2014,203224,V00915540217,23.99,Everything Everywhere Ltd,5658,Housing Revenue Account,Mobile Phone,4455
http://statistics.data.gov.uk/id/local-authority/47UD,Redditch Borough Council,21/03/2014,203224,V00915540217,0.13,Everything Everywhere Ltd,5658,Housing Revenue Account,Mobile Phone,4455
http://statistics.data.gov.uk/id/local-authority/47UD,Redditch Borough Council,21/03/2014,203224,V00915540217,1.8,Everything Everywhere Ltd,5658,Housing Revenue Account,Mobile Phone,4455
http://statistics.data.gov.uk/id/local-authority/47UD,Redditch Borough Council,21/03/2014,203224,V00915540217,5.35,Everything Everywhere Ltd,5658,Housing Revenue Account,Mobile Phone,4455
http://statistics.data.gov.uk/id/local-authority/47UD,Redditch Borough Council,21/03/2014,203224,V00915540217,4.83,Everything Everywhere Ltd,5658,Housing Revenue Account,Mobile Phone,4455
http://statistics.data.gov.uk/id/local-authority/47UD,Redditch Borough Council,21/03/2014,203224,V00915540217,0.14,Everything Everywhere Ltd,5658,Housing Revenue Account,Mobile Phone,4455
http://statistics.data.gov.uk/id/local-authority/47UD,Redditch Borough Council,21/03/2014,203224,V00915540217,3.12,Everything Everywhere Ltd,5658,Housing Revenue Account,Mobile Phone,4455
http://statistics.data.gov.uk/id/local-authority/47UD,Redditch Borough Council,21/03/2014,203224,V00915540217,33.5,Everything Everywhere Ltd,5658,Housing Revenue Account,Mobile Phone,4455
http://statistics.data.gov.uk/id/local-authority/47UD,Redditch Borough Council,21/03/2014,203224,V00915540217,0.03,Everything Everywhere Ltd,5658,Housing Revenue Account,Mobile Phone,4455
http://statistics.data.gov.uk/id/local-authority/47UD,Redditch Borough Council,21/03/2014,203224,V00915540217,5.5,Everything Everywhere Ltd,5658,Housing Revenue Account,Mobile Phone,4455
http://statistics.data.gov.uk/id/local-authority/47UD,Redditch Borough Council,21/03/2014,203224,V00915540217,16.52,Everything Everywhere Ltd,5658,Housing Revenue Account,Mobile Phone,4455
http://statistics.data.gov.uk/id/local-authority/47UD,Redditch Borough Council,21/03/2014,203224,V00915540217,1.35,Everything Everywhere Ltd,5658,Housing Revenue Account,Mobile Phone,4455
http://statistics.data.gov.uk/id/local-authority/47UD,Redditch Borough Council,21/03/2014,203224,V00915540217,0.03,Everything Everywhere Ltd,5658,Housing Revenue Account,Mobile Phone,4455
http://statistics.data.gov.uk/id/local-authority/47UD,Redditch Borough Council,21/03/2014,203224,V00915540217,0.62,Everything Everywhere Ltd,5658,Housing Revenue Account,Mobile Phone,4455
http://statistics.data.gov.uk/id/local-authority/47UD,Redditch Borough Council,21/03/2014,203224,V00915540217,0.26,Everything Everywhere Ltd,5658,Housing Revenue Account,Mobile Phone,4455
http://statistics.data.gov.uk/id/local-authority/47UD,Redditch Borough Council,21/03/2014,203224,V00915540217,0.29,Everything Everywhere Ltd,5658,Housing Revenue Account,Mobile Phone,4455
http://statistics.data.gov.uk/id/local-authority/47UD,Redditch Borough Council,21/03/2014,203224,V00915540217,3.36,Everything Everywhere Ltd,5658,Housing Revenue Account,Mobile Phone,4455
http://statistics.data.gov.uk/id/local-authority/47UD,Redditch Borough Council,21/03/2014,203224,V00915540217,15.15,Everything Everywhere Ltd,5658,Housing Revenue Account,Mobile Phone,4455
http://statistics.data.gov.uk/id/local-authority/47UD,Redditch Borough Council,21/03/2014,203224,V00915540217,1.04,Everything Everywhere Ltd,5658,Housing Revenue Account,Mobile Phone,4455
http://statistics.data.gov.uk/id/local-authority/47UD,Redditch Borough Council,21/03/2014,203224,V00915540217,4.34,Everything Everywhere Ltd,5658,Housing Revenue Account,Mobile Phone,4455
http://statistics.data.gov.uk/id/local-authority/47UD,Redditch Borough Council,21/03/2014,203224,V00915540217,2.37,Everything Everywhere Ltd,5658,Housing Revenue Account,Mobile Phone,4455
http://statistics.data.gov.uk/id/local-authority/47UD,Redditch Borough Council,21/03/2014,203224,V00915540217,0.45,Everything Everywhere Ltd,5658,Housing Revenue Account,Mobile Phone,4455
http://statistics.data.gov.uk/id/local-authority/47UD,Redditch Borough Council,21/03/2014,203224,V00915540217,20.45,Everything Everywhere Ltd,5658,Housing Revenue Account,Mobile Phone,4455
http://statistics.data.gov.uk/id/local-authority/47UD,Redditch Borough Council,21/03/2014,203224,V00915540217,1.03,Everything Everywhere Ltd,5658,Housing Revenue Account,Mobile Phone,4455
http://statistics.data.gov.uk/id/local-authority/47UD,Redditch Borough Council,21/03/2014,203224,V00915540217,0.2,Everything Everywhere Ltd,5658,Housing Revenue Account,Mobile Phone,4455
http://statistics.data.gov.uk/id/local-authority/47UD,Redditch Borough Council,21/03/2014,203224,V00915540217,6.53,Everything Everywhere Ltd,5658,Hra Consolidation Adj,Mobile Phone,4455
http://statistics.data.gov.uk/id/local-authority/47UD,Redditch Borough Council,21/03/2014,203224,V00915540217,12.77,Everything Everywhere Ltd,5658,Surestart Project,Mobile Phone,4455
http://statistics.data.gov.uk/id/local-authority/47UD,Redditch Borough Council,21/03/2014,203224,V00915540217,0.88,Everything Everywhere Ltd,5658,Surestart Project,Mobile Phone,4455
http://statistics.data.gov.uk/id/local-authority/47UD,Redditch Borough Council,21/03/2014,203224,V00915540217,12.77,Everything Everywhere Ltd,5658,Surestart Project,Mobile Phone,4455
http://statistics.data.gov.uk/id/local-authority/47UD,Redditch Borough Council,21/03/2014,203224,V00915540217,12.77,Everything Everywhere Ltd,5658,Surestart Project,Mobile Phone,4455
http://statistics.data.gov.uk/id/local-authority/47UD,Redditch Borough Council,21/03/2014,203224,V00915540217,12.77,Everything Everywhere Ltd,5658,Surestart Project,Mobile Phone,4455
http://statistics.data.gov.uk/id/local-authority/47UD,Redditch Borough Council,21/03/2014,203224,V00915540217,1.57,Everything Everywhere Ltd,5658,Surestart Project,Mobile Phone,4455
http://statistics.data.gov.uk/id/local-authority/47UD,Redditch Borough Council,21/03/2014,203224,V00915540217,19.32,Everything Everywhere Ltd,5658,Surestart Project,Mobile Phone,4455
http://statistics.data.gov.uk/id/local-authority/47UD,Redditch Borough Council,21/03/2014,203224,V00915540217,17,Everything Everywhere Ltd,5658,Surestart Project,Mobile Phone,4455
http://statistics.data.gov.uk/id/local-authority/47UD,Redditch Borough Council,21/03/2014,203224,V00915540217,21.41,Everything Everywhere Ltd,5658,Surestart Project,Mobile Phone,4455
http://statistics.data.gov.uk/id/local-authority/47UD,Redditch Borough Council,21/03/2014,203224,V00915540217,6.64,Everything Everywhere Ltd,5658,Surestart Project,Mobile Phone,4455
http://statistics.data.gov.uk/id/local-authority/47UD,Redditch Borough Council,21/03/2014,203224,V00915540217,22.82,Everything Everywhere Ltd,5658,Surestart Project,Mobile Phone,4455
http://statistics.data.gov.uk/id/local-authority/47UD,Redditch Borough Council,21/03/2014,203224,V00915540217,0.36,Everything Everywhere Ltd,5658,Surestart Project,Mobile Phone,4455
http://statistics.data.gov.uk/id/local-authority/47UD,Redditch Borough Council,21/03/2014,203224,V00915540217,29.99,Everything Everywhere Ltd,5658,Surestart Project,Mobile Phone,4455
http://statistics.data.gov.uk/id/local-authority/47UD,Redditch Borough Council,21/03/2014,203224,V00915540217,13.62,Everything Everywhere Ltd,5658,Surestart Project,Mobile Phone,4455
http://statistics.data.gov.uk/id/local-authority/47UD,Redditch Borough Council,21/03/2014,203224,V00915540217,5.86,Everything Everywhere Ltd,5658,Surestart Project,Mobile Phone,4455
http://statistics.data.gov.uk/id/local-authority/47UD,Redditch Borough Council,21/03/2014,203224,V00915540217,6.97,Everything Everywhere Ltd,5658,Surestart Project,Mobile Phone,4455
http://statistics.data.gov.uk/id/local-authority/47UD,Redditch Borough Council,21/03/2014,203224,V00915540217,2.41,Everything Everywhere Ltd,5658,Surestart Project,Mobile Phone,4455
http://statistics.data.gov.uk/id/local-authority/47UD,Redditch Borough Council,21/03/2014,203224,V00915540217,1.93,Everything Everywhere Ltd,5658,Surestart Project,Mobile Phone,4455
http://statistics.data.gov.uk/id/local-authority/47UD,Redditch Borough Council,21/03/2014,203224,V00915540217,9.84,Everything Everywhere Ltd,5658,Surestart Project,Mobile Phone,4455
http://statistics.data.gov.uk/id/local-authority/47UD,Redditch Borough Council,21/03/2014,203224,V00915540217,26.65,Everything Everywhere Ltd,5658,Surestart Project,Mobile Phone,4455
http://statistics.data.gov.uk/id/local-authority/47UD,Redditch Borough Council,21/03/2014,203224,V00915540217,2.66,Everything Everywhere Ltd,5658,Surestart Project,Mobile Phone,4455
http://statistics.data.gov.uk/id/local-authority/47UD,Redditch Borough Council,21/03/2014,203224,V00915540217,5.63,Everything Everywhere Ltd,5658,Surestart Project,Mobile Phone,4455
http://statistics.data.gov.uk/id/local-authority/47UD,Redditch Borough Council,21/03/2014,203224,V00915540217,19.8,Everything Everywhere Ltd,5658,Surestart Project,Mobile Phone,4455
http://statistics.data.gov.uk/id/local-authority/47UD,Redditch Borough Council,21/03/2014,203224,V00915540217,4.82,Everything Everywhere Ltd,5658,Surestart Project,Mobile Phone,4455
http://statistics.data.gov.uk/id/local-authority/47UD,Redditch Borough Council,21/03/2014,203224,V00915540217,24.14,Everything Everywhere Ltd,5658,Surestart Project,Mobile Phone,4455
http://statistics.data.gov.uk/id/local-authority/47UD,Redditch Borough Council,27/03/2014,203651,V00921520436,1.53,Everything Everywhere Ltd,5658,Chief Executive,Mobile Phone,4455
http://statistics.data.gov.uk/id/local-authority/47UD,Redditch Borough Council,27/03/2014,203651,V00921520436,8.14,Everything Everywhere Ltd,5658,Chief Executive,Mobile Phone,4455
http://statistics.data.gov.uk/id/local-authority/47UD,Redditch Borough Council,27/03/2014,203651,V00921520436,25.29,Everything Everywhere Ltd,5658,Chief Executive,Mobile Phone,4455
http://statistics.data.gov.uk/id/local-authority/47UD,Redditch Borough Council,27/03/2014,203651,V00921520436,32.99,Everything Everywhere Ltd,5658,Chief Executive,Mobile Phone,4455
http://statistics.data.gov.uk/id/local-authority/47UD,Redditch Borough Council,27/03/2014,203651,V00921520436,0.12,Everything Everywhere Ltd,5658,Chief Executive,Mobile Phone,4455
http://statistics.data.gov.uk/id/local-authority/47UD,Redditch Borough Council,27/03/2014,203651,V00921520436,12.77,Everything Everywhere Ltd,5658,Chief Executive,Mobile Phone,4455
http://statistics.data.gov.uk/id/local-authority/47UD,Redditch Borough Council,27/03/2014,203651,V00921520436,15.63,Everything Everywhere Ltd,5658,Exec. Director Fin. & Resource,Mobile Phone,4455
http://statistics.data.gov.uk/id/local-authority/47UD,Redditch Borough Council,27/03/2014,203651,V00921520436,15.75,Everything Everywhere Ltd,5658,Exec. Director Fin. & Resource,Mobile Phone,4455
http://statistics.data.gov.uk/id/local-authority/47UD,Redditch Borough Council,27/03/2014,203651,V00921520436,25.44,Everything Everywhere Ltd,5658,Exec. Director Fin. & Resource,Mobile Phone,4455
http://statistics.data.gov.uk/id/local-authority/47UD,Redditch Borough Council,27/03/2014,203651,V00921520436,15.5,Everything Everywhere Ltd,5658,Exec. Director Fin. & Resource,Mobile Phone,4455
http://statistics.data.gov.uk/id/local-authority/47UD,Redditch Borough Council,27/03/2014,203651,V00921520436,16.74,Everything Everywhere Ltd,5658,Exec. Director Fin. & Resource,Mobile Phone,4455
http://statistics.data.gov.uk/id/local-authority/47UD,Redditch Borough Council,27/03/2014,203651,V00921520436,-4.12,Everything Everywhere Ltd,5658,Exec. Director Fin. & Resource,Mobile Phone,4455
http://statistics.data.gov.uk/id/local-authority/47UD,Redditch Borough Council,27/03/2014,203651,V00921520436,7.59,Everything Everywhere Ltd,5658,Exec. Director Fin. & Resource,Mobile Phone,4455
http://statistics.data.gov.uk/id/local-authority/47UD,Redditch Borough Council,27/03/2014,203651,V00921520436,8.25,Everything Everywhere Ltd,5658,Exec. Director Fin. & Resource,Mobile Phone,4455
http://statistics.data.gov.uk/id/local-authority/47UD,Redditch Borough Council,27/03/2014,203651,V00921520436,0.76,Everything Everywhere Ltd,5658,Exec. Director Fin. & Resource,Mobile Phone,4455
http://statistics.data.gov.uk/id/local-authority/47UD,Redditch Borough Council,27/03/2014,203651,V00921520436,15.5,Everything Everywhere Ltd,5658,Exec. Director Fin. & Resource,Mobile Phone,4455
http://statistics.data.gov.uk/id/local-authority/47UD,Redditch Borough Council,27/03/2014,203651,V00921520436,0.04,Everything Everywhere Ltd,5658,Exec. Director Fin. & Resource,Mobile Phone,4455
http://statistics.data.gov.uk/id/local-authority/47UD,Redditch Borough Council,27/03/2014,203651,V00921520436,12.77,Everything Everywhere Ltd,5658,Exec. Director Fin. & Resource,Mobile Phone,4455
http://statistics.data.gov.uk/id/local-authority/47UD,Redditch Borough Council,27/03/2014,203651,V00921520436,0.08,Everything Everywhere Ltd,5658,Exec. Director Fin. & Resource,Mobile Phone,4455
http://statistics.data.gov.uk/id/local-authority/47UD,Redditch Borough Council,27/03/2014,203651,V00921520436,23.4,Everything Everywhere Ltd,5658,Exec. Director Fin. & Resource,Mobile Phone,4455
http://statistics.data.gov.uk/id/local-authority/47UD,Redditch Borough Council,27/03/2014,203651,V00921520436,-4.12,Everything Everywhere Ltd,5658,Exec. Director Fin. & Resource,Mobile Phone,4455
http://statistics.data.gov.uk/id/local-authority/47UD,Redditch Borough Council,27/03/2014,203651,V00921520436,1.55,Everything Everywhere Ltd,5658,Exec. Director Fin. & Resource,Mobile Phone,4455
http://statistics.data.gov.uk/id/local-authority/47UD,Redditch Borough Council,27/03/2014,203651,V00921520436,12.77,Everything Everywhere Ltd,5658,Exec. Director Fin. & Resource,Mobile Phone,4455
http://statistics.data.gov.uk/id/local-authority/47UD,Redditch Borough Council,27/03/2014,203651,V00921520436,15.55,Everything Everywhere Ltd,5658,Exec. Director Fin. & Resource,Mobile Phone,4455
http://statistics.data.gov.uk/id/local-authority/47UD,Redditch Borough Council,27/03/2014,203651,V00921520436,2.91,Everything Everywhere Ltd,5658,Exec. Director Fin. & Resource,Mobile Phone,4455
http://statistics.data.gov.uk/id/local-authority/47UD,Redditch Borough Council,27/03/2014,203651,V00921520436,0.18,Everything Everywhere Ltd,5658,Exec. Director Fin. & Resource,Mobile Phone,4455
http://statistics.data.gov.uk/id/local-authority/47UD,Redditch Borough Council,27/03/2014,203651,V00921520436,3.98,Everything Everywhere Ltd,5658,Exec. Director Fin. & Resource,Mobile Phone,4455
http://statistics.data.gov.uk/id/local-authority/47UD,Redditch Borough Council,27/03/2014,203651,V00921520436,2.5,Everything Everywhere Ltd,5658,Exec. Director Fin. & Resource,Mobile Phone,4455
http://statistics.data.gov.uk/id/local-authority/47UD,Redditch Borough Council,27/03/2014,203651,V00921520436,4.77,Everything Everywhere Ltd,5658,Exec. Director Fin. & Resource,Mobile Phone,4455
http://statistics.data.gov.uk/id/local-authority/47UD,Redditch Borough Council,27/03/2014,203651,V00921520436,22.6,Everything Everywhere Ltd,5658,Exec. Director Fin. & Resource,Mobile Phone,4455
http://statistics.data.gov.uk/id/local-authority/47UD,Redditch Borough Council,27/03/2014,203651,V00921520436,12.77,Everything Everywhere Ltd,5658,Exec. Director Fin. & Resource,Mobile Phone,4455
http://statistics.data.gov.uk/id/local-authority/47UD,Redditch Borough Council,27/03/2014,203651,V00921520436,9.48,Everything Everywhere Ltd,5658,Exec. Director Fin. & Resource,Mobile Phone,4455
http://statistics.data.gov.uk/id/local-authority/47UD,Redditch Borough Council,27/03/2014,203651,V00921520436,0.76,Everything Everywhere Ltd,5658,Exec. Director Fin. & Resource,Mobile Phone,4455
http://statistics.data.gov.uk/id/local-authority/47UD,Redditch Borough Council,27/03/2014,203651,V00921520436,15.78,Everything Everywhere Ltd,5658,Exec. Director Fin. & Resource,Mobile Phone,4455
http://statistics.data.gov.uk/id/local-authority/47UD,Redditch Borough Council,27/03/2014,203651,V00921520436,21.2,Everything Everywhere Ltd,5658,Exec. Director Fin. & Resource,Mobile Phone,4455
http://statistics.data.gov.uk/id/local-authority/47UD,Redditch Borough Council,27/03/2014,203651,V00921520436,4.45,Everything Everywhere Ltd,5658,Exec. Director Fin. & Resource,Mobile Phone,4455
http://statistics.data.gov.uk/id/local-authority/47UD,Redditch Borough Council,27/03/2014,203651,V00921520436,0,Everything Everywhere Ltd,5658,Exec. Director Fin. & Resource,Mobile Phone,4455
http://statistics.data.gov.uk/id/local-authority/47UD,Redditch Borough Council,27/03/2014,203651,V00921520436,23.66,Everything Everywhere Ltd,5658,Exec. Director Fin. & Resource,Mobile Phone,4455
http://statistics.data.gov.uk/id/local-authority/47UD,Redditch Borough Council,27/03/2014,203651,V00921520436,15.5,Everything Everywhere Ltd,5658,Exec. Director Fin. & Resource,Mobile Phone,4455
http://statistics.data.gov.uk/id/local-authority/47UD,Redditch Borough Council,27/03/2014,203651,V00921520436,16.06,Everything Everywhere Ltd,5658,Exec. Director Fin. & Resource,Mobile Phone,4455
http://statistics.data.gov.uk/id/local-authority/47UD,Redditch Borough Council,27/03/2014,203651,V00921520436,20.73,Everything Everywhere Ltd,5658,Exec. Director Fin. & Resource,Mobile Phone,4455
http://statistics.data.gov.uk/id/local-authority/47UD,Redditch Borough Council,27/03/2014,203651,V00921520436,20.67,Everything Everywhere Ltd,5658,Exec. Director Fin. & Resource,Mobile Phone,4455
http://statistics.data.gov.uk/id/local-authority/47UD,Redditch Borough Council,27/03/2014,203651,V00921520436,23.4,Everything Everywhere Ltd,5658,Exec. Director Fin. & Resource,Mobile Phone,4455
